Workbook

Sheet Overview
C2: Professional services finance demonstration
C4: Selected case | E4: ='Assumptions'!$G$4 -> Base | H4: EUR. Entirely fictional.
C6: Linden Advisory — fictional
C7: 31 August 2026. January–August actuals; September–December forecast.
C9: August result | E9: Actual | F9: Original budget | G9: Variance
C10: Revenue | E10: ='P&L'!L8 -> 276,874 | F10: ='Budget'!L8 -> 284,889 | G10: =E10-F10 -> (8,016)
C11: Gross profit | E11: ='P&L'!L15 -> 166,965 | F11: ='Budget'!L15 -> 174,232 | G11: =E11-F11 -> (7,266)
C12: EBITDA | E12: ='P&L'!L21 -> 99,465 | F12: ='Budget'!L21 -> 109,157 | G12: =E12-F12 -> (9,691)
C13: Net profit | E13: ='P&L'!L28 -> 76,573 | F13: ='Budget'!L28 -> 84,326 | G13: =E13-F13 -> (7,753)
C14: Gross margin | E14: ='P&L'!L16 -> 60.3% | F14: ='Budget'!L16 -> 61.2% | G14: =(E14-F14)*100 -> (0.9) pp
C17: Closing cash at 31 August | E17: ='Balance sheet'!L8 -> €171,657
C18: Lowest scheduled end-of-day cash | E18: ='13 week cash'!F23 -> €150,240
C19: Reserve shortfall at daily low | E19: =MIN(0,E18-'Assumptions'!$E$154) -> 0
C20: August net unbilled work | E20: ='Balance sheet'!L10 -> €176,942
C21: August chargeable utilisation | E21: ='Engagements'!L147 -> 92.5%
C24: Full-year revenue | E24: =SUM('P&L'!E8:P8) -> €3,006,269
C25: Full-year EBITDA | E25: =SUM('P&L'!E21:P21) -> €874,117
C26: December closing cash | E26: ='Balance sheet'!P8 -> €472,677
C30: CFO action register
C32: Priority | D32: Financial issue | E32: Exposure EUR | F32: Action | G32: Owner | H32: Due | I32: Status
C33: High | D33: Unbilled work awaiting billing | E33: ='Balance sheet'!L10 -> 176,942 | F33: Agree invoice milestones and clear engagement billing holds. | G33: Engagement partners | H33: 2026-09-04 | I33: In progress
C34: High | D34: Lowest scheduled cash | E34: ='13 week cash'!F23 -> 150,240 | F34: Confirm receipt dates before discretionary spend. | G34: CFO | H34: 2026-09-03 | I34: Open
C35: High | D35: Unbilled recoverability allowance | E35: ='Engagements'!L137 -> 12,505 | F35: Review aged work and document expected recovery. | G35: Finance lead | H35: 2026-09-07 | I35: Open
C36: High | D36: Unallocated payroll and grade mix | E36: ='Engagements'!L148 -> 2,129 | F36: Rebalance Partner and Manager hours before adding work. See grade capacity. | G36: Resource manager | H36: 2026-09-08 | I36: Open
C40: Monthly cash and operating reserve
C42: Month | D42: Closing cash | E42: Reserve
C43: Jan 26 | D43: ='Balance sheet'!E8 -> 86,112 | E43: ='Assumptions'!$E$154 -> 100,000
C44: Feb 26 | D44: ='Balance sheet'!F8 -> 13,525 | E44: ='Assumptions'!$E$154 -> 100,000
C45: Mar 26 | D45: ='Balance sheet'!G8 -> 27,521 | E45: ='Assumptions'!$E$154 -> 100,000
C46: Apr 26 | D46: ='Balance sheet'!H8 -> 32,266 | E46: ='Assumptions'!$E$154 -> 100,000
C47: May 26 | D47: ='Balance sheet'!I8 -> 58,374 | E47: ='Assumptions'!$E$154 -> 100,000
C48: Jun 26 | D48: ='Balance sheet'!J8 -> 68,057 | E48: ='Assumptions'!$E$154 -> 100,000
C49: Jul 26 | D49: ='Balance sheet'!K8 -> 122,069 | E49: ='Assumptions'!$E$154 -> 100,000
C50: Aug 26 | D50: ='Balance sheet'!L8 -> 171,657 | E50: ='Assumptions'!$E$154 -> 100,000
C51: Sept 26 | D51: ='Balance sheet'!M8 -> 210,930 | E51: ='Assumptions'!$E$154 -> 100,000
C52: Oct 26 | D52: ='Balance sheet'!N8 -> 302,987 | E52: ='Assumptions'!$E$154 -> 100,000
C53: Nov 26 | D53: ='Balance sheet'!O8 -> 394,471 | E53: ='Assumptions'!$E$154 -> 100,000
C54: Dec 26 | D54: ='Balance sheet'!P8 -> 472,677 | E54: ='Assumptions'!$E$154 -> 100,000

Sheet Assumptions
C2: Assumptions
C4: Selected case | E4: 1 | G4: =CHOOSE(E4,"Base","Downside") -> Base | H4: EUR. Entirely fictional.
C5: 1 = Base; 2 = Downside
E6: Actual | F6: Actual | G6: Actual | H6: Actual | I6: Actual | J6: Actual | K6: Actual | L6: Actual | M6: Forecast | N6: Forecast | O6: Forecast | P6: Forecast
E7: 2026-01-01 | F7: 2026-02-01 | G7: 2026-03-01 | H7: 2026-04-01 | I7: 2026-05-01 | J7: 2026-06-01 | K7: 2026-07-01 | L7: 2026-08-01 | M7: 2026-09-01 | N7: 2026-10-01 | O7: 2026-11-01 | P7: 2026-12-01
C8: Management and administration payroll — active | E8: ='Actual inputs'!E8 -> €45,000 | F8: ='Actual inputs'!F8 -> €45,500 | G8: ='Actual inputs'!G8 -> €46,000 | H8: ='Actual inputs'!H8 -> €46,500 | I8: ='Actual inputs'!I8 -> €47,000 | J8: ='Actual inputs'!J8 -> €47,500 | K8: ='Actual inputs'!K8 -> €48,000 | L8: ='Actual inputs'!L8 -> €48,500 | M8: =IF($E$4=1,IF(ISNUMBER(M9),M9,NA()),IF($E$4=2,IF(ISNUMBER(M10),M10,NA()),NA())) -> €51,000 | N8: =IF($E$4=1,IF(ISNUMBER(N9),N9,NA()),IF($E$4=2,IF(ISNUMBER(N10),N10,NA()),NA())) -> €51,500 | O8: =IF($E$4=1,IF(ISNUMBER(O9),O9,NA()),IF($E$4=2,IF(ISNUMBER(O10),O10,NA()),NA())) -> €52,500 | P8: =IF($E$4=1,IF(ISNUMBER(P9),P9,NA()),IF($E$4=2,IF(ISNUMBER(P10),P10,NA()),NA())) -> €53,500
C9: Base | M9: 51,000 | N9: 51,500 | O9: 52,500 | P9: 53,500
C10: Downside | M10: 51,000 | N10: 51,500 | O10: 52,000 | P10: 52,000
C11: Business development — active | E11: ='Actual inputs'!E9 -> €11,500 | F11: ='Actual inputs'!F9 -> €11,500 | G11: ='Actual inputs'!G9 -> €11,500 | H11: ='Actual inputs'!H9 -> €11,500 | I11: ='Actual inputs'!I9 -> €11,500 | J11: ='Actual inputs'!J9 -> €11,500 | K11: ='Actual inputs'!K9 -> €11,500 | L11: ='Actual inputs'!L9 -> €11,500 | M11: =IF($E$4=1,IF(ISNUMBER(M12),M12,NA()),IF($E$4=2,IF(ISNUMBER(M13),M13,NA()),NA())) -> €13,000 | N11: =IF($E$4=1,IF(ISNUMBER(N12),N12,NA()),IF($E$4=2,IF(ISNUMBER(N13),N13,NA()),NA())) -> €13,000 | O11: =IF($E$4=1,IF(ISNUMBER(O12),O12,NA()),IF($E$4=2,IF(ISNUMBER(O13),O13,NA()),NA())) -> €13,000 | P11: =IF($E$4=1,IF(ISNUMBER(P12),P12,NA()),IF($E$4=2,IF(ISNUMBER(P13),P13,NA()),NA())) -> €13,000
C12: Base | M12: 13,000 | N12: 13,000 | O12: 13,000 | P12: 13,000
C13: Downside | M13: 11,000 | N13: 11,000 | O13: 11,000 | P13: 11,000
C14: Office, insurance and general costs — active | E14: ='Actual inputs'!E10 -> €7,500 | F14: ='Actual inputs'!F10 -> €7,500 | G14: ='Actual inputs'!G10 -> €7,500 | H14: ='Actual inputs'!H10 -> €7,500 | I14: ='Actual inputs'!I10 -> €7,500 | J14: ='Actual inputs'!J10 -> €7,500 | K14: ='Actual inputs'!K10 -> €7,500 | L14: ='Actual inputs'!L10 -> €7,500 | M14: =IF($E$4=1,IF(ISNUMBER(M15),M15,NA()),IF($E$4=2,IF(ISNUMBER(M16),M16,NA()),NA())) -> €8,000 | N14: =IF($E$4=1,IF(ISNUMBER(N15),N15,NA()),IF($E$4=2,IF(ISNUMBER(N16),N16,NA()),NA())) -> €8,000 | O14: =IF($E$4=1,IF(ISNUMBER(O15),O15,NA()),IF($E$4=2,IF(ISNUMBER(O16),O16,NA()),NA())) -> €8,000 | P14: =IF($E$4=1,IF(ISNUMBER(P15),P15,NA()),IF($E$4=2,IF(ISNUMBER(P16),P16,NA()),NA())) -> €8,000
C15: Base | M15: 8,000 | N15: 8,000 | O15: 8,000 | P15: 8,000
C16: Downside | M16: 8,000 | N16: 8,000 | O16: 8,000 | P16: 8,000
C17: Direct systems and software — active | E17: ='Actual inputs'!E11 -> €7,000 | F17: ='Actual inputs'!F11 -> €7,000 | G17: ='Actual inputs'!G11 -> €7,000 | H17: ='Actual inputs'!H11 -> €7,000 | I17: ='Actual inputs'!I11 -> €7,000 | J17: ='Actual inputs'!J11 -> €7,000 | K17: ='Actual inputs'!K11 -> €7,000 | L17: ='Actual inputs'!L11 -> €7,000 | M17: =IF($E$4=1,IF(ISNUMBER(M18),M18,NA()),IF($E$4=2,IF(ISNUMBER(M19),M19,NA()),NA())) -> €7,800 | N17: =IF($E$4=1,IF(ISNUMBER(N18),N18,NA()),IF($E$4=2,IF(ISNUMBER(N19),N19,NA()),NA())) -> €7,800 | O17: =IF($E$4=1,IF(ISNUMBER(O18),O18,NA()),IF($E$4=2,IF(ISNUMBER(O19),O19,NA()),NA())) -> €7,800 | P17: =IF($E$4=1,IF(ISNUMBER(P18),P18,NA()),IF($E$4=2,IF(ISNUMBER(P19),P19,NA()),NA())) -> €7,800
C18: Base | M18: 7,800 | N18: 7,800 | O18: 7,800 | P18: 7,800
C19: Downside | M19: 7,800 | N19: 7,800 | O19: 7,800 | P19: 7,800
C20: Target closing trade receivable days — active | E20: ='Actual inputs'!E12 -> 38.0 | F20: ='Actual inputs'!F12 -> 38.0 | G20: ='Actual inputs'!G12 -> 38.0 | H20: ='Actual inputs'!H12 -> 38.0 | I20: ='Actual inputs'!I12 -> 38.0 | J20: ='Actual inputs'!J12 -> 38.0 | K20: ='Actual inputs'!K12 -> 38.0 | L20: ='Actual inputs'!L12 -> 38.0 | M20: =IF($E$4=1,IF(ISNUMBER(M21),M21,NA()),IF($E$4=2,IF(ISNUMBER(M22),M22,NA()),NA())) -> 38.0 | N20: =IF($E$4=1,IF(ISNUMBER(N21),N21,NA()),IF($E$4=2,IF(ISNUMBER(N22),N22,NA()),NA())) -> 36.0 | O20: =IF($E$4=1,IF(ISNUMBER(O21),O21,NA()),IF($E$4=2,IF(ISNUMBER(O22),O22,NA()),NA())) -> 35.0 | P20: =IF($E$4=1,IF(ISNUMBER(P21),P21,NA()),IF($E$4=2,IF(ISNUMBER(P22),P22,NA()),NA())) -> 35.0
C21: Base | M21: 38.0 | N21: 36.0 | O21: 35.0 | P21: 35.0
C22: Downside | M22: 55.0 | N22: 58.0 | O22: 60.0 | P22: 60.0
C23: New supplier payable days — active | E23: ='Actual inputs'!E13 -> 28.0 | F23: ='Actual inputs'!F13 -> 28.0 | G23: ='Actual inputs'!G13 -> 28.0 | H23: ='Actual inputs'!H13 -> 28.0 | I23: ='Actual inputs'!I13 -> 28.0 | J23: ='Actual inputs'!J13 -> 28.0 | K23: ='Actual inputs'!K13 -> 28.0 | L23: ='Actual inputs'!L13 -> 28.0 | M23: =IF($E$4=1,IF(ISNUMBER(M24),M24,NA()),IF($E$4=2,IF(ISNUMBER(M25),M25,NA()),NA())) -> 28.0 | N23: =IF($E$4=1,IF(ISNUMBER(N24),N24,NA()),IF($E$4=2,IF(ISNUMBER(N25),N25,NA()),NA())) -> 28.0 | O23: =IF($E$4=1,IF(ISNUMBER(O24),O24,NA()),IF($E$4=2,IF(ISNUMBER(O25),O25,NA()),NA())) -> 28.0 | P23: =IF($E$4=1,IF(ISNUMBER(P24),P24,NA()),IF($E$4=2,IF(ISNUMBER(P25),P25,NA()),NA())) -> 28.0
C24: Base | M24: 28.0 | N24: 28.0 | O24: 28.0 | P24: 28.0
C25: Downside | M25: 28.0 | N25: 28.0 | O25: 28.0 | P25: 28.0
C26: Cash capital expenditure — active | E26: ='Actual inputs'!E14 -> €6,000 | F26: ='Actual inputs'!F14 -> €4,000 | G26: ='Actual inputs'!G14 -> €8,000 | H26: ='Actual inputs'!H14 -> €6,000 | I26: ='Actual inputs'!I14 -> €9,000 | J26: ='Actual inputs'!J14 -> €5,000 | K26: ='Actual inputs'!K14 -> €8,000 | L26: ='Actual inputs'!L14 -> €6,000 | M26: =IF($E$4=1,IF(ISNUMBER(M27),M27,NA()),IF($E$4=2,IF(ISNUMBER(M28),M28,NA()),NA())) -> €18,000 | N26: =IF($E$4=1,IF(ISNUMBER(N27),N27,NA()),IF($E$4=2,IF(ISNUMBER(N28),N28,NA()),NA())) -> €6,000 | O26: =IF($E$4=1,IF(ISNUMBER(O27),O27,NA()),IF($E$4=2,IF(ISNUMBER(O28),O28,NA()),NA())) -> €6,000 | P26: =IF($E$4=1,IF(ISNUMBER(P27),P27,NA()),IF($E$4=2,IF(ISNUMBER(P28),P28,NA()),NA())) -> €6,000
C27: Base | M27: 18,000 | N27: 6,000 | O27: 6,000 | P27: 6,000
C28: Downside | M28: 18,000 | N28: 4,000 | O28: 4,000 | P28: 4,000
C29: Illustrative tax payment — active | E29: ='Actual inputs'!E15 -> 0 | F29: ='Actual inputs'!F15 -> 0 | G29: ='Actual inputs'!G15 -> €9,000 | H29: ='Actual inputs'!H15 -> 0 | I29: ='Actual inputs'!I15 -> 0 | J29: ='Actual inputs'!J15 -> €12,000 | K29: ='Actual inputs'!K15 -> 0 | L29: ='Actual inputs'!L15 -> 0 | M29: =IF($E$4=1,IF(ISNUMBER(M30),M30,NA()),IF($E$4=2,IF(ISNUMBER(M31),M31,NA()),NA())) -> €18,000 | N29: =IF($E$4=1,IF(ISNUMBER(N30),N30,NA()),IF($E$4=2,IF(ISNUMBER(N31),N31,NA()),NA())) -> 0 | O29: =IF($E$4=1,IF(ISNUMBER(O30),O30,NA()),IF($E$4=2,IF(ISNUMBER(O31),O31,NA()),NA())) -> 0 | P29: =IF($E$4=1,IF(ISNUMBER(P30),P30,NA()),IF($E$4=2,IF(ISNUMBER(P31),P31,NA()),NA())) -> €16,000
C30: Base | M30: 18,000 | N30: 0 | O30: 0 | P30: 16,000
C31: Downside | M31: 18,000 | N31: 0 | O31: 0 | P31: 9,000
C32: Opening invoice collection delay (days) — active | E32: ='Actual inputs'!E16 -> 0.0 | F32: ='Actual inputs'!F16 -> 0.0 | G32: ='Actual inputs'!G16 -> 0.0 | H32: ='Actual inputs'!H16 -> 0.0 | I32: ='Actual inputs'!I16 -> 0.0 | J32: ='Actual inputs'!J16 -> 0.0 | K32: ='Actual inputs'!K16 -> 0.0 | L32: ='Actual inputs'!L16 -> 0.0 | M32: =IF($E$4=1,IF(ISNUMBER(M33),M33,NA()),IF($E$4=2,IF(ISNUMBER(M34),M34,NA()),NA())) -> 0.0 | N32: =IF($E$4=1,IF(ISNUMBER(N33),N33,NA()),IF($E$4=2,IF(ISNUMBER(N34),N34,NA()),NA())) -> 0.0 | O32: =IF($E$4=1,IF(ISNUMBER(O33),O33,NA()),IF($E$4=2,IF(ISNUMBER(O34),O34,NA()),NA())) -> 0.0 | P32: =IF($E$4=1,IF(ISNUMBER(P33),P33,NA()),IF($E$4=2,IF(ISNUMBER(P34),P34,NA()),NA())) -> 0.0
C33: Base | M33: 0.0 | N33: 0.0 | O33: 0.0 | P33: 0.0
C34: Downside | M34: 14.0 | N34: 14.0 | O34: 14.0 | P34: 14.0
C35: Partner Paid FTE — active | E35: ='Actual inputs'!E17 -> 1.0 | F35: ='Actual inputs'!F17 -> 1.0 | G35: ='Actual inputs'!G17 -> 1.0 | H35: ='Actual inputs'!H17 -> 1.0 | I35: ='Actual inputs'!I17 -> 1.0 | J35: ='Actual inputs'!J17 -> 1.0 | K35: ='Actual inputs'!K17 -> 1.0 | L35: ='Actual inputs'!L17 -> 1.0 | M35: =IF($E$4=1,IF(ISNUMBER(M36),M36,NA()),IF($E$4=2,IF(ISNUMBER(M37),M37,NA()),NA())) -> 1.0 | N35: =IF($E$4=1,IF(ISNUMBER(N36),N36,NA()),IF($E$4=2,IF(ISNUMBER(N37),N37,NA()),NA())) -> 1.0 | O35: =IF($E$4=1,IF(ISNUMBER(O36),O36,NA()),IF($E$4=2,IF(ISNUMBER(O37),O37,NA()),NA())) -> 1.0 | P35: =IF($E$4=1,IF(ISNUMBER(P36),P36,NA()),IF($E$4=2,IF(ISNUMBER(P37),P37,NA()),NA())) -> 1.0
C36: Base | M36: 1.0 | N36: 1.0 | O36: 1.0 | P36: 1.0
C37: Downside | M37: 1.0 | N37: 1.0 | O37: 1.0 | P37: 1.0
C38: Partner Monthly loaded pay — active | E38: ='Actual inputs'!E18 -> €12,000 | F38: ='Actual inputs'!F18 -> €12,000 | G38: ='Actual inputs'!G18 -> €12,000 | H38: ='Actual inputs'!H18 -> €12,000 | I38: ='Actual inputs'!I18 -> €12,000 | J38: ='Actual inputs'!J18 -> €12,000 | K38: ='Actual inputs'!K18 -> €12,000 | L38: ='Actual inputs'!L18 -> €12,000 | M38: =IF($E$4=1,IF(ISNUMBER(M39),M39,NA()),IF($E$4=2,IF(ISNUMBER(M40),M40,NA()),NA())) -> €12,300 | N38: =IF($E$4=1,IF(ISNUMBER(N39),N39,NA()),IF($E$4=2,IF(ISNUMBER(N40),N40,NA()),NA())) -> €12,300 | O38: =IF($E$4=1,IF(ISNUMBER(O39),O39,NA()),IF($E$4=2,IF(ISNUMBER(O40),O40,NA()),NA())) -> €12,300 | P38: =IF($E$4=1,IF(ISNUMBER(P39),P39,NA()),IF($E$4=2,IF(ISNUMBER(P40),P40,NA()),NA())) -> €12,300
C39: Base | M39: 12,300 | N39: 12,300 | O39: 12,300 | P39: 12,300
C40: Downside | M40: 12,300 | N40: 12,300 | O40: 12,300 | P40: 12,300
C41: Manager Paid FTE — active | E41: ='Actual inputs'!E19 -> 3.0 | F41: ='Actual inputs'!F19 -> 3.0 | G41: ='Actual inputs'!G19 -> 3.0 | H41: ='Actual inputs'!H19 -> 3.0 | I41: ='Actual inputs'!I19 -> 3.0 | J41: ='Actual inputs'!J19 -> 3.0 | K41: ='Actual inputs'!K19 -> 3.0 | L41: ='Actual inputs'!L19 -> 3.0 | M41: =IF($E$4=1,IF(ISNUMBER(M42),M42,NA()),IF($E$4=2,IF(ISNUMBER(M43),M43,NA()),NA())) -> 3.0 | N41: =IF($E$4=1,IF(ISNUMBER(N42),N42,NA()),IF($E$4=2,IF(ISNUMBER(N43),N43,NA()),NA())) -> 3.0 | O41: =IF($E$4=1,IF(ISNUMBER(O42),O42,NA()),IF($E$4=2,IF(ISNUMBER(O43),O43,NA()),NA())) -> 3.0 | P41: =IF($E$4=1,IF(ISNUMBER(P42),P42,NA()),IF($E$4=2,IF(ISNUMBER(P43),P43,NA()),NA())) -> 3.0
C42: Base | M42: 3.0 | N42: 3.0 | O42: 3.0 | P42: 3.0
C43: Downside | M43: 3.0 | N43: 3.0 | O43: 3.0 | P43: 3.0
C44: Manager Monthly loaded pay — active | E44: ='Actual inputs'!E20 -> €8,500 | F44: ='Actual inputs'!F20 -> €8,500 | G44: ='Actual inputs'!G20 -> €8,500 | H44: ='Actual inputs'!H20 -> €8,500 | I44: ='Actual inputs'!I20 -> €8,500 | J44: ='Actual inputs'!J20 -> €8,500 | K44: ='Actual inputs'!K20 -> €8,500 | L44: ='Actual inputs'!L20 -> €8,500 | M44: =IF($E$4=1,IF(ISNUMBER(M45),M45,NA()),IF($E$4=2,IF(ISNUMBER(M46),M46,NA()),NA())) -> €8,713 | N44: =IF($E$4=1,IF(ISNUMBER(N45),N45,NA()),IF($E$4=2,IF(ISNUMBER(N46),N46,NA()),NA())) -> €8,713 | O44: =IF($E$4=1,IF(ISNUMBER(O45),O45,NA()),IF($E$4=2,IF(ISNUMBER(O46),O46,NA()),NA())) -> €8,713 | P44: =IF($E$4=1,IF(ISNUMBER(P45),P45,NA()),IF($E$4=2,IF(ISNUMBER(P46),P46,NA()),NA())) -> €8,713
C45: Base | M45: 8,713 | N45: 8,713 | O45: 8,713 | P45: 8,713
C46: Downside | M46: 8,713 | N46: 8,713 | O46: 8,713 | P46: 8,713
C47: Consultant Paid FTE — active | E47: ='Actual inputs'!E21 -> 7.0 | F47: ='Actual inputs'!F21 -> 7.0 | G47: ='Actual inputs'!G21 -> 7.0 | H47: ='Actual inputs'!H21 -> 7.0 | I47: ='Actual inputs'!I21 -> 7.0 | J47: ='Actual inputs'!J21 -> 7.0 | K47: ='Actual inputs'!K21 -> 7.0 | L47: ='Actual inputs'!L21 -> 7.0 | M47: =IF($E$4=1,IF(ISNUMBER(M48),M48,NA()),IF($E$4=2,IF(ISNUMBER(M49),M49,NA()),NA())) -> 7.0 | N47: =IF($E$4=1,IF(ISNUMBER(N48),N48,NA()),IF($E$4=2,IF(ISNUMBER(N49),N49,NA()),NA())) -> 7.0 | O47: =IF($E$4=1,IF(ISNUMBER(O48),O48,NA()),IF($E$4=2,IF(ISNUMBER(O49),O49,NA()),NA())) -> 7.0 | P47: =IF($E$4=1,IF(ISNUMBER(P48),P48,NA()),IF($E$4=2,IF(ISNUMBER(P49),P49,NA()),NA())) -> 7.0
C48: Base | M48: 7.0 | N48: 7.0 | O48: 7.0 | P48: 7.0
C49: Downside | M49: 7.0 | N49: 7.0 | O49: 7.0 | P49: 7.0
C50: Consultant Monthly loaded pay — active | E50: ='Actual inputs'!E22 -> €6,500 | F50: ='Actual inputs'!F22 -> €6,500 | G50: ='Actual inputs'!G22 -> €6,500 | H50: ='Actual inputs'!H22 -> €6,500 | I50: ='Actual inputs'!I22 -> €6,500 | J50: ='Actual inputs'!J22 -> €6,500 | K50: ='Actual inputs'!K22 -> €6,500 | L50: ='Actual inputs'!L22 -> €6,500 | M50: =IF($E$4=1,IF(ISNUMBER(M51),M51,NA()),IF($E$4=2,IF(ISNUMBER(M52),M52,NA()),NA())) -> €6,663 | N50: =IF($E$4=1,IF(ISNUMBER(N51),N51,NA()),IF($E$4=2,IF(ISNUMBER(N52),N52,NA()),NA())) -> €6,663 | O50: =IF($E$4=1,IF(ISNUMBER(O51),O51,NA()),IF($E$4=2,IF(ISNUMBER(O52),O52,NA()),NA())) -> €6,663 | P50: =IF($E$4=1,IF(ISNUMBER(P51),P51,NA()),IF($E$4=2,IF(ISNUMBER(P52),P52,NA()),NA())) -> €6,663
C51: Base | M51: 6,663 | N51: 6,663 | O51: 6,663 | P51: 6,663
C52: Downside | M52: 6,663 | N52: 6,663 | O52: 6,663 | P52: 6,663
C53: Analyst Paid FTE — active | E53: ='Actual inputs'!E23 -> 4.0 | F53: ='Actual inputs'!F23 -> 4.0 | G53: ='Actual inputs'!G23 -> 4.0 | H53: ='Actual inputs'!H23 -> 4.0 | I53: ='Actual inputs'!I23 -> 4.0 | J53: ='Actual inputs'!J23 -> 4.0 | K53: ='Actual inputs'!K23 -> 4.0 | L53: ='Actual inputs'!L23 -> 4.0 | M53: =IF($E$4=1,IF(ISNUMBER(M54),M54,NA()),IF($E$4=2,IF(ISNUMBER(M55),M55,NA()),NA())) -> 4.0 | N53: =IF($E$4=1,IF(ISNUMBER(N54),N54,NA()),IF($E$4=2,IF(ISNUMBER(N55),N55,NA()),NA())) -> 4.0 | O53: =IF($E$4=1,IF(ISNUMBER(O54),O54,NA()),IF($E$4=2,IF(ISNUMBER(O55),O55,NA()),NA())) -> 4.0 | P53: =IF($E$4=1,IF(ISNUMBER(P54),P54,NA()),IF($E$4=2,IF(ISNUMBER(P55),P55,NA()),NA())) -> 4.0
C54: Base | M54: 4.0 | N54: 4.0 | O54: 4.0 | P54: 4.0
C55: Downside | M55: 4.0 | N55: 4.0 | O55: 4.0 | P55: 4.0
C56: Analyst Monthly loaded pay — active | E56: ='Actual inputs'!E24 -> €4,500 | F56: ='Actual inputs'!F24 -> €4,500 | G56: ='Actual inputs'!G24 -> €4,500 | H56: ='Actual inputs'!H24 -> €4,500 | I56: ='Actual inputs'!I24 -> €4,500 | J56: ='Actual inputs'!J24 -> €4,500 | K56: ='Actual inputs'!K24 -> €4,500 | L56: ='Actual inputs'!L24 -> €4,500 | M56: =IF($E$4=1,IF(ISNUMBER(M57),M57,NA()),IF($E$4=2,IF(ISNUMBER(M58),M58,NA()),NA())) -> €4,613 | N56: =IF($E$4=1,IF(ISNUMBER(N57),N57,NA()),IF($E$4=2,IF(ISNUMBER(N58),N58,NA()),NA())) -> €4,613 | O56: =IF($E$4=1,IF(ISNUMBER(O57),O57,NA()),IF($E$4=2,IF(ISNUMBER(O58),O58,NA()),NA())) -> €4,613 | P56: =IF($E$4=1,IF(ISNUMBER(P57),P57,NA()),IF($E$4=2,IF(ISNUMBER(P58),P58,NA()),NA())) -> €4,613
C57: Base | M57: 4,613 | N57: 4,613 | O57: 4,613 | P57: 4,613
C58: Downside | M58: 4,613 | N58: 4,613 | O58: 4,613 | P58: 4,613
C59: PS-01 Recorded chargeable hours — active | E59: ='Actual inputs'!E25 -> 240.0 | F59: ='Actual inputs'!F25 -> 250.0 | G59: ='Actual inputs'!G25 -> 250.0 | H59: ='Actual inputs'!H25 -> 260.0 | I59: ='Actual inputs'!I25 -> 260.0 | J59: ='Actual inputs'!J25 -> 270.0 | K59: ='Actual inputs'!K25 -> 270.0 | L59: ='Actual inputs'!L25 -> 280.0 | M59: =IF($E$4=1,IF(ISNUMBER(M60),M60,NA()),IF($E$4=2,IF(ISNUMBER(M61),M61,NA()),NA())) -> 290.0 | N59: =IF($E$4=1,IF(ISNUMBER(N60),N60,NA()),IF($E$4=2,IF(ISNUMBER(N61),N61,NA()),NA())) -> 290.0 | O59: =IF($E$4=1,IF(ISNUMBER(O60),O60,NA()),IF($E$4=2,IF(ISNUMBER(O61),O61,NA()),NA())) -> 300.0 | P59: =IF($E$4=1,IF(ISNUMBER(P60),P60,NA()),IF($E$4=2,IF(ISNUMBER(P61),P61,NA()),NA())) -> 300.0
C60: Base | M60: 290.0 | N60: 290.0 | O60: 300.0 | P60: 300.0
C61: Downside | M61: 255.2 | N61: 255.2 | O61: 264.0 | P61: 264.0
C62: PS-01 Contract billing rate per hour — active | E62: ='Actual inputs'!E26 -> €140 | F62: ='Actual inputs'!F26 -> €140 | G62: ='Actual inputs'!G26 -> €140 | H62: ='Actual inputs'!H26 -> €140 | I62: ='Actual inputs'!I26 -> €140 | J62: ='Actual inputs'!J26 -> €140 | K62: ='Actual inputs'!K26 -> €140 | L62: ='Actual inputs'!L26 -> €140 | M62: =IF($E$4=1,IF(ISNUMBER(M63),M63,NA()),IF($E$4=2,IF(ISNUMBER(M64),M64,NA()),NA())) -> €140 | N62: =IF($E$4=1,IF(ISNUMBER(N63),N63,NA()),IF($E$4=2,IF(ISNUMBER(N64),N64,NA()),NA())) -> €140 | O62: =IF($E$4=1,IF(ISNUMBER(O63),O63,NA()),IF($E$4=2,IF(ISNUMBER(O64),O64,NA()),NA())) -> €140 | P62: =IF($E$4=1,IF(ISNUMBER(P63),P63,NA()),IF($E$4=2,IF(ISNUMBER(P64),P64,NA()),NA())) -> €140
C63: Base | M63: 140 | N63: 140 | O63: 140 | P63: 140
C64: Downside | M64: 140 | N64: 140 | O64: 140 | P64: 140
C65: PS-01 Realisation of chargeable value — active | E65: ='Actual inputs'!E27 -> 97.0% | F65: ='Actual inputs'!F27 -> 97.0% | G65: ='Actual inputs'!G27 -> 97.0% | H65: ='Actual inputs'!H27 -> 97.0% | I65: ='Actual inputs'!I27 -> 97.0% | J65: ='Actual inputs'!J27 -> 97.0% | K65: ='Actual inputs'!K27 -> 97.0% | L65: ='Actual inputs'!L27 -> 97.0% | M65: =IF($E$4=1,IF(ISNUMBER(M66),M66,NA()),IF($E$4=2,IF(ISNUMBER(M67),M67,NA()),NA())) -> 97.0% | N65: =IF($E$4=1,IF(ISNUMBER(N66),N66,NA()),IF($E$4=2,IF(ISNUMBER(N67),N67,NA()),NA())) -> 97.0% | O65: =IF($E$4=1,IF(ISNUMBER(O66),O66,NA()),IF($E$4=2,IF(ISNUMBER(O67),O67,NA()),NA())) -> 97.0% | P65: =IF($E$4=1,IF(ISNUMBER(P66),P66,NA()),IF($E$4=2,IF(ISNUMBER(P67),P67,NA()),NA())) -> 97.0%
C66: Base | M66: 97.0% | N66: 97.0% | O66: 97.0% | P66: 97.0%
C67: Downside | M67: 91.5% | N67: 91.5% | O67: 91.5% | P67: 91.5%
C68: PS-01 Invoices issued — active | E68: ='Actual inputs'!E28 -> €29,333 | F68: ='Actual inputs'!F28 -> €30,555 | G68: ='Actual inputs'!G28 -> €30,555 | H68: ='Actual inputs'!H28 -> €31,777 | I68: ='Actual inputs'!I28 -> €31,777 | J68: ='Actual inputs'!J28 -> €32,999 | K68: ='Actual inputs'!K28 -> €32,999 | L68: ='Actual inputs'!L28 -> €34,222 | M68: =IF($E$4=1,IF(ISNUMBER(M69),M69,NA()),IF($E$4=2,IF(ISNUMBER(M70),M70,NA()),NA())) -> €40,563 | N68: =IF($E$4=1,IF(ISNUMBER(N69),N69,NA()),IF($E$4=2,IF(ISNUMBER(N70),N70,NA()),NA())) -> €40,563 | O68: =IF($E$4=1,IF(ISNUMBER(O69),O69,NA()),IF($E$4=2,IF(ISNUMBER(O70),O70,NA()),NA())) -> €41,962 | P68: =IF($E$4=1,IF(ISNUMBER(P69),P69,NA()),IF($E$4=2,IF(ISNUMBER(P70),P70,NA()),NA())) -> €54,999
C69: Base | M69: 40,563 | N69: 40,563 | O69: 41,962 | P69: 54,999
C70: Downside | M70: 31,640 | N70: 31,640 | O70: 32,731 | P70: 42,899
C71: PS-01 Unbilled recoverability allowance — active | E71: ='Actual inputs'!E29 -> 2.0% | F71: ='Actual inputs'!F29 -> 2.0% | G71: ='Actual inputs'!G29 -> 2.0% | H71: ='Actual inputs'!H29 -> 2.0% | I71: ='Actual inputs'!I29 -> 2.0% | J71: ='Actual inputs'!J29 -> 2.0% | K71: ='Actual inputs'!K29 -> 2.0% | L71: ='Actual inputs'!L29 -> 2.0% | M71: =IF($E$4=1,IF(ISNUMBER(M72),M72,NA()),IF($E$4=2,IF(ISNUMBER(M73),M73,NA()),NA())) -> 2.0% | N71: =IF($E$4=1,IF(ISNUMBER(N72),N72,NA()),IF($E$4=2,IF(ISNUMBER(N73),N73,NA()),NA())) -> 2.0% | O71: =IF($E$4=1,IF(ISNUMBER(O72),O72,NA()),IF($E$4=2,IF(ISNUMBER(O73),O73,NA()),NA())) -> 2.0% | P71: =IF($E$4=1,IF(ISNUMBER(P72),P72,NA()),IF($E$4=2,IF(ISNUMBER(P73),P73,NA()),NA())) -> 2.0%
C72: Base | M72: 2.0% | N72: 2.0% | O72: 2.0% | P72: 2.0%
C73: Downside | M73: 14.0% | N73: 14.0% | O73: 14.0% | P73: 14.0%
C74: PS-02 Recorded chargeable hours — active | E74: ='Actual inputs'!E30 -> 150.0 | F74: ='Actual inputs'!F30 -> 190.0 | G74: ='Actual inputs'!G30 -> 250.0 | H74: ='Actual inputs'!H30 -> 300.0 | I74: ='Actual inputs'!I30 -> 350.0 | J74: ='Actual inputs'!J30 -> 400.0 | K74: ='Actual inputs'!K30 -> 420.0 | L74: ='Actual inputs'!L30 -> 460.0 | M74: =IF($E$4=1,IF(ISNUMBER(M75),M75,NA()),IF($E$4=2,IF(ISNUMBER(M76),M76,NA()),NA())) -> 450.0 | N74: =IF($E$4=1,IF(ISNUMBER(N75),N75,NA()),IF($E$4=2,IF(ISNUMBER(N76),N76,NA()),NA())) -> 430.0 | O74: =IF($E$4=1,IF(ISNUMBER(O75),O75,NA()),IF($E$4=2,IF(ISNUMBER(O76),O76,NA()),NA())) -> 400.0 | P74: =IF($E$4=1,IF(ISNUMBER(P75),P75,NA()),IF($E$4=2,IF(ISNUMBER(P76),P76,NA()),NA())) -> 350.0
C75: Base | M75: 450.0 | N75: 430.0 | O75: 400.0 | P75: 350.0
C76: Downside | M76: 396.0 | N76: 378.4 | O76: 352.0 | P76: 308.0
C77: PS-02 Contract billing rate per hour — active | E77: ='Actual inputs'!E31 -> €130 | F77: ='Actual inputs'!F31 -> €130 | G77: ='Actual inputs'!G31 -> €130 | H77: ='Actual inputs'!H31 -> €130 | I77: ='Actual inputs'!I31 -> €130 | J77: ='Actual inputs'!J31 -> €130 | K77: ='Actual inputs'!K31 -> €130 | L77: ='Actual inputs'!L31 -> €130 | M77: =IF($E$4=1,IF(ISNUMBER(M78),M78,NA()),IF($E$4=2,IF(ISNUMBER(M79),M79,NA()),NA())) -> €130 | N77: =IF($E$4=1,IF(ISNUMBER(N78),N78,NA()),IF($E$4=2,IF(ISNUMBER(N79),N79,NA()),NA())) -> €130 | O77: =IF($E$4=1,IF(ISNUMBER(O78),O78,NA()),IF($E$4=2,IF(ISNUMBER(O79),O79,NA()),NA())) -> €130 | P77: =IF($E$4=1,IF(ISNUMBER(P78),P78,NA()),IF($E$4=2,IF(ISNUMBER(P79),P79,NA()),NA())) -> €130
C78: Base | M78: 130 | N78: 130 | O78: 130 | P78: 130
C79: Downside | M79: 130 | N79: 130 | O79: 130 | P79: 130
C80: PS-02 Realisation of chargeable value — active | E80: ='Actual inputs'!E32 -> 94.0% | F80: ='Actual inputs'!F32 -> 94.0% | G80: ='Actual inputs'!G32 -> 94.0% | H80: ='Actual inputs'!H32 -> 94.0% | I80: ='Actual inputs'!I32 -> 94.0% | J80: ='Actual inputs'!J32 -> 94.0% | K80: ='Actual inputs'!K32 -> 94.0% | L80: ='Actual inputs'!L32 -> 94.0% | M80: =IF($E$4=1,IF(ISNUMBER(M81),M81,NA()),IF($E$4=2,IF(ISNUMBER(M82),M82,NA()),NA())) -> 94.0% | N80: =IF($E$4=1,IF(ISNUMBER(N81),N81,NA()),IF($E$4=2,IF(ISNUMBER(N82),N82,NA()),NA())) -> 94.0% | O80: =IF($E$4=1,IF(ISNUMBER(O81),O81,NA()),IF($E$4=2,IF(ISNUMBER(O82),O82,NA()),NA())) -> 94.0% | P80: =IF($E$4=1,IF(ISNUMBER(P81),P81,NA()),IF($E$4=2,IF(ISNUMBER(P82),P82,NA()),NA())) -> 94.0%
C81: Base | M81: 94.0% | N81: 94.0% | O81: 94.0% | P81: 94.0%
C82: Downside | M82: 88.5% | N82: 88.5% | O82: 88.5% | P82: 88.5%
C83: PS-02 Invoices issued — active | E83: ='Actual inputs'!E33 -> €16,497 | F83: ='Actual inputs'!F33 -> €20,896 | G83: ='Actual inputs'!G33 -> €27,495 | H83: ='Actual inputs'!H33 -> €32,994 | I83: ='Actual inputs'!I33 -> €38,493 | J83: ='Actual inputs'!J33 -> €43,992 | K83: ='Actual inputs'!K33 -> €46,192 | L83: ='Actual inputs'!L33 -> €50,591 | M83: =IF($E$4=1,IF(ISNUMBER(M84),M84,NA()),IF($E$4=2,IF(ISNUMBER(M85),M85,NA()),NA())) -> €56,640 | N83: =IF($E$4=1,IF(ISNUMBER(N84),N84,NA()),IF($E$4=2,IF(ISNUMBER(N85),N85,NA()),NA())) -> €54,122 | O83: =IF($E$4=1,IF(ISNUMBER(O84),O84,NA()),IF($E$4=2,IF(ISNUMBER(O85),O85,NA()),NA())) -> €50,346 | P83: =IF($E$4=1,IF(ISNUMBER(P84),P84,NA()),IF($E$4=2,IF(ISNUMBER(P85),P85,NA()),NA())) -> €57,740
C84: Base | M84: 56,640 | N84: 54,122 | O84: 50,346 | P84: 57,740
C85: Downside | M85: 44,179 | N85: 42,215 | O85: 39,270 | P85: 45,037
C86: PS-02 Unbilled recoverability allowance — active | E86: ='Actual inputs'!E34 -> 8.0% | F86: ='Actual inputs'!F34 -> 8.0% | G86: ='Actual inputs'!G34 -> 8.0% | H86: ='Actual inputs'!H34 -> 8.0% | I86: ='Actual inputs'!I34 -> 8.0% | J86: ='Actual inputs'!J34 -> 8.0% | K86: ='Actual inputs'!K34 -> 8.0% | L86: ='Actual inputs'!L34 -> 8.0% | M86: =IF($E$4=1,IF(ISNUMBER(M87),M87,NA()),IF($E$4=2,IF(ISNUMBER(M88),M88,NA()),NA())) -> 8.0% | N86: =IF($E$4=1,IF(ISNUMBER(N87),N87,NA()),IF($E$4=2,IF(ISNUMBER(N88),N88,NA()),NA())) -> 8.0% | O86: =IF($E$4=1,IF(ISNUMBER(O87),O87,NA()),IF($E$4=2,IF(ISNUMBER(O88),O88,NA()),NA())) -> 8.0% | P86: =IF($E$4=1,IF(ISNUMBER(P87),P87,NA()),IF($E$4=2,IF(ISNUMBER(P88),P88,NA()),NA())) -> 8.0%
C87: Base | M87: 8.0% | N87: 8.0% | O87: 8.0% | P87: 8.0%
C88: Downside | M88: 20.0% | N88: 20.0% | O88: 20.0% | P88: 20.0%
C89: PS-03 Recorded chargeable hours — active | E89: ='Actual inputs'!E35 -> 260.0 | F89: ='Actual inputs'!F35 -> 270.0 | G89: ='Actual inputs'!G35 -> 270.0 | H89: ='Actual inputs'!H35 -> 280.0 | I89: ='Actual inputs'!I35 -> 280.0 | J89: ='Actual inputs'!J35 -> 300.0 | K89: ='Actual inputs'!K35 -> 300.0 | L89: ='Actual inputs'!L35 -> 310.0 | M89: =IF($E$4=1,IF(ISNUMBER(M90),M90,NA()),IF($E$4=2,IF(ISNUMBER(M91),M91,NA()),NA())) -> 310.0 | N89: =IF($E$4=1,IF(ISNUMBER(N90),N90,NA()),IF($E$4=2,IF(ISNUMBER(N91),N91,NA()),NA())) -> 320.0 | O89: =IF($E$4=1,IF(ISNUMBER(O90),O90,NA()),IF($E$4=2,IF(ISNUMBER(O91),O91,NA()),NA())) -> 320.0 | P89: =IF($E$4=1,IF(ISNUMBER(P90),P90,NA()),IF($E$4=2,IF(ISNUMBER(P91),P91,NA()),NA())) -> 320.0
C90: Base | M90: 310.0 | N90: 320.0 | O90: 320.0 | P90: 320.0
C91: Downside | M91: 272.8 | N91: 281.6 | O91: 281.6 | P91: 281.6
C92: PS-03 Contract billing rate per hour — active | E92: ='Actual inputs'!E36 -> €125 | F92: ='Actual inputs'!F36 -> €125 | G92: ='Actual inputs'!G36 -> €125 | H92: ='Actual inputs'!H36 -> €125 | I92: ='Actual inputs'!I36 -> €125 | J92: ='Actual inputs'!J36 -> €125 | K92: ='Actual inputs'!K36 -> €125 | L92: ='Actual inputs'!L36 -> €125 | M92: =IF($E$4=1,IF(ISNUMBER(M93),M93,NA()),IF($E$4=2,IF(ISNUMBER(M94),M94,NA()),NA())) -> €125 | N92: =IF($E$4=1,IF(ISNUMBER(N93),N93,NA()),IF($E$4=2,IF(ISNUMBER(N94),N94,NA()),NA())) -> €125 | O92: =IF($E$4=1,IF(ISNUMBER(O93),O93,NA()),IF($E$4=2,IF(ISNUMBER(O94),O94,NA()),NA())) -> €125 | P92: =IF($E$4=1,IF(ISNUMBER(P93),P93,NA()),IF($E$4=2,IF(ISNUMBER(P94),P94,NA()),NA())) -> €125
C93: Base | M93: 125 | N93: 125 | O93: 125 | P93: 125
C94: Downside | M94: 125 | N94: 125 | O94: 125 | P94: 125
C95: PS-03 Realisation of chargeable value — active | E95: ='Actual inputs'!E37 -> 96.0% | F95: ='Actual inputs'!F37 -> 96.0% | G95: ='Actual inputs'!G37 -> 96.0% | H95: ='Actual inputs'!H37 -> 96.0% | I95: ='Actual inputs'!I37 -> 96.0% | J95: ='Actual inputs'!J37 -> 96.0% | K95: ='Actual inputs'!K37 -> 96.0% | L95: ='Actual inputs'!L37 -> 96.0% | M95: =IF($E$4=1,IF(ISNUMBER(M96),M96,NA()),IF($E$4=2,IF(ISNUMBER(M97),M97,NA()),NA())) -> 96.0% | N95: =IF($E$4=1,IF(ISNUMBER(N96),N96,NA()),IF($E$4=2,IF(ISNUMBER(N97),N97,NA()),NA())) -> 96.0% | O95: =IF($E$4=1,IF(ISNUMBER(O96),O96,NA()),IF($E$4=2,IF(ISNUMBER(O97),O97,NA()),NA())) -> 96.0% | P95: =IF($E$4=1,IF(ISNUMBER(P96),P96,NA()),IF($E$4=2,IF(ISNUMBER(P97),P97,NA()),NA())) -> 96.0%
C96: Base | M96: 96.0% | N96: 96.0% | O96: 96.0% | P96: 96.0%
C97: Downside | M97: 90.5% | N97: 90.5% | O97: 90.5% | P97: 90.5%
C98: PS-03 Invoices issued — active | E98: ='Actual inputs'!E38 -> €28,080 | F98: ='Actual inputs'!F38 -> €29,160 | G98: ='Actual inputs'!G38 -> €29,160 | H98: ='Actual inputs'!H38 -> €30,240 | I98: ='Actual inputs'!I38 -> €30,240 | J98: ='Actual inputs'!J38 -> €32,400 | K98: ='Actual inputs'!K38 -> €32,400 | L98: ='Actual inputs'!L38 -> €33,480 | M98: =IF($E$4=1,IF(ISNUMBER(M99),M99,NA()),IF($E$4=2,IF(ISNUMBER(M100),M100,NA()),NA())) -> €38,316 | N98: =IF($E$4=1,IF(ISNUMBER(N99),N99,NA()),IF($E$4=2,IF(ISNUMBER(N100),N100,NA()),NA())) -> €39,552 | O98: =IF($E$4=1,IF(ISNUMBER(O99),O99,NA()),IF($E$4=2,IF(ISNUMBER(O100),O100,NA()),NA())) -> €39,552 | P98: =IF($E$4=1,IF(ISNUMBER(P99),P99,NA()),IF($E$4=2,IF(ISNUMBER(P100),P100,NA()),NA())) -> €51,840
C99: Base | M99: 38,316 | N99: 39,552 | O99: 39,552 | P99: 51,840
C100: Downside | M100: 29,886 | N100: 30,851 | O100: 30,851 | P100: 40,435
C101: PS-03 Unbilled recoverability allowance — active | E101: ='Actual inputs'!E39 -> 2.5% | F101: ='Actual inputs'!F39 -> 2.5% | G101: ='Actual inputs'!G39 -> 2.5% | H101: ='Actual inputs'!H39 -> 2.5% | I101: ='Actual inputs'!I39 -> 2.5% | J101: ='Actual inputs'!J39 -> 2.5% | K101: ='Actual inputs'!K39 -> 2.5% | L101: ='Actual inputs'!L39 -> 2.5% | M101: =IF($E$4=1,IF(ISNUMBER(M102),M102,NA()),IF($E$4=2,IF(ISNUMBER(M103),M103,NA()),NA())) -> 2.5% | N101: =IF($E$4=1,IF(ISNUMBER(N102),N102,NA()),IF($E$4=2,IF(ISNUMBER(N103),N103,NA()),NA())) -> 2.5% | O101: =IF($E$4=1,IF(ISNUMBER(O102),O102,NA()),IF($E$4=2,IF(ISNUMBER(O103),O103,NA()),NA())) -> 2.5% | P101: =IF($E$4=1,IF(ISNUMBER(P102),P102,NA()),IF($E$4=2,IF(ISNUMBER(P103),P103,NA()),NA())) -> 2.5%
C102: Base | M102: 2.5% | N102: 2.5% | O102: 2.5% | P102: 2.5%
C103: Downside | M103: 14.5% | N103: 14.5% | O103: 14.5% | P103: 14.5%
C104: PS-04 Recorded chargeable hours — active | E104: ='Actual inputs'!E40 -> 220.0 | F104: ='Actual inputs'!F40 -> 250.0 | G104: ='Actual inputs'!G40 -> 280.0 | H104: ='Actual inputs'!H40 -> 280.0 | I104: ='Actual inputs'!I40 -> 310.0 | J104: ='Actual inputs'!J40 -> 340.0 | K104: ='Actual inputs'!K40 -> 360.0 | L104: ='Actual inputs'!L40 -> 380.0 | M104: =IF($E$4=1,IF(ISNUMBER(M105),M105,NA()),IF($E$4=2,IF(ISNUMBER(M106),M106,NA()),NA())) -> 380.0 | N104: =IF($E$4=1,IF(ISNUMBER(N105),N105,NA()),IF($E$4=2,IF(ISNUMBER(N106),N106,NA()),NA())) -> 390.0 | O104: =IF($E$4=1,IF(ISNUMBER(O105),O105,NA()),IF($E$4=2,IF(ISNUMBER(O106),O106,NA()),NA())) -> 400.0 | P104: =IF($E$4=1,IF(ISNUMBER(P105),P105,NA()),IF($E$4=2,IF(ISNUMBER(P106),P106,NA()),NA())) -> 380.0
C105: Base | M105: 380.0 | N105: 390.0 | O105: 400.0 | P105: 380.0
C106: Downside | M106: 273.6 | N106: 280.8 | O106: 288.0 | P106: 273.6
C107: PS-04 Contract billing rate per hour — active | E107: ='Actual inputs'!E41 -> €160 | F107: ='Actual inputs'!F41 -> €160 | G107: ='Actual inputs'!G41 -> €160 | H107: ='Actual inputs'!H41 -> €160 | I107: ='Actual inputs'!I41 -> €160 | J107: ='Actual inputs'!J41 -> €160 | K107: ='Actual inputs'!K41 -> €160 | L107: ='Actual inputs'!L41 -> €160 | M107: =IF($E$4=1,IF(ISNUMBER(M108),M108,NA()),IF($E$4=2,IF(ISNUMBER(M109),M109,NA()),NA())) -> €160 | N107: =IF($E$4=1,IF(ISNUMBER(N108),N108,NA()),IF($E$4=2,IF(ISNUMBER(N109),N109,NA()),NA())) -> €160 | O107: =IF($E$4=1,IF(ISNUMBER(O108),O108,NA()),IF($E$4=2,IF(ISNUMBER(O109),O109,NA()),NA())) -> €160 | P107: =IF($E$4=1,IF(ISNUMBER(P108),P108,NA()),IF($E$4=2,IF(ISNUMBER(P109),P109,NA()),NA())) -> €160
C108: Base | M108: 160 | N108: 160 | O108: 160 | P108: 160
C109: Downside | M109: 160 | N109: 160 | O109: 160 | P109: 160
C110: PS-04 Realisation of chargeable value — active | E110: ='Actual inputs'!E42 -> 92.0% | F110: ='Actual inputs'!F42 -> 92.0% | G110: ='Actual inputs'!G42 -> 92.0% | H110: ='Actual inputs'!H42 -> 92.0% | I110: ='Actual inputs'!I42 -> 92.0% | J110: ='Actual inputs'!J42 -> 92.0% | K110: ='Actual inputs'!K42 -> 92.0% | L110: ='Actual inputs'!L42 -> 92.0% | M110: =IF($E$4=1,IF(ISNUMBER(M111),M111,NA()),IF($E$4=2,IF(ISNUMBER(M112),M112,NA()),NA())) -> 92.0% | N110: =IF($E$4=1,IF(ISNUMBER(N111),N111,NA()),IF($E$4=2,IF(ISNUMBER(N112),N112,NA()),NA())) -> 92.0% | O110: =IF($E$4=1,IF(ISNUMBER(O111),O111,NA()),IF($E$4=2,IF(ISNUMBER(O112),O112,NA()),NA())) -> 92.0% | P110: =IF($E$4=1,IF(ISNUMBER(P111),P111,NA()),IF($E$4=2,IF(ISNUMBER(P112),P112,NA()),NA())) -> 92.0%
C111: Base | M111: 92.0% | N111: 92.0% | O111: 92.0% | P111: 92.0%
C112: Downside | M112: 86.5% | N112: 86.5% | O112: 86.5% | P112: 86.5%
C113: PS-04 Invoices issued — active | E113: ='Actual inputs'!E43 -> €29,146 | F113: ='Actual inputs'!F43 -> €33,120 | G113: ='Actual inputs'!G43 -> €37,094 | H113: ='Actual inputs'!H43 -> €37,094 | I113: ='Actual inputs'!I43 -> €41,069 | J113: ='Actual inputs'!J43 -> €45,043 | K113: ='Actual inputs'!K43 -> €47,693 | L113: ='Actual inputs'!L43 -> €50,342 | M113: =IF($E$4=1,IF(ISNUMBER(M114),M114,NA()),IF($E$4=2,IF(ISNUMBER(M115),M115,NA()),NA())) -> €57,614 | N113: =IF($E$4=1,IF(ISNUMBER(N114),N114,NA()),IF($E$4=2,IF(ISNUMBER(N115),N115,NA()),NA())) -> €59,130 | O113: =IF($E$4=1,IF(ISNUMBER(O114),O114,NA()),IF($E$4=2,IF(ISNUMBER(O115),O115,NA()),NA())) -> €60,646 | P113: =IF($E$4=1,IF(ISNUMBER(P114),P114,NA()),IF($E$4=2,IF(ISNUMBER(P115),P115,NA()),NA())) -> €75,514
C114: Base | M114: 57,614 | N114: 59,130 | O114: 60,646 | P114: 75,514
C115: Downside | M115: 44,939 | N115: 46,122 | O115: 47,304 | P115: 58,901
C116: PS-04 Unbilled recoverability allowance — active | E116: ='Actual inputs'!E44 -> 14.0% | F116: ='Actual inputs'!F44 -> 14.0% | G116: ='Actual inputs'!G44 -> 14.0% | H116: ='Actual inputs'!H44 -> 14.0% | I116: ='Actual inputs'!I44 -> 14.0% | J116: ='Actual inputs'!J44 -> 14.0% | K116: ='Actual inputs'!K44 -> 14.0% | L116: ='Actual inputs'!L44 -> 14.0% | M116: =IF($E$4=1,IF(ISNUMBER(M117),M117,NA()),IF($E$4=2,IF(ISNUMBER(M118),M118,NA()),NA())) -> 14.0% | N116: =IF($E$4=1,IF(ISNUMBER(N117),N117,NA()),IF($E$4=2,IF(ISNUMBER(N118),N118,NA()),NA())) -> 14.0% | O116: =IF($E$4=1,IF(ISNUMBER(O117),O117,NA()),IF($E$4=2,IF(ISNUMBER(O118),O118,NA()),NA())) -> 14.0% | P116: =IF($E$4=1,IF(ISNUMBER(P117),P117,NA()),IF($E$4=2,IF(ISNUMBER(P118),P118,NA()),NA())) -> 14.0%
C117: Base | M117: 14.0% | N117: 14.0% | O117: 14.0% | P117: 14.0%
C118: Downside | M118: 26.0% | N118: 26.0% | O118: 26.0% | P118: 26.0%
C119: PS-05 Recorded chargeable hours — active | E119: ='Actual inputs'!E45 -> 420.0 | F119: ='Actual inputs'!F45 -> 430.0 | G119: ='Actual inputs'!G45 -> 430.0 | H119: ='Actual inputs'!H45 -> 440.0 | I119: ='Actual inputs'!I45 -> 440.0 | J119: ='Actual inputs'!J45 -> 450.0 | K119: ='Actual inputs'!K45 -> 450.0 | L119: ='Actual inputs'!L45 -> 460.0 | M119: =IF($E$4=1,IF(ISNUMBER(M120),M120,NA()),IF($E$4=2,IF(ISNUMBER(M121),M121,NA()),NA())) -> 470.0 | N119: =IF($E$4=1,IF(ISNUMBER(N120),N120,NA()),IF($E$4=2,IF(ISNUMBER(N121),N121,NA()),NA())) -> 470.0 | O119: =IF($E$4=1,IF(ISNUMBER(O120),O120,NA()),IF($E$4=2,IF(ISNUMBER(O121),O121,NA()),NA())) -> 480.0 | P119: =IF($E$4=1,IF(ISNUMBER(P120),P120,NA()),IF($E$4=2,IF(ISNUMBER(P121),P121,NA()),NA())) -> 480.0
C120: Base | M120: 470.0 | N120: 470.0 | O120: 480.0 | P120: 480.0
C121: Downside | M121: 413.6 | N121: 413.6 | O121: 422.4 | P121: 422.4
C122: PS-05 Contract billing rate per hour — active | E122: ='Actual inputs'!E46 -> €110 | F122: ='Actual inputs'!F46 -> €110 | G122: ='Actual inputs'!G46 -> €110 | H122: ='Actual inputs'!H46 -> €110 | I122: ='Actual inputs'!I46 -> €110 | J122: ='Actual inputs'!J46 -> €110 | K122: ='Actual inputs'!K46 -> €110 | L122: ='Actual inputs'!L46 -> €110 | M122: =IF($E$4=1,IF(ISNUMBER(M123),M123,NA()),IF($E$4=2,IF(ISNUMBER(M124),M124,NA()),NA())) -> €110 | N122: =IF($E$4=1,IF(ISNUMBER(N123),N123,NA()),IF($E$4=2,IF(ISNUMBER(N124),N124,NA()),NA())) -> €110 | O122: =IF($E$4=1,IF(ISNUMBER(O123),O123,NA()),IF($E$4=2,IF(ISNUMBER(O124),O124,NA()),NA())) -> €110 | P122: =IF($E$4=1,IF(ISNUMBER(P123),P123,NA()),IF($E$4=2,IF(ISNUMBER(P124),P124,NA()),NA())) -> €110
C123: Base | M123: 110 | N123: 110 | O123: 110 | P123: 110
C124: Downside | M124: 110 | N124: 110 | O124: 110 | P124: 110
C125: PS-05 Realisation of chargeable value — active | E125: ='Actual inputs'!E47 -> 95.0% | F125: ='Actual inputs'!F47 -> 95.0% | G125: ='Actual inputs'!G47 -> 95.0% | H125: ='Actual inputs'!H47 -> 95.0% | I125: ='Actual inputs'!I47 -> 95.0% | J125: ='Actual inputs'!J47 -> 95.0% | K125: ='Actual inputs'!K47 -> 95.0% | L125: ='Actual inputs'!L47 -> 95.0% | M125: =IF($E$4=1,IF(ISNUMBER(M126),M126,NA()),IF($E$4=2,IF(ISNUMBER(M127),M127,NA()),NA())) -> 95.0% | N125: =IF($E$4=1,IF(ISNUMBER(N126),N126,NA()),IF($E$4=2,IF(ISNUMBER(N127),N127,NA()),NA())) -> 95.0% | O125: =IF($E$4=1,IF(ISNUMBER(O126),O126,NA()),IF($E$4=2,IF(ISNUMBER(O127),O127,NA()),NA())) -> 95.0% | P125: =IF($E$4=1,IF(ISNUMBER(P126),P126,NA()),IF($E$4=2,IF(ISNUMBER(P127),P127,NA()),NA())) -> 95.0%
C126: Base | M126: 95.0% | N126: 95.0% | O126: 95.0% | P126: 95.0%
C127: Downside | M127: 89.5% | N127: 89.5% | O127: 89.5% | P127: 89.5%
C128: PS-05 Invoices issued — active | E128: ='Actual inputs'!E48 -> €39,501 | F128: ='Actual inputs'!F48 -> €40,442 | G128: ='Actual inputs'!G48 -> €40,442 | H128: ='Actual inputs'!H48 -> €41,382 | I128: ='Actual inputs'!I48 -> €41,382 | J128: ='Actual inputs'!J48 -> €42,323 | K128: ='Actual inputs'!K48 -> €42,323 | L128: ='Actual inputs'!L48 -> €43,263 | M128: =IF($E$4=1,IF(ISNUMBER(M129),M129,NA()),IF($E$4=2,IF(ISNUMBER(M130),M130,NA()),NA())) -> €50,588 | N128: =IF($E$4=1,IF(ISNUMBER(N129),N129,NA()),IF($E$4=2,IF(ISNUMBER(N130),N130,NA()),NA())) -> €50,588 | O128: =IF($E$4=1,IF(ISNUMBER(O129),O129,NA()),IF($E$4=2,IF(ISNUMBER(O130),O130,NA()),NA())) -> €51,665 | P128: =IF($E$4=1,IF(ISNUMBER(P129),P129,NA()),IF($E$4=2,IF(ISNUMBER(P130),P130,NA()),NA())) -> €67,716
C129: Base | M129: 50,588 | N129: 50,588 | O129: 51,665 | P129: 67,716
C130: Downside | M130: 39,459 | N130: 39,459 | O130: 40,299 | P130: 52,818
C131: PS-05 Unbilled recoverability allowance — active | E131: ='Actual inputs'!E49 -> 4.5% | F131: ='Actual inputs'!F49 -> 4.5% | G131: ='Actual inputs'!G49 -> 4.5% | H131: ='Actual inputs'!H49 -> 4.5% | I131: ='Actual inputs'!I49 -> 4.5% | J131: ='Actual inputs'!J49 -> 4.5% | K131: ='Actual inputs'!K49 -> 4.5% | L131: ='Actual inputs'!L49 -> 4.5% | M131: =IF($E$4=1,IF(ISNUMBER(M132),M132,NA()),IF($E$4=2,IF(ISNUMBER(M133),M133,NA()),NA())) -> 4.5% | N131: =IF($E$4=1,IF(ISNUMBER(N132),N132,NA()),IF($E$4=2,IF(ISNUMBER(N133),N133,NA()),NA())) -> 4.5% | O131: =IF($E$4=1,IF(ISNUMBER(O132),O132,NA()),IF($E$4=2,IF(ISNUMBER(O133),O133,NA()),NA())) -> 4.5% | P131: =IF($E$4=1,IF(ISNUMBER(P132),P132,NA()),IF($E$4=2,IF(ISNUMBER(P133),P133,NA()),NA())) -> 4.5%
C132: Base | M132: 4.5% | N132: 4.5% | O132: 4.5% | P132: 4.5%
C133: Downside | M133: 16.5% | N133: 16.5% | O133: 16.5% | P133: 16.5%
C134: PS-06 Recorded chargeable hours — active | E134: ='Actual inputs'!E50 -> 280.0 | F134: ='Actual inputs'!F50 -> 290.0 | G134: ='Actual inputs'!G50 -> 300.0 | H134: ='Actual inputs'!H50 -> 300.0 | I134: ='Actual inputs'!I50 -> 310.0 | J134: ='Actual inputs'!J50 -> 320.0 | K134: ='Actual inputs'!K50 -> 320.0 | L134: ='Actual inputs'!L50 -> 330.0 | M134: =IF($E$4=1,IF(ISNUMBER(M135),M135,NA()),IF($E$4=2,IF(ISNUMBER(M136),M136,NA()),NA())) -> 340.0 | N134: =IF($E$4=1,IF(ISNUMBER(N135),N135,NA()),IF($E$4=2,IF(ISNUMBER(N136),N136,NA()),NA())) -> 340.0 | O134: =IF($E$4=1,IF(ISNUMBER(O135),O135,NA()),IF($E$4=2,IF(ISNUMBER(O136),O136,NA()),NA())) -> 350.0 | P134: =IF($E$4=1,IF(ISNUMBER(P135),P135,NA()),IF($E$4=2,IF(ISNUMBER(P136),P136,NA()),NA())) -> 350.0
C135: Base | M135: 340.0 | N135: 340.0 | O135: 350.0 | P135: 350.0
C136: Downside | M136: 299.2 | N136: 299.2 | O136: 308.0 | P136: 308.0
C137: PS-06 Contract billing rate per hour — active | E137: ='Actual inputs'!E51 -> €135 | F137: ='Actual inputs'!F51 -> €135 | G137: ='Actual inputs'!G51 -> €135 | H137: ='Actual inputs'!H51 -> €135 | I137: ='Actual inputs'!I51 -> €135 | J137: ='Actual inputs'!J51 -> €135 | K137: ='Actual inputs'!K51 -> €135 | L137: ='Actual inputs'!L51 -> €135 | M137: =IF($E$4=1,IF(ISNUMBER(M138),M138,NA()),IF($E$4=2,IF(ISNUMBER(M139),M139,NA()),NA())) -> €135 | N137: =IF($E$4=1,IF(ISNUMBER(N138),N138,NA()),IF($E$4=2,IF(ISNUMBER(N139),N139,NA()),NA())) -> €135 | O137: =IF($E$4=1,IF(ISNUMBER(O138),O138,NA()),IF($E$4=2,IF(ISNUMBER(O139),O139,NA()),NA())) -> €135 | P137: =IF($E$4=1,IF(ISNUMBER(P138),P138,NA()),IF($E$4=2,IF(ISNUMBER(P139),P139,NA()),NA())) -> €135
C138: Base | M138: 135 | N138: 135 | O138: 135 | P138: 135
C139: Downside | M139: 135 | N139: 135 | O139: 135 | P139: 135
C140: PS-06 Realisation of chargeable value — active | E140: ='Actual inputs'!E52 -> 93.0% | F140: ='Actual inputs'!F52 -> 93.0% | G140: ='Actual inputs'!G52 -> 93.0% | H140: ='Actual inputs'!H52 -> 93.0% | I140: ='Actual inputs'!I52 -> 93.0% | J140: ='Actual inputs'!J52 -> 93.0% | K140: ='Actual inputs'!K52 -> 93.0% | L140: ='Actual inputs'!L52 -> 93.0% | M140: =IF($E$4=1,IF(ISNUMBER(M141),M141,NA()),IF($E$4=2,IF(ISNUMBER(M142),M142,NA()),NA())) -> 93.0% | N140: =IF($E$4=1,IF(ISNUMBER(N141),N141,NA()),IF($E$4=2,IF(ISNUMBER(N142),N142,NA()),NA())) -> 93.0% | O140: =IF($E$4=1,IF(ISNUMBER(O141),O141,NA()),IF($E$4=2,IF(ISNUMBER(O142),O142,NA()),NA())) -> 93.0% | P140: =IF($E$4=1,IF(ISNUMBER(P141),P141,NA()),IF($E$4=2,IF(ISNUMBER(P142),P142,NA()),NA())) -> 93.0%
C141: Base | M141: 93.0% | N141: 93.0% | O141: 93.0% | P141: 93.0%
C142: Downside | M142: 87.5% | N142: 87.5% | O142: 87.5% | P142: 87.5%
C143: PS-06 Invoices issued — active | E143: ='Actual inputs'!E53 -> €31,639 | F143: ='Actual inputs'!F53 -> €32,769 | G143: ='Actual inputs'!G53 -> €33,899 | H143: ='Actual inputs'!H53 -> €33,899 | I143: ='Actual inputs'!I53 -> €35,028 | J143: ='Actual inputs'!J53 -> €36,158 | K143: ='Actual inputs'!K53 -> €36,158 | L143: ='Actual inputs'!L53 -> €37,288 | M143: =IF($E$4=1,IF(ISNUMBER(M144),M144,NA()),IF($E$4=2,IF(ISNUMBER(M145),M145,NA()),NA())) -> €43,968 | N143: =IF($E$4=1,IF(ISNUMBER(N144),N144,NA()),IF($E$4=2,IF(ISNUMBER(N145),N145,NA()),NA())) -> €43,968 | O143: =IF($E$4=1,IF(ISNUMBER(O144),O144,NA()),IF($E$4=2,IF(ISNUMBER(O145),O145,NA()),NA())) -> €45,261 | P143: =IF($E$4=1,IF(ISNUMBER(P144),P144,NA()),IF($E$4=2,IF(ISNUMBER(P145),P145,NA()),NA())) -> €59,322
C144: Base | M144: 43,968 | N144: 43,968 | O144: 45,261 | P144: 59,322
C145: Downside | M145: 34,295 | N145: 34,295 | O145: 35,303 | P145: 46,271
C146: PS-06 Unbilled recoverability allowance — active | E146: ='Actual inputs'!E54 -> 7.0% | F146: ='Actual inputs'!F54 -> 7.0% | G146: ='Actual inputs'!G54 -> 7.0% | H146: ='Actual inputs'!H54 -> 7.0% | I146: ='Actual inputs'!I54 -> 7.0% | J146: ='Actual inputs'!J54 -> 7.0% | K146: ='Actual inputs'!K54 -> 7.0% | L146: ='Actual inputs'!L54 -> 7.0% | M146: =IF($E$4=1,IF(ISNUMBER(M147),M147,NA()),IF($E$4=2,IF(ISNUMBER(M148),M148,NA()),NA())) -> 7.0% | N146: =IF($E$4=1,IF(ISNUMBER(N147),N147,NA()),IF($E$4=2,IF(ISNUMBER(N148),N148,NA()),NA())) -> 7.0% | O146: =IF($E$4=1,IF(ISNUMBER(O147),O147,NA()),IF($E$4=2,IF(ISNUMBER(O148),O148,NA()),NA())) -> 7.0% | P146: =IF($E$4=1,IF(ISNUMBER(P147),P147,NA()),IF($E$4=2,IF(ISNUMBER(P148),P148,NA()),NA())) -> 7.0%
C147: Base | M147: 7.0% | N147: 7.0% | O147: 7.0% | P147: 7.0%
C148: Downside | M148: 19.0% | N148: 19.0% | O148: 19.0% | P148: 19.0%
C150: Shared accounting and cash assumptions
C152: Illustrative current tax rate | E152: 20.0%
C153: Annual debt interest rate | E153: 5.5%
C154: Minimum cash reserve | E154: 100,000
C155: Monthly principal repayment | E155: 3,500
C156: New asset useful life (months) | E156: 48
C157: Opening assets remaining life (months) | E157: 44

Sheet P&L
C2: P&L
C4: Selected case | E4: ='Assumptions'!$G$4 -> Base | H4: EUR. Entirely fictional.
E6: Actual | F6: Actual | G6: Actual | H6: Actual | I6: Actual | J6: Actual | K6: Actual | L6: Actual | M6: Forecast | N6: Forecast | O6: Forecast | P6: Forecast
E7: 2026-01-01 | F7: 2026-02-01 | G7: 2026-03-01 | H7: 2026-04-01 | I7: 2026-05-01 | J7: 2026-06-01 | K7: 2026-07-01 | L7: 2026-08-01 | M7: 2026-09-01 | N7: 2026-10-01 | O7: 2026-11-01 | P7: 2026-12-01
C8: Revenue | E8: ='Engagements'!E132 -> €193,550 | F8: ='Engagements'!F132 -> €207,713 | G8: ='Engagements'!G132 -> €220,716 | H8: ='Engagements'!H132 -> €230,429 | I8: ='Engagements'!I132 -> €242,211 | J8: ='Engagements'!J132 -> €258,795 | K8: ='Engagements'!K132 -> €264,183 | L8: ='Engagements'!L132 -> €276,874 | M8: ='Engagements'!M132 -> €279,310 | N8: ='Engagements'!N132 -> €279,538 | O8: ='Engagements'!O132 -> €281,003 | P8: ='Engagements'!P132 -> €271,949
C9: Direct payroll | E9: =-'Engagements'!E144 -> (101,000) | F9: =-'Engagements'!F144 -> (101,000) | G9: =-'Engagements'!G144 -> (101,000) | H9: =-'Engagements'!H144 -> (101,000) | I9: =-'Engagements'!I144 -> (101,000) | J9: =-'Engagements'!J144 -> (101,000) | K9: =-'Engagements'!K144 -> (101,000) | L9: =-'Engagements'!L144 -> (101,000) | M9: =-'Engagements'!M144 -> (103,525) | N9: =-'Engagements'!N144 -> (103,525) | O9: =-'Engagements'!O144 -> (103,525) | P9: =-'Engagements'!P144 -> (103,525)
C10: Materials | E10: =0 -> 0 | F10: =0 -> 0 | G10: =0 -> 0 | H10: =0 -> 0 | I10: =0 -> 0 | J10: =0 -> 0 | K10: =0 -> 0 | L10: =0 -> 0 | M10: =0 -> 0 | N10: =0 -> 0 | O10: =0 -> 0 | P10: =0 -> 0
C11: Subcontractors | E11: =0 -> 0 | F11: =0 -> 0 | G11: =0 -> 0 | H11: =0 -> 0 | I11: =0 -> 0 | J11: =0 -> 0 | K11: =0 -> 0 | L11: =0 -> 0 | M11: =0 -> 0 | N11: =0 -> 0 | O11: =0 -> 0 | P11: =0 -> 0
C12: Direct systems and software | E12: =-'Assumptions'!E17 -> (7,000) | F12: =-'Assumptions'!F17 -> (7,000) | G12: =-'Assumptions'!G17 -> (7,000) | H12: =-'Assumptions'!H17 -> (7,000) | I12: =-'Assumptions'!I17 -> (7,000) | J12: =-'Assumptions'!J17 -> (7,000) | K12: =-'Assumptions'!K17 -> (7,000) | L12: =-'Assumptions'!L17 -> (7,000) | M12: =-'Assumptions'!M17 -> (7,800) | N12: =-'Assumptions'!N17 -> (7,800) | O12: =-'Assumptions'!O17 -> (7,800) | P12: =-'Assumptions'!P17 -> (7,800)
C13: Unbilled recoverability charge / (release) | E13: =-'Engagements'!E137+0 -> (1,187) | F13: =-'Engagements'!F137+'Engagements'!E137 -> (1,307) | G13: =-'Engagements'!G137+'Engagements'!F137 -> (1,436) | H13: =-'Engagements'!H137+'Engagements'!G137 -> (1,495) | I13: =-'Engagements'!I137+'Engagements'!H137 -> (1,615) | J13: =-'Engagements'!J137+'Engagements'!I137 -> (1,748) | K13: =-'Engagements'!K137+'Engagements'!J137 -> (1,809) | L13: =-'Engagements'!L137+'Engagements'!K137 -> (1,908) | M13: =-'Engagements'!M137+'Engagements'!L137 -> 574 | N13: =-'Engagements'!N137+'Engagements'!M137 -> 576 | O13: =-'Engagements'!O137+'Engagements'!N137 -> 578 | P13: =-'Engagements'!P137+'Engagements'!O137 -> 6,426
C14: Direct costs | E14: =SUM(E9:E13) -> (€109,187) | F14: =SUM(F9:F13) -> (€109,307) | G14: =SUM(G9:G13) -> (€109,436) | H14: =SUM(H9:H13) -> (€109,495) | I14: =SUM(I9:I13) -> (€109,615) | J14: =SUM(J9:J13) -> (€109,748) | K14: =SUM(K9:K13) -> (€109,809) | L14: =SUM(L9:L13) -> (€109,908) | M14: =SUM(M9:M13) -> (€110,751) | N14: =SUM(N9:N13) -> (€110,749) | O14: =SUM(O9:O13) -> (€110,747) | P14: =SUM(P9:P13) -> (€104,899)
C15: Gross profit | E15: =E8+E14 -> €84,363 | F15: =F8+F14 -> €98,406 | G15: =G8+G14 -> €111,280 | H15: =H8+H14 -> €120,934 | I15: =I8+I14 -> €132,596 | J15: =J8+J14 -> €149,047 | K15: =K8+K14 -> €154,374 | L15: =L8+L14 -> €166,965 | M15: =M8+M14 -> €168,559 | N15: =N8+N14 -> €168,789 | O15: =O8+O14 -> €170,255 | P15: =P8+P14 -> €167,050
C16: Gross margin | E16: =E15/E8 -> 43.6% | F16: =F15/F8 -> 47.4% | G16: =G15/G8 -> 50.4% | H16: =H15/H8 -> 52.5% | I16: =I15/I8 -> 54.7% | J16: =J15/J8 -> 57.6% | K16: =K15/K8 -> 58.4% | L16: =L15/L8 -> 60.3% | M16: =M15/M8 -> 60.3% | N16: =N15/N8 -> 60.4% | O16: =O15/O8 -> 60.6% | P16: =P15/P8 -> 61.4%
C17: Management and administration payroll | E17: =-'Assumptions'!E8 -> (45,000) | F17: =-'Assumptions'!F8 -> (45,500) | G17: =-'Assumptions'!G8 -> (46,000) | H17: =-'Assumptions'!H8 -> (46,500) | I17: =-'Assumptions'!I8 -> (47,000) | J17: =-'Assumptions'!J8 -> (47,500) | K17: =-'Assumptions'!K8 -> (48,000) | L17: =-'Assumptions'!L8 -> (48,500) | M17: =-'Assumptions'!M8 -> (51,000) | N17: =-'Assumptions'!N8 -> (51,500) | O17: =-'Assumptions'!O8 -> (52,500) | P17: =-'Assumptions'!P8 -> (53,500)
C18: Business development | E18: =-'Assumptions'!E11 -> (11,500) | F18: =-'Assumptions'!F11 -> (11,500) | G18: =-'Assumptions'!G11 -> (11,500) | H18: =-'Assumptions'!H11 -> (11,500) | I18: =-'Assumptions'!I11 -> (11,500) | J18: =-'Assumptions'!J11 -> (11,500) | K18: =-'Assumptions'!K11 -> (11,500) | L18: =-'Assumptions'!L11 -> (11,500) | M18: =-'Assumptions'!M11 -> (13,000) | N18: =-'Assumptions'!N11 -> (13,000) | O18: =-'Assumptions'!O11 -> (13,000) | P18: =-'Assumptions'!P11 -> (13,000)
C19: Office, insurance and general costs | E19: =-'Assumptions'!E14 -> (7,500) | F19: =-'Assumptions'!F14 -> (7,500) | G19: =-'Assumptions'!G14 -> (7,500) | H19: =-'Assumptions'!H14 -> (7,500) | I19: =-'Assumptions'!I14 -> (7,500) | J19: =-'Assumptions'!J14 -> (7,500) | K19: =-'Assumptions'!K14 -> (7,500) | L19: =-'Assumptions'!L14 -> (7,500) | M19: =-'Assumptions'!M14 -> (8,000) | N19: =-'Assumptions'!N14 -> (8,000) | O19: =-'Assumptions'!O14 -> (8,000) | P19: =-'Assumptions'!P14 -> (8,000)
C20: Operating expenses | E20: =SUM(E17:E19) -> (€64,000) | F20: =SUM(F17:F19) -> (€64,500) | G20: =SUM(G17:G19) -> (€65,000) | H20: =SUM(H17:H19) -> (€65,500) | I20: =SUM(I17:I19) -> (€66,000) | J20: =SUM(J17:J19) -> (€66,500) | K20: =SUM(K17:K19) -> (€67,000) | L20: =SUM(L17:L19) -> (€67,500) | M20: =SUM(M17:M19) -> (€72,000) | N20: =SUM(N17:N19) -> (€72,500) | O20: =SUM(O17:O19) -> (€73,500) | P20: =SUM(P17:P19) -> (€74,500)
C21: EBITDA | E21: =E15+E20 -> €20,363 | F21: =F15+F20 -> €33,906 | G21: =G15+G20 -> €46,280 | H21: =H15+H20 -> €55,434 | I21: =I15+I20 -> €66,596 | J21: =J15+J20 -> €82,547 | K21: =K15+K20 -> €87,374 | L21: =L15+L20 -> €99,465 | M21: =M15+M20 -> €96,559 | N21: =N15+N20 -> €96,289 | O21: =O15+O20 -> €96,755 | P21: =P15+P20 -> €92,550
C22: EBITDA margin | E22: =E21/E8 -> 10.5% | F22: =F21/F8 -> 16.3% | G22: =G21/G8 -> 21.0% | H22: =H21/H8 -> 24.1% | I22: =I21/I8 -> 27.5% | J22: =J21/J8 -> 31.9% | K22: =K21/K8 -> 33.1% | L22: =L21/L8 -> 35.9% | M22: =M21/M8 -> 34.6% | N22: =N21/N8 -> 34.4% | O22: =O21/O8 -> 34.4% | P22: =P21/P8 -> 34.0%
C23: Depreciation | E23: ='Assets debt'!E9 -> (2,193) | F23: ='Assets debt'!F9 -> (2,277) | G23: ='Assets debt'!G9 -> (2,443) | H23: ='Assets debt'!H9 -> (2,568) | I23: ='Assets debt'!I9 -> (2,756) | J23: ='Assets debt'!J9 -> (2,860) | K23: ='Assets debt'!K9 -> (3,027) | L23: ='Assets debt'!L9 -> (3,152) | M23: ='Assets debt'!M9 -> (3,527) | N23: ='Assets debt'!N9 -> (3,652) | O23: ='Assets debt'!O9 -> (3,777) | P23: ='Assets debt'!P9 -> (3,902)
C24: EBIT | E24: =E21+E23 -> €18,170 | F24: =F21+F23 -> €31,629 | G24: =G21+G23 -> €43,837 | H24: =H21+H23 -> €52,865 | I24: =I21+I23 -> €63,840 | J24: =J21+J23 -> €79,687 | K24: =K21+K23 -> €84,348 | L24: =L21+L23 -> €96,314 | M24: =M21+M23 -> €93,033 | N24: =N21+N23 -> €92,637 | O24: =O21+O23 -> €92,979 | P24: =P21+P23 -> €88,648
C25: Interest | E25: ='Assets debt'!E16 -> (710) | F25: ='Assets debt'!F16 -> (694) | G25: ='Assets debt'!G16 -> (678) | H25: ='Assets debt'!H16 -> (662) | I25: ='Assets debt'!I16 -> (646) | J25: ='Assets debt'!J16 -> (630) | K25: ='Assets debt'!K16 -> (614) | L25: ='Assets debt'!L16 -> (598) | M25: ='Assets debt'!M16 -> (582) | N25: ='Assets debt'!N16 -> (566) | O25: ='Assets debt'!O16 -> (550) | P25: ='Assets debt'!P16 -> (534)
C26: Profit before tax | E26: =E24+E25 -> €17,460 | F26: =F24+F25 -> €30,935 | G26: =G24+G25 -> €43,158 | H26: =H24+H25 -> €52,203 | I26: =I24+I25 -> €63,194 | J26: =J24+J25 -> €79,057 | K26: =K24+K25 -> €83,734 | L26: =L24+L25 -> €95,716 | M26: =M24+M25 -> €92,451 | N26: =N24+N25 -> €92,071 | O26: =O24+O25 -> €92,429 | P26: =P24+P25 -> €88,114
C27: Illustrative current tax | E27: =-MAX(0,E26)*'Assumptions'!$E$152 -> (3,492) | F27: =-MAX(0,F26)*'Assumptions'!$E$152 -> (6,187) | G27: =-MAX(0,G26)*'Assumptions'!$E$152 -> (8,632) | H27: =-MAX(0,H26)*'Assumptions'!$E$152 -> (10,441) | I27: =-MAX(0,I26)*'Assumptions'!$E$152 -> (12,639) | J27: =-MAX(0,J26)*'Assumptions'!$E$152 -> (15,811) | K27: =-MAX(0,K26)*'Assumptions'!$E$152 -> (16,747) | L27: =-MAX(0,L26)*'Assumptions'!$E$152 -> (19,143) | M27: =-MAX(0,M26)*'Assumptions'!$E$152 -> (18,490) | N27: =-MAX(0,N26)*'Assumptions'!$E$152 -> (18,414) | O27: =-MAX(0,O26)*'Assumptions'!$E$152 -> (18,486) | P27: =-MAX(0,P26)*'Assumptions'!$E$152 -> (17,623)
C28: Net profit | E28: =E26+E27 -> €13,968 | F28: =F26+F27 -> €24,748 | G28: =G26+G27 -> €34,527 | H28: =H26+H27 -> €41,762 | I28: =I26+I27 -> €50,555 | J28: =J26+J27 -> €63,246 | K28: =K26+K27 -> €66,987 | L28: =L26+L27 -> €76,573 | M28: =M26+M27 -> €73,961 | N28: =N26+N27 -> €73,657 | O28: =O26+O27 -> €73,943 | P28: =P26+P27 -> €70,491
C32: Original budget comparison
C34: Revenue versus budget | E34: ='P&L'!E8-'Budget'!E8 -> (5,106) | F34: ='P&L'!F8-'Budget'!F8 -> (5,591) | G34: ='P&L'!G8-'Budget'!G8 -> (6,119) | H34: ='P&L'!H8-'Budget'!H8 -> (6,348) | I34: ='P&L'!I8-'Budget'!I8 -> (6,837) | J34: ='P&L'!J8-'Budget'!J8 -> (7,373) | K34: ='P&L'!K8-'Budget'!K8 -> (7,611) | L34: ='P&L'!L8-'Budget'!L8 -> (8,016) | M34: ='P&L'!M8-'Budget'!M8 -> (8,053) | N34: ='P&L'!N8-'Budget'!N8 -> (8,067) | O34: ='P&L'!O8-'Budget'!O8 -> (8,106) | P34: ='P&L'!P8-'Budget'!P8 -> (7,751)
C35: EBITDA versus budget | E35: ='P&L'!E21-'Budget'!E21 -> (6,907) | F35: ='P&L'!F21-'Budget'!F21 -> (7,366) | G35: ='P&L'!G21-'Budget'!G21 -> (7,862) | H35: ='P&L'!H21-'Budget'!H21 -> (8,100) | I35: ='P&L'!I21-'Budget'!I21 -> (8,561) | J35: ='P&L'!J21-'Budget'!J21 -> (9,068) | K35: ='P&L'!K21-'Budget'!K21 -> (9,302) | L35: ='P&L'!L21-'Budget'!L21 -> (9,691) | M35: ='P&L'!M21-'Budget'!M21 -> (9,852) | N35: ='P&L'!N21-'Budget'!N21 -> (9,886) | O35: ='P&L'!O21-'Budget'!O21 -> (9,968) | P35: ='P&L'!P21-'Budget'!P21 -> (9,701)
C36: Revenue variance percentage | E36: =E34/'Budget'!E8 -> (2.6%) | F36: =F34/'Budget'!F8 -> (2.6%) | G36: =G34/'Budget'!G8 -> (2.7%) | H36: =H34/'Budget'!H8 -> (2.7%) | I36: =I34/'Budget'!I8 -> (2.7%) | J36: =J34/'Budget'!J8 -> (2.8%) | K36: =K34/'Budget'!K8 -> (2.8%) | L36: =L34/'Budget'!L8 -> (2.8%) | M36: =M34/'Budget'!M8 -> (2.8%) | N36: =N34/'Budget'!N8 -> (2.8%) | O36: =O34/'Budget'!O8 -> (2.8%) | P36: =P34/'Budget'!P8 -> (2.8%)

Sheet Balance sheet
C2: Balance sheet
C4: Selected case | E4: ='Assumptions'!$G$4 -> Base | H4: EUR. Entirely fictional.
E6: Actual | F6: Actual | G6: Actual | H6: Actual | I6: Actual | J6: Actual | K6: Actual | L6: Actual | M6: Forecast | N6: Forecast | O6: Forecast | P6: Forecast
E7: 2026-01-01 | F7: 2026-02-01 | G7: 2026-03-01 | H7: 2026-04-01 | I7: 2026-05-01 | J7: 2026-06-01 | K7: 2026-07-01 | L7: 2026-08-01 | M7: 2026-09-01 | N7: 2026-10-01 | O7: 2026-11-01 | P7: 2026-12-01
C8: Cash / (unfunded cash requirement) | E8: ='Cash flow'!E23 -> 86,112 | F8: ='Cash flow'!F23 -> 13,525 | G8: ='Cash flow'!G23 -> 27,521 | H8: ='Cash flow'!H23 -> 32,266 | I8: ='Cash flow'!I23 -> 58,374 | J8: ='Cash flow'!J23 -> 68,057 | K8: ='Cash flow'!K23 -> 122,069 | L8: ='Cash flow'!L23 -> 171,657 | M8: ='Cash flow'!M23 -> 210,930 | N8: ='Cash flow'!N23 -> 302,987 | O8: ='Cash flow'!O23 -> 394,471 | P8: ='Cash flow'!P23 -> 472,677
C9: Trade receivables | E9: ='Working capital'!E11 -> 174,195 | F9: ='Working capital'!F11 -> 253,706 | G9: ='Working capital'!G11 -> 243,500 | H9: ='Working capital'!H11 -> 262,689 | I9: ='Working capital'!I11 -> 267,213 | J9: ='Working capital'!J11 -> 295,026 | K9: ='Working capital'!K11 -> 291,454 | L9: ='Working capital'!L11 -> 305,454 | M9: ='Working capital'!M11 -> 333,507 | N9: ='Working capital'!N11 -> 334,364 | O9: ='Working capital'!O11 -> 337,671 | P9: ='Working capital'!P11 -> 414,502
C10: Contract asset / net unbilled work | E10: ='Working capital'!E19 -> 18,168 | F10: ='Working capital'!F19 -> 37,633 | G10: ='Working capital'!G19 -> 58,268 | H10: ='Working capital'!H19 -> 79,815 | I10: ='Working capital'!I19 -> 102,421 | J10: ='Working capital'!J19 -> 126,553 | K10: ='Working capital'!K19 -> 151,163 | L10: ='Working capital'!L19 -> 176,942 | M10: ='Working capital'!M19 -> 169,137 | N10: ='Working capital'!N19 -> 161,326 | O10: ='Working capital'!O19 -> 153,474 | P10: ='Working capital'!P19 -> 64,718
C11: Retention receivables | E11: ='Working capital'!E20 -> 0 | F11: ='Working capital'!F20 -> 0 | G11: ='Working capital'!G20 -> 0 | H11: ='Working capital'!H20 -> 0 | I11: ='Working capital'!I20 -> 0 | J11: ='Working capital'!J20 -> 0 | K11: ='Working capital'!K20 -> 0 | L11: ='Working capital'!L20 -> 0 | M11: ='Working capital'!M20 -> 0 | N11: ='Working capital'!N20 -> 0 | O11: ='Working capital'!O20 -> 0 | P11: ='Working capital'!P20 -> 0
C12: Prepayments | E12: ='Actual inputs'!$E$67 -> 14,000 | F12: ='Actual inputs'!$E$67 -> 14,000 | G12: ='Actual inputs'!$E$67 -> 14,000 | H12: ='Actual inputs'!$E$67 -> 14,000 | I12: ='Actual inputs'!$E$67 -> 14,000 | J12: ='Actual inputs'!$E$67 -> 14,000 | K12: ='Actual inputs'!$E$67 -> 14,000 | L12: ='Actual inputs'!$E$67 -> 14,000 | M12: ='Actual inputs'!$E$67 -> 14,000 | N12: ='Actual inputs'!$E$67 -> 14,000 | O12: ='Actual inputs'!$E$67 -> 14,000 | P12: ='Actual inputs'!$E$67 -> 14,000
C13: Current tax prepayment | E13: ='Assets debt'!E22 -> 0 | F13: ='Assets debt'!F22 -> 0 | G13: ='Assets debt'!G22 -> 0 | H13: ='Assets debt'!H22 -> 0 | I13: ='Assets debt'!I22 -> 0 | J13: ='Assets debt'!J22 -> 0 | K13: ='Assets debt'!K22 -> 0 | L13: ='Assets debt'!L22 -> 0 | M13: ='Assets debt'!M22 -> 0 | N13: ='Assets debt'!N22 -> 0 | O13: ='Assets debt'!O22 -> 0 | P13: ='Assets debt'!P22 -> 0
C14: Current assets | E14: =SUM(E8:E13) -> €292,475 | F14: =SUM(F8:F13) -> €318,864 | G14: =SUM(G8:G13) -> €343,288 | H14: =SUM(H8:H13) -> €388,770 | I14: =SUM(I8:I13) -> €442,009 | J14: =SUM(J8:J13) -> €503,636 | K14: =SUM(K8:K13) -> €578,686 | L14: =SUM(L8:L13) -> €668,053 | M14: =SUM(M8:M13) -> €727,574 | N14: =SUM(N8:N13) -> €812,677 | O14: =SUM(O8:O13) -> €899,617 | P14: =SUM(P8:P13) -> €965,898
C15: Fixed assets at cost | E15: ='Assets debt'!E8 -> 136,000 | F15: ='Assets debt'!F8 -> 140,000 | G15: ='Assets debt'!G8 -> 148,000 | H15: ='Assets debt'!H8 -> 154,000 | I15: ='Assets debt'!I8 -> 163,000 | J15: ='Assets debt'!J8 -> 168,000 | K15: ='Assets debt'!K8 -> 176,000 | L15: ='Assets debt'!L8 -> 182,000 | M15: ='Assets debt'!M8 -> 200,000 | N15: ='Assets debt'!N8 -> 206,000 | O15: ='Assets debt'!O8 -> 212,000 | P15: ='Assets debt'!P8 -> 218,000
C16: Accumulated depreciation | E16: ='Assets debt'!E10 -> 41,193 | F16: ='Assets debt'!F10 -> 43,470 | G16: ='Assets debt'!G10 -> 45,913 | H16: ='Assets debt'!H10 -> 48,481 | I16: ='Assets debt'!I10 -> 51,237 | J16: ='Assets debt'!J10 -> 54,097 | K16: ='Assets debt'!K10 -> 57,123 | L16: ='Assets debt'!L10 -> 60,275 | M16: ='Assets debt'!M10 -> 63,801 | N16: ='Assets debt'!N10 -> 67,453 | O16: ='Assets debt'!O10 -> 71,229 | P16: ='Assets debt'!P10 -> 75,131
C17: Net fixed assets | E17: ='Assets debt'!E11 -> €94,807 | F17: ='Assets debt'!F11 -> €96,530 | G17: ='Assets debt'!G11 -> €102,087 | H17: ='Assets debt'!H11 -> €105,519 | I17: ='Assets debt'!I11 -> €111,763 | J17: ='Assets debt'!J11 -> €113,903 | K17: ='Assets debt'!K11 -> €118,877 | L17: ='Assets debt'!L11 -> €121,725 | M17: ='Assets debt'!M11 -> €136,199 | N17: ='Assets debt'!N11 -> €138,547 | O17: ='Assets debt'!O11 -> €140,771 | P17: ='Assets debt'!P11 -> €142,869
C18: Total assets | E18: =E14+E17 -> €387,282 | F18: =F14+F17 -> €415,394 | G18: =G14+G17 -> €445,375 | H18: =H14+H17 -> €494,289 | I18: =I14+I17 -> €553,772 | J18: =J14+J17 -> €617,540 | K18: =K14+K17 -> €697,563 | L18: =L14+L17 -> €789,778 | M18: =M14+M17 -> €863,773 | N18: =N14+N17 -> €951,224 | O18: =O14+O17 -> €1,040,388 | P18: =P14+P17 -> €1,108,767
C19: Trade payables | E19: ='Working capital'!E16 -> 6,323 | F19: ='Working capital'!F16 -> 7,000 | G19: ='Working capital'!G16 -> 6,323 | H19: ='Working capital'!H16 -> 6,533 | I19: ='Working capital'!I16 -> 6,323 | J19: ='Working capital'!J16 -> 6,533 | K19: ='Working capital'!K16 -> 6,323 | L19: ='Working capital'!L16 -> 6,323 | M19: ='Working capital'!M16 -> 9,366 | N19: ='Working capital'!N16 -> 8,246 | O19: ='Working capital'!O16 -> 8,481 | P19: ='Working capital'!P16 -> 8,246
C20: Payroll accruals | E20: ='Actual inputs'!$E$65 -> 15,000 | F20: ='Actual inputs'!$E$65 -> 15,000 | G20: ='Actual inputs'!$E$65 -> 15,000 | H20: ='Actual inputs'!$E$65 -> 15,000 | I20: ='Actual inputs'!$E$65 -> 15,000 | J20: ='Actual inputs'!$E$65 -> 15,000 | K20: ='Actual inputs'!$E$65 -> 15,000 | L20: ='Actual inputs'!$E$65 -> 15,000 | M20: ='Actual inputs'!$E$65 -> 15,000 | N20: ='Actual inputs'!$E$65 -> 15,000 | O20: ='Actual inputs'!$E$65 -> 15,000 | P20: ='Actual inputs'!$E$65 -> 15,000
C21: Contract liabilities / customer advances | E21: ='Working capital'!E21 -> 0 | F21: ='Working capital'!F21 -> 0 | G21: ='Working capital'!G21 -> 0 | H21: ='Working capital'!H21 -> 0 | I21: ='Working capital'!I21 -> 0 | J21: ='Working capital'!J21 -> 0 | K21: ='Working capital'!K21 -> 0 | L21: ='Working capital'!L21 -> 0 | M21: ='Working capital'!M21 -> 0 | N21: ='Working capital'!N21 -> 0 | O21: ='Working capital'!O21 -> 0 | P21: ='Working capital'!P21 -> 0
C22: Current tax payable | E22: ='Assets debt'!E21 -> 17,492 | F22: ='Assets debt'!F21 -> 23,679 | G22: ='Assets debt'!G21 -> 23,311 | H22: ='Assets debt'!H21 -> 33,751 | I22: ='Assets debt'!I21 -> 46,390 | J22: ='Assets debt'!J21 -> 50,201 | K22: ='Assets debt'!K21 -> 66,948 | L22: ='Assets debt'!L21 -> 86,091 | M22: ='Assets debt'!M21 -> 86,581 | N22: ='Assets debt'!N21 -> 104,995 | O22: ='Assets debt'!O21 -> 123,481 | P22: ='Assets debt'!P21 -> 125,104
C23: Current operating liabilities | E23: =SUM(E19:E22) -> €38,815 | F23: =SUM(F19:F22) -> €45,679 | G23: =SUM(G19:G22) -> €44,633 | H23: =SUM(H19:H22) -> €55,284 | I23: =SUM(I19:I22) -> €67,712 | J23: =SUM(J19:J22) -> €71,735 | K23: =SUM(K19:K22) -> €88,271 | L23: =SUM(L19:L22) -> €107,414 | M23: =SUM(M19:M22) -> €110,948 | N23: =SUM(N19:N22) -> €128,242 | O23: =SUM(O19:O22) -> €146,963 | P23: =SUM(P19:P22) -> €148,351
C24: Debt | E24: ='Assets debt'!E15 -> 151,500 | F24: ='Assets debt'!F15 -> 148,000 | G24: ='Assets debt'!G15 -> 144,500 | H24: ='Assets debt'!H15 -> 141,000 | I24: ='Assets debt'!I15 -> 137,500 | J24: ='Assets debt'!J15 -> 134,000 | K24: ='Assets debt'!K15 -> 130,500 | L24: ='Assets debt'!L15 -> 127,000 | M24: ='Assets debt'!M15 -> 123,500 | N24: ='Assets debt'!N15 -> 120,000 | O24: ='Assets debt'!O15 -> 116,500 | P24: ='Assets debt'!P15 -> 113,000
C25: Total liabilities | E25: =E23+E24 -> €190,315 | F25: =F23+F24 -> €193,679 | G25: =G23+G24 -> €189,133 | H25: =H23+H24 -> €196,284 | I25: =I23+I24 -> €205,212 | J25: =J23+J24 -> €205,735 | K25: =K23+K24 -> €218,771 | L25: =L23+L24 -> €234,414 | M25: =M23+M24 -> €234,448 | N25: =N23+N24 -> €248,242 | O25: =O23+O24 -> €263,463 | P25: =P23+P24 -> €261,351
C26: Share capital | E26: ='Actual inputs'!$E$71 -> 50,000 | F26: ='Actual inputs'!$E$71 -> 50,000 | G26: ='Actual inputs'!$E$71 -> 50,000 | H26: ='Actual inputs'!$E$71 -> 50,000 | I26: ='Actual inputs'!$E$71 -> 50,000 | J26: ='Actual inputs'!$E$71 -> 50,000 | K26: ='Actual inputs'!$E$71 -> 50,000 | L26: ='Actual inputs'!$E$71 -> 50,000 | M26: ='Actual inputs'!$E$71 -> 50,000 | N26: ='Actual inputs'!$E$71 -> 50,000 | O26: ='Actual inputs'!$E$71 -> 50,000 | P26: ='Actual inputs'!$E$71 -> 50,000
C27: Retained earnings | E27: ='Actual inputs'!$E$72+'P&L'!E28 -> 146,968 | F27: =E27+'P&L'!F28 -> 171,715 | G27: =F27+'P&L'!G28 -> 206,242 | H27: =G27+'P&L'!H28 -> 248,005 | I27: =H27+'P&L'!I28 -> 298,559 | J27: =I27+'P&L'!J28 -> 361,805 | K27: =J27+'P&L'!K28 -> 428,792 | L27: =K27+'P&L'!L28 -> 505,365 | M27: =L27+'P&L'!M28 -> 579,325 | N27: =M27+'P&L'!N28 -> 652,982 | O27: =N27+'P&L'!O28 -> 726,925 | P27: =O27+'P&L'!P28 -> 797,416
C28: Equity | E28: =E26+E27 -> €196,968 | F28: =F26+F27 -> €221,715 | G28: =G26+G27 -> €256,242 | H28: =H26+H27 -> €298,005 | I28: =I26+I27 -> €348,559 | J28: =J26+J27 -> €411,805 | K28: =K26+K27 -> €478,792 | L28: =L26+L27 -> €555,365 | M28: =M26+M27 -> €629,325 | N28: =N26+N27 -> €702,982 | O28: =O26+O27 -> €776,925 | P28: =P26+P27 -> €847,416
C29: Liabilities and equity | E29: =E25+E28 -> €387,282 | F29: =F25+F28 -> €415,394 | G29: =G25+G28 -> €445,375 | H29: =H25+H28 -> €494,289 | I29: =I25+I28 -> €553,772 | J29: =J25+J28 -> €617,540 | K29: =K25+K28 -> €697,563 | L29: =L25+L28 -> €789,778 | M29: =M25+M28 -> €863,773 | N29: =N25+N28 -> €951,224 | O29: =O25+O28 -> €1,040,388 | P29: =P25+P28 -> €1,108,767

Sheet Cash flow
C2: Cash flow
C4: Selected case | E4: ='Assumptions'!$G$4 -> Base | H4: EUR. Entirely fictional.
E6: Actual | F6: Actual | G6: Actual | H6: Actual | I6: Actual | J6: Actual | K6: Actual | L6: Actual | M6: Forecast | N6: Forecast | O6: Forecast | P6: Forecast
E7: 2026-01-01 | F7: 2026-02-01 | G7: 2026-03-01 | H7: 2026-04-01 | I7: 2026-05-01 | J7: 2026-06-01 | K7: 2026-07-01 | L7: 2026-08-01 | M7: 2026-09-01 | N7: 2026-10-01 | O7: 2026-11-01 | P7: 2026-12-01
C8: Net profit | E8: ='P&L'!E28 -> 13,968 | F8: ='P&L'!F28 -> 24,748 | G8: ='P&L'!G28 -> 34,527 | H8: ='P&L'!H28 -> 41,762 | I8: ='P&L'!I28 -> 50,555 | J8: ='P&L'!J28 -> 63,246 | K8: ='P&L'!K28 -> 66,987 | L8: ='P&L'!L28 -> 76,573 | M8: ='P&L'!M28 -> 73,961 | N8: ='P&L'!N28 -> 73,657 | O8: ='P&L'!O28 -> 73,943 | P8: ='P&L'!P28 -> 70,491
C9: Depreciation add-back | E9: =-'P&L'!E23 -> 2,193 | F9: =-'P&L'!F23 -> 2,277 | G9: =-'P&L'!G23 -> 2,443 | H9: =-'P&L'!H23 -> 2,568 | I9: =-'P&L'!I23 -> 2,756 | J9: =-'P&L'!J23 -> 2,860 | K9: =-'P&L'!K23 -> 3,027 | L9: =-'P&L'!L23 -> 3,152 | M9: =-'P&L'!M23 -> 3,527 | N9: =-'P&L'!N23 -> 3,652 | O9: =-'P&L'!O23 -> 3,777 | P9: =-'P&L'!P23 -> 3,902
C10: Change in trade receivables | E10: ='Actual inputs'!$E$60-'Balance sheet'!E9 -> (174,195) | F10: ='Balance sheet'!E9-'Balance sheet'!F9 -> (79,511) | G10: ='Balance sheet'!F9-'Balance sheet'!G9 -> 10,206 | H10: ='Balance sheet'!G9-'Balance sheet'!H9 -> (19,189) | I10: ='Balance sheet'!H9-'Balance sheet'!I9 -> (4,524) | J10: ='Balance sheet'!I9-'Balance sheet'!J9 -> (27,813) | K10: ='Balance sheet'!J9-'Balance sheet'!K9 -> 3,573 | L10: ='Balance sheet'!K9-'Balance sheet'!L9 -> (14,000) | M10: ='Balance sheet'!L9-'Balance sheet'!M9 -> (28,053) | N10: ='Balance sheet'!M9-'Balance sheet'!N9 -> (856) | O10: ='Balance sheet'!N9-'Balance sheet'!O9 -> (3,308) | P10: ='Balance sheet'!O9-'Balance sheet'!P9 -> (76,831)
C11: Change in contract assets / net unbilled work | E11: ='Actual inputs'!$E$62-'Balance sheet'!E10 -> (18,168) | F11: ='Balance sheet'!E10-'Balance sheet'!F10 -> (19,464) | G11: ='Balance sheet'!F10-'Balance sheet'!G10 -> (20,635) | H11: ='Balance sheet'!G10-'Balance sheet'!H10 -> (21,547) | I11: ='Balance sheet'!H10-'Balance sheet'!I10 -> (22,606) | J11: ='Balance sheet'!I10-'Balance sheet'!J10 -> (24,132) | K11: ='Balance sheet'!J10-'Balance sheet'!K10 -> (24,610) | L11: ='Balance sheet'!K10-'Balance sheet'!L10 -> (25,779) | M11: ='Balance sheet'!L10-'Balance sheet'!M10 -> 7,805 | N11: ='Balance sheet'!M10-'Balance sheet'!N10 -> 7,811 | O11: ='Balance sheet'!N10-'Balance sheet'!O10 -> 7,852 | P11: ='Balance sheet'!O10-'Balance sheet'!P10 -> 88,756
C12: Change in retentions | E12: ='Actual inputs'!$E$63-'Balance sheet'!E11 -> 0 | F12: ='Balance sheet'!E11-'Balance sheet'!F11 -> 0 | G12: ='Balance sheet'!F11-'Balance sheet'!G11 -> 0 | H12: ='Balance sheet'!G11-'Balance sheet'!H11 -> 0 | I12: ='Balance sheet'!H11-'Balance sheet'!I11 -> 0 | J12: ='Balance sheet'!I11-'Balance sheet'!J11 -> 0 | K12: ='Balance sheet'!J11-'Balance sheet'!K11 -> 0 | L12: ='Balance sheet'!K11-'Balance sheet'!L11 -> 0 | M12: ='Balance sheet'!L11-'Balance sheet'!M11 -> 0 | N12: ='Balance sheet'!M11-'Balance sheet'!N11 -> 0 | O12: ='Balance sheet'!N11-'Balance sheet'!O11 -> 0 | P12: ='Balance sheet'!O11-'Balance sheet'!P11 -> 0
C13: Change in trade payables | E13: ='Balance sheet'!E19-'Actual inputs'!$E$61 -> (16,677) | F13: ='Balance sheet'!F19-'Balance sheet'!E19 -> 677 | G13: ='Balance sheet'!G19-'Balance sheet'!F19 -> (677) | H13: ='Balance sheet'!H19-'Balance sheet'!G19 -> 211 | I13: ='Balance sheet'!I19-'Balance sheet'!H19 -> (211) | J13: ='Balance sheet'!J19-'Balance sheet'!I19 -> 211 | K13: ='Balance sheet'!K19-'Balance sheet'!J19 -> (211) | L13: ='Balance sheet'!L19-'Balance sheet'!K19 -> (0) | M13: ='Balance sheet'!M19-'Balance sheet'!L19 -> 3,044 | N13: ='Balance sheet'!N19-'Balance sheet'!M19 -> (1,120) | O13: ='Balance sheet'!O19-'Balance sheet'!N19 -> 235 | P13: ='Balance sheet'!P19-'Balance sheet'!O19 -> (235)
C14: Change in customer advances | E14: ='Balance sheet'!E21-'Actual inputs'!$E$64 -> 0 | F14: ='Balance sheet'!F21-'Balance sheet'!E21 -> 0 | G14: ='Balance sheet'!G21-'Balance sheet'!F21 -> 0 | H14: ='Balance sheet'!H21-'Balance sheet'!G21 -> 0 | I14: ='Balance sheet'!I21-'Balance sheet'!H21 -> 0 | J14: ='Balance sheet'!J21-'Balance sheet'!I21 -> 0 | K14: ='Balance sheet'!K21-'Balance sheet'!J21 -> 0 | L14: ='Balance sheet'!L21-'Balance sheet'!K21 -> 0 | M14: ='Balance sheet'!M21-'Balance sheet'!L21 -> 0 | N14: ='Balance sheet'!N21-'Balance sheet'!M21 -> 0 | O14: ='Balance sheet'!O21-'Balance sheet'!N21 -> 0 | P14: ='Balance sheet'!P21-'Balance sheet'!O21 -> 0
C15: Change in net current tax | E15: ='Assets debt'!E20-'Actual inputs'!$E$66 -> 3,492 | F15: ='Assets debt'!F20-'Assets debt'!E20 -> 6,187 | G15: ='Assets debt'!G20-'Assets debt'!F20 -> (368) | H15: ='Assets debt'!H20-'Assets debt'!G20 -> 10,441 | I15: ='Assets debt'!I20-'Assets debt'!H20 -> 12,639 | J15: ='Assets debt'!J20-'Assets debt'!I20 -> 3,811 | K15: ='Assets debt'!K20-'Assets debt'!J20 -> 16,747 | L15: ='Assets debt'!L20-'Assets debt'!K20 -> 19,143 | M15: ='Assets debt'!M20-'Assets debt'!L20 -> 490 | N15: ='Assets debt'!N20-'Assets debt'!M20 -> 18,414 | O15: ='Assets debt'!O20-'Assets debt'!N20 -> 18,486 | P15: ='Assets debt'!P20-'Assets debt'!O20 -> 1,623
C16: Operating cash flow | E16: =SUM(E8:E15) -> (€189,388) | F16: =SUM(F8:F15) -> (€65,087) | G16: =SUM(G8:G15) -> €25,495 | H16: =SUM(H8:H15) -> €14,245 | I16: =SUM(I8:I15) -> €38,609 | J16: =SUM(J8:J15) -> €18,183 | K16: =SUM(K8:K15) -> €65,513 | L16: =SUM(L8:L15) -> €59,088 | M16: =SUM(M8:M15) -> €60,773 | N16: =SUM(N8:N15) -> €101,557 | O16: =SUM(O8:O15) -> €100,985 | P16: =SUM(P8:P15) -> €87,706
C17: Capital expenditure | E17: =-'Assumptions'!E26 -> (6,000) | F17: =-'Assumptions'!F26 -> (4,000) | G17: =-'Assumptions'!G26 -> (8,000) | H17: =-'Assumptions'!H26 -> (6,000) | I17: =-'Assumptions'!I26 -> (9,000) | J17: =-'Assumptions'!J26 -> (5,000) | K17: =-'Assumptions'!K26 -> (8,000) | L17: =-'Assumptions'!L26 -> (6,000) | M17: =-'Assumptions'!M26 -> (18,000) | N17: =-'Assumptions'!N26 -> (6,000) | O17: =-'Assumptions'!O26 -> (6,000) | P17: =-'Assumptions'!P26 -> (6,000)
C18: Investing cash flow | E18: =E17 -> (€6,000) | F18: =F17 -> (€4,000) | G18: =G17 -> (€8,000) | H18: =H17 -> (€6,000) | I18: =I17 -> (€9,000) | J18: =J17 -> (€5,000) | K18: =K17 -> (€8,000) | L18: =L17 -> (€6,000) | M18: =M17 -> (€18,000) | N18: =N17 -> (€6,000) | O18: =O17 -> (€6,000) | P18: =P17 -> (€6,000)
C19: Debt principal repayment | E19: =-'Assets debt'!E14 -> (3,500) | F19: =-'Assets debt'!F14 -> (3,500) | G19: =-'Assets debt'!G14 -> (3,500) | H19: =-'Assets debt'!H14 -> (3,500) | I19: =-'Assets debt'!I14 -> (3,500) | J19: =-'Assets debt'!J14 -> (3,500) | K19: =-'Assets debt'!K14 -> (3,500) | L19: =-'Assets debt'!L14 -> (3,500) | M19: =-'Assets debt'!M14 -> (3,500) | N19: =-'Assets debt'!N14 -> (3,500) | O19: =-'Assets debt'!O14 -> (3,500) | P19: =-'Assets debt'!P14 -> (3,500)
C20: Financing cash flow | E20: =E19 -> (€3,500) | F20: =F19 -> (€3,500) | G20: =G19 -> (€3,500) | H20: =H19 -> (€3,500) | I20: =I19 -> (€3,500) | J20: =J19 -> (€3,500) | K20: =K19 -> (€3,500) | L20: =L19 -> (€3,500) | M20: =M19 -> (€3,500) | N20: =N19 -> (€3,500) | O20: =O19 -> (€3,500) | P20: =P19 -> (€3,500)
C21: Net cash change | E21: =E16+E18+E20 -> (€198,888) | F21: =F16+F18+F20 -> (€72,587) | G21: =G16+G18+G20 -> €13,995 | H21: =H16+H18+H20 -> €4,745 | I21: =I16+I18+I20 -> €26,109 | J21: =J16+J18+J20 -> €9,683 | K21: =K16+K18+K20 -> €54,013 | L21: =L16+L18+L20 -> €49,588 | M21: =M16+M18+M20 -> €39,273 | N21: =N16+N18+N20 -> €92,057 | O21: =O16+O18+O20 -> €91,485 | P21: =P16+P18+P20 -> €78,206
C22: Opening cash | E22: ='Actual inputs'!$E$59 -> 285,000 | F22: =E23 -> 86,112 | G22: =F23 -> 13,525 | H22: =G23 -> 27,521 | I22: =H23 -> 32,266 | J22: =I23 -> 58,374 | K22: =J23 -> 68,057 | L22: =K23 -> 122,069 | M22: =L23 -> 171,657 | N22: =M23 -> 210,930 | O22: =N23 -> 302,987 | P22: =O23 -> 394,471
C23: Closing cash | E23: =E22+E21 -> €86,112 | F23: =F22+F21 -> €13,525 | G23: =G22+G21 -> €27,521 | H23: =H22+H21 -> €32,266 | I23: =I22+I21 -> €58,374 | J23: =J22+J21 -> €68,057 | K23: =K22+K21 -> €122,069 | L23: =L22+L21 -> €171,657 | M23: =M22+M21 -> €210,930 | N23: =N22+N21 -> €302,987 | O23: =O22+O21 -> €394,471 | P23: =P22+P21 -> €472,677

Sheet 13 week cash
C2: 13 week cash
C4: Selected case | E4: ='Assumptions'!$G$4 -> Base | H4: EUR. Entirely fictional.
E6: Forecast | F6: Forecast | G6: Forecast | H6: Forecast | I6: Forecast | J6: Forecast | K6: Forecast | L6: Forecast | M6: Forecast | N6: Forecast | O6: Forecast | P6: Forecast | Q6: Forecast
E7: 1–6 Sep | F7: 07 Sept | G7: 14 Sept | H7: 21 Sept | I7: 28 Sept | J7: 05 Oct | K7: 12 Oct | L7: 19 Oct | M7: 26 Oct | N7: 02 Nov | O7: 09 Nov | P7: 16 Nov | Q7: 23 Nov
C8: Opening cash | E8: ='Balance sheet'!L8 -> 171,657 | F8: =E18 -> 207,490 | G8: =F18 -> 237,562 | H8: =G18 -> 315,968 | I8: =H18 -> 215,012 | J8: =I18 -> 255,863 | K8: =J18 -> 228,863 | L8: =K18 -> 309,684 | M8: =L18 -> 154,659 | N8: =M18 -> 302,987 | O8: =N18 -> 296,987 | P8: =O18 -> 372,726 | Q8: =P18 -> 372,726
C9: Customer receipts | E9: =SUMIFS($F$37:$F$92,$D$37:$D$92,">="&46266,$D$37:$D$92,"<="&46271,$E$37:$E$92,"receipts") -> 36,654 | F9: =SUMIFS($F$37:$F$92,$D$37:$D$92,">="&46272,$D$37:$D$92,"<="&46278,$E$37:$E$92,"receipts") -> 70,254 | G9: =SUMIFS($F$37:$F$92,$D$37:$D$92,">="&46279,$D$37:$D$92,"<="&46285,$E$37:$E$92,"receipts") -> 79,418 | H9: =SUMIFS($F$37:$F$92,$D$37:$D$92,">="&46286,$D$37:$D$92,"<="&46292,$E$37:$E$92,"receipts") -> 73,309 | I9: =SUMIFS($F$37:$F$92,$D$37:$D$92,">="&46293,$D$37:$D$92,"<="&46299,$E$37:$E$92,"receipts") -> 45,818 | J9: =SUMIFS($F$37:$F$92,$D$37:$D$92,">="&46300,$D$37:$D$92,"<="&46306,$E$37:$E$92,"receipts") -> 0 | K9: =SUMIFS($F$37:$F$92,$D$37:$D$92,">="&46307,$D$37:$D$92,"<="&46313,$E$37:$E$92,"receipts") -> 84,437 | L9: =SUMIFS($F$37:$F$92,$D$37:$D$92,">="&46314,$D$37:$D$92,"<="&46320,$E$37:$E$92,"receipts") -> 0 | M9: =SUMIFS($F$37:$F$92,$D$37:$D$92,">="&46321,$D$37:$D$92,"<="&46327,$E$37:$E$92,"receipts") -> 156,812 | N9: =SUMIFS($F$37:$F$92,$D$37:$D$92,">="&46328,$D$37:$D$92,"<="&46334,$E$37:$E$92,"receipts") -> 0 | O9: =SUMIFS($F$37:$F$92,$D$37:$D$92,">="&46335,$D$37:$D$92,"<="&46341,$E$37:$E$92,"receipts") -> 100,144 | P9: =SUMIFS($F$37:$F$92,$D$37:$D$92,">="&46342,$D$37:$D$92,"<="&46348,$E$37:$E$92,"receipts") -> 0 | Q9: =SUMIFS($F$37:$F$92,$D$37:$D$92,">="&46349,$D$37:$D$92,"<="&46355,$E$37:$E$92,"receipts") -> 185,981
C10: Supplier payments | E10: =SUMIFS($F$37:$F$92,$D$37:$D$92,">="&46266,$D$37:$D$92,"<="&46271,$E$37:$E$92,"supplierPayments") -> (822) | F10: =SUMIFS($F$37:$F$92,$D$37:$D$92,">="&46272,$D$37:$D$92,"<="&46278,$E$37:$E$92,"supplierPayments") -> (1,182) | G10: =SUMIFS($F$37:$F$92,$D$37:$D$92,">="&46279,$D$37:$D$92,"<="&46285,$E$37:$E$92,"supplierPayments") -> (1,012) | H10: =SUMIFS($F$37:$F$92,$D$37:$D$92,">="&46286,$D$37:$D$92,"<="&46292,$E$37:$E$92,"supplierPayments") -> (1,740) | I10: =SUMIFS($F$37:$F$92,$D$37:$D$92,">="&46293,$D$37:$D$92,"<="&46299,$E$37:$E$92,"supplierPayments") -> (885) | J10: =SUMIFS($F$37:$F$92,$D$37:$D$92,">="&46300,$D$37:$D$92,"<="&46306,$E$37:$E$92,"supplierPayments") -> 0 | K10: =SUMIFS($F$37:$F$92,$D$37:$D$92,">="&46307,$D$37:$D$92,"<="&46313,$E$37:$E$92,"supplierPayments") -> (3,616) | L10: =SUMIFS($F$37:$F$92,$D$37:$D$92,">="&46314,$D$37:$D$92,"<="&46320,$E$37:$E$92,"supplierPayments") -> 0 | M10: =SUMIFS($F$37:$F$92,$D$37:$D$92,">="&46321,$D$37:$D$92,"<="&46327,$E$37:$E$92,"supplierPayments") -> (4,419) | N10: =SUMIFS($F$37:$F$92,$D$37:$D$92,">="&46328,$D$37:$D$92,"<="&46334,$E$37:$E$92,"supplierPayments") -> 0 | O10: =SUMIFS($F$37:$F$92,$D$37:$D$92,">="&46335,$D$37:$D$92,"<="&46341,$E$37:$E$92,"supplierPayments") -> (3,404) | P10: =SUMIFS($F$37:$F$92,$D$37:$D$92,">="&46342,$D$37:$D$92,"<="&46348,$E$37:$E$92,"supplierPayments") -> 0 | Q10: =SUMIFS($F$37:$F$92,$D$37:$D$92,">="&46349,$D$37:$D$92,"<="&46355,$E$37:$E$92,"supplierPayments") -> (4,161)
C11: Payroll | E11: =SUMIFS($F$37:$F$92,$D$37:$D$92,">="&46266,$D$37:$D$92,"<="&46271,$E$37:$E$92,"payroll") -> 0 | F11: =SUMIFS($F$37:$F$92,$D$37:$D$92,">="&46272,$D$37:$D$92,"<="&46278,$E$37:$E$92,"payroll") -> 0 | G11: =SUMIFS($F$37:$F$92,$D$37:$D$92,">="&46279,$D$37:$D$92,"<="&46285,$E$37:$E$92,"payroll") -> 0 | H11: =SUMIFS($F$37:$F$92,$D$37:$D$92,">="&46286,$D$37:$D$92,"<="&46292,$E$37:$E$92,"payroll") -> (154,525) | I11: =SUMIFS($F$37:$F$92,$D$37:$D$92,">="&46293,$D$37:$D$92,"<="&46299,$E$37:$E$92,"payroll") -> 0 | J11: =SUMIFS($F$37:$F$92,$D$37:$D$92,">="&46300,$D$37:$D$92,"<="&46306,$E$37:$E$92,"payroll") -> 0 | K11: =SUMIFS($F$37:$F$92,$D$37:$D$92,">="&46307,$D$37:$D$92,"<="&46313,$E$37:$E$92,"payroll") -> 0 | L11: =SUMIFS($F$37:$F$92,$D$37:$D$92,">="&46314,$D$37:$D$92,"<="&46320,$E$37:$E$92,"payroll") -> (155,025) | M11: =SUMIFS($F$37:$F$92,$D$37:$D$92,">="&46321,$D$37:$D$92,"<="&46327,$E$37:$E$92,"payroll") -> 0 | N11: =SUMIFS($F$37:$F$92,$D$37:$D$92,">="&46328,$D$37:$D$92,"<="&46334,$E$37:$E$92,"payroll") -> 0 | O11: =SUMIFS($F$37:$F$92,$D$37:$D$92,">="&46335,$D$37:$D$92,"<="&46341,$E$37:$E$92,"payroll") -> 0 | P11: =SUMIFS($F$37:$F$92,$D$37:$D$92,">="&46342,$D$37:$D$92,"<="&46348,$E$37:$E$92,"payroll") -> 0 | Q11: =SUMIFS($F$37:$F$92,$D$37:$D$92,">="&46349,$D$37:$D$92,"<="&46355,$E$37:$E$92,"payroll") -> (156,025)
C12: Operating overheads | E12: =SUMIFS($F$37:$F$92,$D$37:$D$92,">="&46266,$D$37:$D$92,"<="&46271,$E$37:$E$92,"overheads") -> 0 | F12: =SUMIFS($F$37:$F$92,$D$37:$D$92,">="&46272,$D$37:$D$92,"<="&46278,$E$37:$E$92,"overheads") -> (21,000) | G12: =SUMIFS($F$37:$F$92,$D$37:$D$92,">="&46279,$D$37:$D$92,"<="&46285,$E$37:$E$92,"overheads") -> 0 | H12: =SUMIFS($F$37:$F$92,$D$37:$D$92,">="&46286,$D$37:$D$92,"<="&46292,$E$37:$E$92,"overheads") -> 0 | I12: =SUMIFS($F$37:$F$92,$D$37:$D$92,">="&46293,$D$37:$D$92,"<="&46299,$E$37:$E$92,"overheads") -> 0 | J12: =SUMIFS($F$37:$F$92,$D$37:$D$92,">="&46300,$D$37:$D$92,"<="&46306,$E$37:$E$92,"overheads") -> (21,000) | K12: =SUMIFS($F$37:$F$92,$D$37:$D$92,">="&46307,$D$37:$D$92,"<="&46313,$E$37:$E$92,"overheads") -> 0 | L12: =SUMIFS($F$37:$F$92,$D$37:$D$92,">="&46314,$D$37:$D$92,"<="&46320,$E$37:$E$92,"overheads") -> 0 | M12: =SUMIFS($F$37:$F$92,$D$37:$D$92,">="&46321,$D$37:$D$92,"<="&46327,$E$37:$E$92,"overheads") -> 0 | N12: =SUMIFS($F$37:$F$92,$D$37:$D$92,">="&46328,$D$37:$D$92,"<="&46334,$E$37:$E$92,"overheads") -> 0 | O12: =SUMIFS($F$37:$F$92,$D$37:$D$92,">="&46335,$D$37:$D$92,"<="&46341,$E$37:$E$92,"overheads") -> (21,000) | P12: =SUMIFS($F$37:$F$92,$D$37:$D$92,">="&46342,$D$37:$D$92,"<="&46348,$E$37:$E$92,"overheads") -> 0 | Q12: =SUMIFS($F$37:$F$92,$D$37:$D$92,">="&46349,$D$37:$D$92,"<="&46355,$E$37:$E$92,"overheads") -> 0
C13: Tax paid | E13: =SUMIFS($F$37:$F$92,$D$37:$D$92,">="&46266,$D$37:$D$92,"<="&46271,$E$37:$E$92,"tax") -> 0 | F13: =SUMIFS($F$37:$F$92,$D$37:$D$92,">="&46272,$D$37:$D$92,"<="&46278,$E$37:$E$92,"tax") -> 0 | G13: =SUMIFS($F$37:$F$92,$D$37:$D$92,">="&46279,$D$37:$D$92,"<="&46285,$E$37:$E$92,"tax") -> 0 | H13: =SUMIFS($F$37:$F$92,$D$37:$D$92,">="&46286,$D$37:$D$92,"<="&46292,$E$37:$E$92,"tax") -> (18,000) | I13: =SUMIFS($F$37:$F$92,$D$37:$D$92,">="&46293,$D$37:$D$92,"<="&46299,$E$37:$E$92,"tax") -> 0 | J13: =SUMIFS($F$37:$F$92,$D$37:$D$92,">="&46300,$D$37:$D$92,"<="&46306,$E$37:$E$92,"tax") -> 0 | K13: =SUMIFS($F$37:$F$92,$D$37:$D$92,">="&46307,$D$37:$D$92,"<="&46313,$E$37:$E$92,"tax") -> 0 | L13: =SUMIFS($F$37:$F$92,$D$37:$D$92,">="&46314,$D$37:$D$92,"<="&46320,$E$37:$E$92,"tax") -> 0 | M13: =SUMIFS($F$37:$F$92,$D$37:$D$92,">="&46321,$D$37:$D$92,"<="&46327,$E$37:$E$92,"tax") -> 0 | N13: =SUMIFS($F$37:$F$92,$D$37:$D$92,">="&46328,$D$37:$D$92,"<="&46334,$E$37:$E$92,"tax") -> 0 | O13: =SUMIFS($F$37:$F$92,$D$37:$D$92,">="&46335,$D$37:$D$92,"<="&46341,$E$37:$E$92,"tax") -> 0 | P13: =SUMIFS($F$37:$F$92,$D$37:$D$92,">="&46342,$D$37:$D$92,"<="&46348,$E$37:$E$92,"tax") -> 0 | Q13: =SUMIFS($F$37:$F$92,$D$37:$D$92,">="&46349,$D$37:$D$92,"<="&46355,$E$37:$E$92,"tax") -> 0
C14: Interest paid | E14: =SUMIFS($F$37:$F$92,$D$37:$D$92,">="&46266,$D$37:$D$92,"<="&46271,$E$37:$E$92,"interest") -> 0 | F14: =SUMIFS($F$37:$F$92,$D$37:$D$92,">="&46272,$D$37:$D$92,"<="&46278,$E$37:$E$92,"interest") -> 0 | G14: =SUMIFS($F$37:$F$92,$D$37:$D$92,">="&46279,$D$37:$D$92,"<="&46285,$E$37:$E$92,"interest") -> 0 | H14: =SUMIFS($F$37:$F$92,$D$37:$D$92,">="&46286,$D$37:$D$92,"<="&46292,$E$37:$E$92,"interest") -> 0 | I14: =SUMIFS($F$37:$F$92,$D$37:$D$92,">="&46293,$D$37:$D$92,"<="&46299,$E$37:$E$92,"interest") -> (582) | J14: =SUMIFS($F$37:$F$92,$D$37:$D$92,">="&46300,$D$37:$D$92,"<="&46306,$E$37:$E$92,"interest") -> 0 | K14: =SUMIFS($F$37:$F$92,$D$37:$D$92,">="&46307,$D$37:$D$92,"<="&46313,$E$37:$E$92,"interest") -> 0 | L14: =SUMIFS($F$37:$F$92,$D$37:$D$92,">="&46314,$D$37:$D$92,"<="&46320,$E$37:$E$92,"interest") -> 0 | M14: =SUMIFS($F$37:$F$92,$D$37:$D$92,">="&46321,$D$37:$D$92,"<="&46327,$E$37:$E$92,"interest") -> (566) | N14: =SUMIFS($F$37:$F$92,$D$37:$D$92,">="&46328,$D$37:$D$92,"<="&46334,$E$37:$E$92,"interest") -> 0 | O14: =SUMIFS($F$37:$F$92,$D$37:$D$92,">="&46335,$D$37:$D$92,"<="&46341,$E$37:$E$92,"interest") -> 0 | P14: =SUMIFS($F$37:$F$92,$D$37:$D$92,">="&46342,$D$37:$D$92,"<="&46348,$E$37:$E$92,"interest") -> 0 | Q14: =SUMIFS($F$37:$F$92,$D$37:$D$92,">="&46349,$D$37:$D$92,"<="&46355,$E$37:$E$92,"interest") -> (550)
C15: Capital expenditure | E15: =SUMIFS($F$37:$F$92,$D$37:$D$92,">="&46266,$D$37:$D$92,"<="&46271,$E$37:$E$92,"capex") -> 0 | F15: =SUMIFS($F$37:$F$92,$D$37:$D$92,">="&46272,$D$37:$D$92,"<="&46278,$E$37:$E$92,"capex") -> (18,000) | G15: =SUMIFS($F$37:$F$92,$D$37:$D$92,">="&46279,$D$37:$D$92,"<="&46285,$E$37:$E$92,"capex") -> 0 | H15: =SUMIFS($F$37:$F$92,$D$37:$D$92,">="&46286,$D$37:$D$92,"<="&46292,$E$37:$E$92,"capex") -> 0 | I15: =SUMIFS($F$37:$F$92,$D$37:$D$92,">="&46293,$D$37:$D$92,"<="&46299,$E$37:$E$92,"capex") -> 0 | J15: =SUMIFS($F$37:$F$92,$D$37:$D$92,">="&46300,$D$37:$D$92,"<="&46306,$E$37:$E$92,"capex") -> (6,000) | K15: =SUMIFS($F$37:$F$92,$D$37:$D$92,">="&46307,$D$37:$D$92,"<="&46313,$E$37:$E$92,"capex") -> 0 | L15: =SUMIFS($F$37:$F$92,$D$37:$D$92,">="&46314,$D$37:$D$92,"<="&46320,$E$37:$E$92,"capex") -> 0 | M15: =SUMIFS($F$37:$F$92,$D$37:$D$92,">="&46321,$D$37:$D$92,"<="&46327,$E$37:$E$92,"capex") -> 0 | N15: =SUMIFS($F$37:$F$92,$D$37:$D$92,">="&46328,$D$37:$D$92,"<="&46334,$E$37:$E$92,"capex") -> (6,000) | O15: =SUMIFS($F$37:$F$92,$D$37:$D$92,">="&46335,$D$37:$D$92,"<="&46341,$E$37:$E$92,"capex") -> 0 | P15: =SUMIFS($F$37:$F$92,$D$37:$D$92,">="&46342,$D$37:$D$92,"<="&46348,$E$37:$E$92,"capex") -> 0 | Q15: =SUMIFS($F$37:$F$92,$D$37:$D$92,">="&46349,$D$37:$D$92,"<="&46355,$E$37:$E$92,"capex") -> 0
C16: Debt repayment | E16: =SUMIFS($F$37:$F$92,$D$37:$D$92,">="&46266,$D$37:$D$92,"<="&46271,$E$37:$E$92,"debt") -> 0 | F16: =SUMIFS($F$37:$F$92,$D$37:$D$92,">="&46272,$D$37:$D$92,"<="&46278,$E$37:$E$92,"debt") -> 0 | G16: =SUMIFS($F$37:$F$92,$D$37:$D$92,">="&46279,$D$37:$D$92,"<="&46285,$E$37:$E$92,"debt") -> 0 | H16: =SUMIFS($F$37:$F$92,$D$37:$D$92,">="&46286,$D$37:$D$92,"<="&46292,$E$37:$E$92,"debt") -> 0 | I16: =SUMIFS($F$37:$F$92,$D$37:$D$92,">="&46293,$D$37:$D$92,"<="&46299,$E$37:$E$92,"debt") -> (3,500) | J16: =SUMIFS($F$37:$F$92,$D$37:$D$92,">="&46300,$D$37:$D$92,"<="&46306,$E$37:$E$92,"debt") -> 0 | K16: =SUMIFS($F$37:$F$92,$D$37:$D$92,">="&46307,$D$37:$D$92,"<="&46313,$E$37:$E$92,"debt") -> 0 | L16: =SUMIFS($F$37:$F$92,$D$37:$D$92,">="&46314,$D$37:$D$92,"<="&46320,$E$37:$E$92,"debt") -> 0 | M16: =SUMIFS($F$37:$F$92,$D$37:$D$92,">="&46321,$D$37:$D$92,"<="&46327,$E$37:$E$92,"debt") -> (3,500) | N16: =SUMIFS($F$37:$F$92,$D$37:$D$92,">="&46328,$D$37:$D$92,"<="&46334,$E$37:$E$92,"debt") -> 0 | O16: =SUMIFS($F$37:$F$92,$D$37:$D$92,">="&46335,$D$37:$D$92,"<="&46341,$E$37:$E$92,"debt") -> 0 | P16: =SUMIFS($F$37:$F$92,$D$37:$D$92,">="&46342,$D$37:$D$92,"<="&46348,$E$37:$E$92,"debt") -> 0 | Q16: =SUMIFS($F$37:$F$92,$D$37:$D$92,">="&46349,$D$37:$D$92,"<="&46355,$E$37:$E$92,"debt") -> (3,500)
C17: Net cash change | E17: =SUM(E9:E16) -> €35,833 | F17: =SUM(F9:F16) -> €30,072 | G17: =SUM(G9:G16) -> €78,406 | H17: =SUM(H9:H16) -> (€100,956) | I17: =SUM(I9:I16) -> €40,851 | J17: =SUM(J9:J16) -> (€27,000) | K17: =SUM(K9:K16) -> €80,822 | L17: =SUM(L9:L16) -> (€155,025) | M17: =SUM(M9:M16) -> €148,327 | N17: =SUM(N9:N16) -> (€6,000) | O17: =SUM(O9:O16) -> €75,739 | P17: =SUM(P9:P16) -> 0 | Q17: =SUM(Q9:Q16) -> €21,745
C18: Closing cash | E18: =E8+E17 -> €207,490 | F18: =F8+F17 -> €237,562 | G18: =G8+G17 -> €315,968 | H18: =H8+H17 -> €215,012 | I18: =I8+I17 -> €255,863 | J18: =J8+J17 -> €228,863 | K18: =K8+K17 -> €309,684 | L18: =L8+L17 -> €154,659 | M18: =M8+M17 -> €302,987 | N18: =N8+N17 -> €296,987 | O18: =O8+O17 -> €372,726 | P18: =P8+P17 -> €372,726 | Q18: =Q8+Q17 -> €394,471
C19: Minimum reserve | E19: ='Assumptions'!$E$154 -> €100,000 | F19: ='Assumptions'!$E$154 -> €100,000 | G19: ='Assumptions'!$E$154 -> €100,000 | H19: ='Assumptions'!$E$154 -> €100,000 | I19: ='Assumptions'!$E$154 -> €100,000 | J19: ='Assumptions'!$E$154 -> €100,000 | K19: ='Assumptions'!$E$154 -> €100,000 | L19: ='Assumptions'!$E$154 -> €100,000 | M19: ='Assumptions'!$E$154 -> €100,000 | N19: ='Assumptions'!$E$154 -> €100,000 | O19: ='Assumptions'!$E$154 -> €100,000 | P19: ='Assumptions'!$E$154 -> €100,000 | Q19: ='Assumptions'!$E$154 -> €100,000
C20: Reserve headroom / (shortfall) | E20: =E18-E19 -> €107,490 | F20: =F18-F19 -> €137,562 | G20: =G18-G19 -> €215,968 | H20: =H18-H19 -> €115,012 | I20: =I18-I19 -> €155,863 | J20: =J18-J19 -> €128,863 | K20: =K18-K19 -> €209,684 | L20: =L18-L19 -> €54,659 | M20: =M18-M19 -> €202,987 | N20: =N18-N19 -> €196,987 | O20: =O18-O19 -> €272,726 | P20: =P18-P19 -> €272,726 | Q20: =Q18-Q19 -> €294,471
C23: Lowest end-of-day scheduled cash | F23: =MIN(H112:H201) -> 150,240 | H23: On | I23: =INDEX(C112:C201,MATCH(F23,H112:H201,0)) -> 2026-10-26
C25: Funding needed to avoid negative cash | F25: =MAX(0,-F23) -> 0
C27: Opening cash follows the 31 August close. Week 1 is 1–6 September.
C29: Negative cash is unfunded. Pending AP remains a liability.
C33: Dated cash schedule
C35: Reference | D35: Scheduled date | E35: Cash category | F35: Amount
C37: AR-1 | D37: ='Working capital'!I42 -> 2026-09-04 | E37: receipts | F37: ='Working capital'!L42 -> 36,654
C38: AR-2 | D38: ='Working capital'!I43 -> 2026-09-08 | E38: receipts | F38: ='Working capital'!L43 -> 42,764
C39: AR-3 | D39: ='Working capital'!I44 -> 2026-09-11 | E39: receipts | F39: ='Working capital'!L44 -> 27,491
C40: AR-4 | D40: ='Working capital'!I45 -> 2026-09-15 | E40: receipts | F40: ='Working capital'!L45 -> 48,873
C41: AR-5 | D41: ='Working capital'!I46 -> 2026-09-18 | E41: receipts | F41: ='Working capital'!L46 -> 30,545
C42: AR-6 | D42: ='Working capital'!I47 -> 2026-09-22 | E42: receipts | F42: ='Working capital'!L47 -> 39,709
C43: AR-7 | D43: ='Working capital'!I48 -> 2026-09-25 | E43: receipts | F43: ='Working capital'!L48 -> 33,600
C44: AR-8 | D44: ='Working capital'!I49 -> 2026-10-02 | E44: receipts | F44: ='Working capital'!L49 -> 45,818
C45: AP-1 | D45: ='Working capital'!N56 -> 2026-09-04 | E45: supplierPayments | F45: =-'Working capital'!O56 -> (822)
C46: AP-2 | D46: ='Working capital'!N57 -> 00:00:00 | E46: supplierPayments | F46: =-'Working capital'!O57 -> 0
C47: AP-3 | D47: ='Working capital'!N58 -> 2026-09-11 | E47: supplierPayments | F47: =-'Working capital'!O58 -> (948)
C48: AP-4 | D48: ='Working capital'!N59 -> 00:00:00 | E48: supplierPayments | F48: =-'Working capital'!O59 -> 0
C49: AP-5 | D49: ='Working capital'!N60 -> 2026-09-18 | E49: supplierPayments | F49: =-'Working capital'!O60 -> (1,012)
C50: AP-6 | D50: ='Working capital'!N61 -> 2026-09-22 | E50: supplierPayments | F50: =-'Working capital'!O61 -> (759)
C51: AP-7 | D51: ='Working capital'!N62 -> 2026-09-25 | E51: supplierPayments | F51: =-'Working capital'!O62 -> (695)
C52: AP-8 | D52: ='Working capital'!N63 -> 2026-10-02 | E52: supplierPayments | F52: =-'Working capital'!O63 -> (885)
C53: receipts Sept 26 | D53: 2026-09-15 | E53: receipts | F53: =('Working capital'!M12-SUMIFS($F$37:$F$52,$E$37:$E$52,"receipts",$D$37:$D$52,">="&46266,$D$37:$D$52,"<="&46295))*0.35 -> 0
C54: receipts Sept 26 | D54: 2026-09-28 | E54: receipts | F54: =('Working capital'!M12-SUMIFS($F$37:$F$52,$E$37:$E$52,"receipts",$D$37:$D$52,">="&46266,$D$37:$D$52,"<="&46295))*0.65 -> 0
C55: supplierPayments Sept 26 | D55: 2026-09-12 | E55: supplierPayments | F55: =('Working capital'!M17-SUMIFS($F$37:$F$52,$E$37:$E$52,"supplierPayments",$D$37:$D$52,">="&46266,$D$37:$D$52,"<="&46295))*0.45 -> (234)
C56: supplierPayments Sept 26 | D56: 2026-09-26 | E56: supplierPayments | F56: =('Working capital'!M17-SUMIFS($F$37:$F$52,$E$37:$E$52,"supplierPayments",$D$37:$D$52,">="&46266,$D$37:$D$52,"<="&46295))*0.55 -> (286)
C57: payroll Sept 26 | D57: 2026-09-25 | E57: payroll | F57: =('Working capital'!M23-SUMIFS($F$37:$F$52,$E$37:$E$52,"payroll",$D$37:$D$52,">="&46266,$D$37:$D$52,"<="&46295))*1 -> (154,525)
C58: overheads Sept 26 | D58: 2026-09-10 | E58: overheads | F58: =('Working capital'!M24-SUMIFS($F$37:$F$52,$E$37:$E$52,"overheads",$D$37:$D$52,">="&46266,$D$37:$D$52,"<="&46295))*1 -> (21,000)
C59: tax Sept 26 | D59: 2026-09-21 | E59: tax | F59: =('Working capital'!M25-SUMIFS($F$37:$F$52,$E$37:$E$52,"tax",$D$37:$D$52,">="&46266,$D$37:$D$52,"<="&46295))*1 -> (18,000)
C60: interest Sept 26 | D60: 2026-09-28 | E60: interest | F60: =('Working capital'!M26-SUMIFS($F$37:$F$52,$E$37:$E$52,"interest",$D$37:$D$52,">="&46266,$D$37:$D$52,"<="&46295))*1 -> (582)
C61: capex Sept 26 | D61: 2026-09-08 | E61: capex | F61: =('Working capital'!M27-SUMIFS($F$37:$F$52,$E$37:$E$52,"capex",$D$37:$D$52,">="&46266,$D$37:$D$52,"<="&46295))*1 -> (18,000)
C62: debt Sept 26 | D62: 2026-09-28 | E62: debt | F62: =('Working capital'!M28-SUMIFS($F$37:$F$52,$E$37:$E$52,"debt",$D$37:$D$52,">="&46266,$D$37:$D$52,"<="&46295))*1 -> (3,500)
C63: receipts Oct 26 | D63: 2026-10-15 | E63: receipts | F63: =('Working capital'!N12-SUMIFS($F$37:$F$52,$E$37:$E$52,"receipts",$D$37:$D$52,">="&46296,$D$37:$D$52,"<="&46326))*0.35 -> 84,437
C64: receipts Oct 26 | D64: 2026-10-28 | E64: receipts | F64: =('Working capital'!N12-SUMIFS($F$37:$F$52,$E$37:$E$52,"receipts",$D$37:$D$52,">="&46296,$D$37:$D$52,"<="&46326))*0.65 -> 156,812
C65: supplierPayments Oct 26 | D65: 2026-10-12 | E65: supplierPayments | F65: =('Working capital'!N17-SUMIFS($F$37:$F$52,$E$37:$E$52,"supplierPayments",$D$37:$D$52,">="&46296,$D$37:$D$52,"<="&46326))*0.45 -> (3,616)
C66: supplierPayments Oct 26 | D66: 2026-10-26 | E66: supplierPayments | F66: =('Working capital'!N17-SUMIFS($F$37:$F$52,$E$37:$E$52,"supplierPayments",$D$37:$D$52,">="&46296,$D$37:$D$52,"<="&46326))*0.55 -> (4,419)
C67: payroll Oct 26 | D67: 2026-10-25 | E67: payroll | F67: =('Working capital'!N23-SUMIFS($F$37:$F$52,$E$37:$E$52,"payroll",$D$37:$D$52,">="&46296,$D$37:$D$52,"<="&46326))*1 -> (155,025)
C68: overheads Oct 26 | D68: 2026-10-10 | E68: overheads | F68: =('Working capital'!N24-SUMIFS($F$37:$F$52,$E$37:$E$52,"overheads",$D$37:$D$52,">="&46296,$D$37:$D$52,"<="&46326))*1 -> (21,000)
C69: tax Oct 26 | D69: 2026-10-21 | E69: tax | F69: =('Working capital'!N25-SUMIFS($F$37:$F$52,$E$37:$E$52,"tax",$D$37:$D$52,">="&46296,$D$37:$D$52,"<="&46326))*1 -> 0
C70: interest Oct 26 | D70: 2026-10-28 | E70: interest | F70: =('Working capital'!N26-SUMIFS($F$37:$F$52,$E$37:$E$52,"interest",$D$37:$D$52,">="&46296,$D$37:$D$52,"<="&46326))*1 -> (566)
C71: capex Oct 26 | D71: 2026-10-08 | E71: capex | F71: =('Working capital'!N27-SUMIFS($F$37:$F$52,$E$37:$E$52,"capex",$D$37:$D$52,">="&46296,$D$37:$D$52,"<="&46326))*1 -> (6,000)
C72: debt Oct 26 | D72: 2026-10-28 | E72: debt | F72: =('Working capital'!N28-SUMIFS($F$37:$F$52,$E$37:$E$52,"debt",$D$37:$D$52,">="&46296,$D$37:$D$52,"<="&46326))*1 -> (3,500)
C73: receipts Nov 26 | D73: 2026-11-15 | E73: receipts | F73: =('Working capital'!O12-SUMIFS($F$37:$F$52,$E$37:$E$52,"receipts",$D$37:$D$52,">="&46327,$D$37:$D$52,"<="&46356))*0.35 -> 100,144
C74: receipts Nov 26 | D74: 2026-11-28 | E74: receipts | F74: =('Working capital'!O12-SUMIFS($F$37:$F$52,$E$37:$E$52,"receipts",$D$37:$D$52,">="&46327,$D$37:$D$52,"<="&46356))*0.65 -> 185,981
C75: supplierPayments Nov 26 | D75: 2026-11-12 | E75: supplierPayments | F75: =('Working capital'!O17-SUMIFS($F$37:$F$52,$E$37:$E$52,"supplierPayments",$D$37:$D$52,">="&46327,$D$37:$D$52,"<="&46356))*0.45 -> (3,404)
C76: supplierPayments Nov 26 | D76: 2026-11-26 | E76: supplierPayments | F76: =('Working capital'!O17-SUMIFS($F$37:$F$52,$E$37:$E$52,"supplierPayments",$D$37:$D$52,">="&46327,$D$37:$D$52,"<="&46356))*0.55 -> (4,161)
C77: payroll Nov 26 | D77: 2026-11-25 | E77: payroll | F77: =('Working capital'!O23-SUMIFS($F$37:$F$52,$E$37:$E$52,"payroll",$D$37:$D$52,">="&46327,$D$37:$D$52,"<="&46356))*1 -> (156,025)
C78: overheads Nov 26 | D78: 2026-11-10 | E78: overheads | F78: =('Working capital'!O24-SUMIFS($F$37:$F$52,$E$37:$E$52,"overheads",$D$37:$D$52,">="&46327,$D$37:$D$52,"<="&46356))*1 -> (21,000)
C79: tax Nov 26 | D79: 2026-11-21 | E79: tax | F79: =('Working capital'!O25-SUMIFS($F$37:$F$52,$E$37:$E$52,"tax",$D$37:$D$52,">="&46327,$D$37:$D$52,"<="&46356))*1 -> 0
C80: interest Nov 26 | D80: 2026-11-28 | E80: interest | F80: =('Working capital'!O26-SUMIFS($F$37:$F$52,$E$37:$E$52,"interest",$D$37:$D$52,">="&46327,$D$37:$D$52,"<="&46356))*1 -> (550)
C81: capex Nov 26 | D81: 2026-11-08 | E81: capex | F81: =('Working capital'!O27-SUMIFS($F$37:$F$52,$E$37:$E$52,"capex",$D$37:$D$52,">="&46327,$D$37:$D$52,"<="&46356))*1 -> (6,000)
C82: debt Nov 26 | D82: 2026-11-28 | E82: debt | F82: =('Working capital'!O28-SUMIFS($F$37:$F$52,$E$37:$E$52,"debt",$D$37:$D$52,">="&46327,$D$37:$D$52,"<="&46356))*1 -> (3,500)
C83: receipts Dec 26 | D83: 2026-12-15 | E83: receipts | F83: =('Working capital'!P12-SUMIFS($F$37:$F$52,$E$37:$E$52,"receipts",$D$37:$D$52,">="&46357,$D$37:$D$52,"<="&46387))*0.35 -> 101,605
C84: receipts Dec 26 | D84: 2026-12-28 | E84: receipts | F84: =('Working capital'!P12-SUMIFS($F$37:$F$52,$E$37:$E$52,"receipts",$D$37:$D$52,">="&46357,$D$37:$D$52,"<="&46387))*0.65 -> 188,695
C85: supplierPayments Dec 26 | D85: 2026-12-12 | E85: supplierPayments | F85: =('Working capital'!P17-SUMIFS($F$37:$F$52,$E$37:$E$52,"supplierPayments",$D$37:$D$52,">="&46357,$D$37:$D$52,"<="&46387))*0.45 -> (3,616)
C86: supplierPayments Dec 26 | D86: 2026-12-26 | E86: supplierPayments | F86: =('Working capital'!P17-SUMIFS($F$37:$F$52,$E$37:$E$52,"supplierPayments",$D$37:$D$52,">="&46357,$D$37:$D$52,"<="&46387))*0.55 -> (4,419)
C87: payroll Dec 26 | D87: 2026-12-25 | E87: payroll | F87: =('Working capital'!P23-SUMIFS($F$37:$F$52,$E$37:$E$52,"payroll",$D$37:$D$52,">="&46357,$D$37:$D$52,"<="&46387))*1 -> (157,025)
C88: overheads Dec 26 | D88: 2026-12-10 | E88: overheads | F88: =('Working capital'!P24-SUMIFS($F$37:$F$52,$E$37:$E$52,"overheads",$D$37:$D$52,">="&46357,$D$37:$D$52,"<="&46387))*1 -> (21,000)
C89: tax Dec 26 | D89: 2026-12-21 | E89: tax | F89: =('Working capital'!P25-SUMIFS($F$37:$F$52,$E$37:$E$52,"tax",$D$37:$D$52,">="&46357,$D$37:$D$52,"<="&46387))*1 -> (16,000)
C90: interest Dec 26 | D90: 2026-12-28 | E90: interest | F90: =('Working capital'!P26-SUMIFS($F$37:$F$52,$E$37:$E$52,"interest",$D$37:$D$52,">="&46357,$D$37:$D$52,"<="&46387))*1 -> (534)
C91: capex Dec 26 | D91: 2026-12-08 | E91: capex | F91: =('Working capital'!P27-SUMIFS($F$37:$F$52,$E$37:$E$52,"capex",$D$37:$D$52,">="&46357,$D$37:$D$52,"<="&46387))*1 -> (6,000)
C92: debt Dec 26 | D92: 2026-12-28 | E92: debt | F92: =('Working capital'!P28-SUMIFS($F$37:$F$52,$E$37:$E$52,"debt",$D$37:$D$52,">="&46357,$D$37:$D$52,"<="&46387))*1 -> (3,500)
C108: Daily scheduled cash
C110: Date | D110: Opening | E110: Receipts | F110: Payments | G110: Net change | H110: Closing | I110: Reserve | J110: Headroom
C112: 2026-09-01 | D112: ='Balance sheet'!L8 -> 171,657 | E112: =SUMIFS($F$37:$F$92,$D$37:$D$92,C112,$F$37:$F$92,">0") -> 0 | F112: =SUMIFS($F$37:$F$92,$D$37:$D$92,C112,$F$37:$F$92,"<0") -> 0 | G112: =SUM(E112:F112) -> 0 | H112: =D112+G112 -> 171,657 | I112: ='Assumptions'!$E$154 -> 100,000 | J112: =H112-I112 -> 71,657
C113: 2026-09-02 | D113: =H112 -> 171,657 | E113: =SUMIFS($F$37:$F$92,$D$37:$D$92,C113,$F$37:$F$92,">0") -> 0 | F113: =SUMIFS($F$37:$F$92,$D$37:$D$92,C113,$F$37:$F$92,"<0") -> 0 | G113: =SUM(E113:F113) -> 0 | H113: =D113+G113 -> 171,657 | I113: ='Assumptions'!$E$154 -> 100,000 | J113: =H113-I113 -> 71,657
C114: 2026-09-03 | D114: =H113 -> 171,657 | E114: =SUMIFS($F$37:$F$92,$D$37:$D$92,C114,$F$37:$F$92,">0") -> 0 | F114: =SUMIFS($F$37:$F$92,$D$37:$D$92,C114,$F$37:$F$92,"<0") -> 0 | G114: =SUM(E114:F114) -> 0 | H114: =D114+G114 -> 171,657 | I114: ='Assumptions'!$E$154 -> 100,000 | J114: =H114-I114 -> 71,657
C115: 2026-09-04 | D115: =H114 -> 171,657 | E115: =SUMIFS($F$37:$F$92,$D$37:$D$92,C115,$F$37:$F$92,">0") -> 36,654 | F115: =SUMIFS($F$37:$F$92,$D$37:$D$92,C115,$F$37:$F$92,"<0") -> (822) | G115: =SUM(E115:F115) -> 35,833 | H115: =D115+G115 -> 207,490 | I115: ='Assumptions'!$E$154 -> 100,000 | J115: =H115-I115 -> 107,490
C116: 2026-09-05 | D116: =H115 -> 207,490 | E116: =SUMIFS($F$37:$F$92,$D$37:$D$92,C116,$F$37:$F$92,">0") -> 0 | F116: =SUMIFS($F$37:$F$92,$D$37:$D$92,C116,$F$37:$F$92,"<0") -> 0 | G116: =SUM(E116:F116) -> 0 | H116: =D116+G116 -> 207,490 | I116: ='Assumptions'!$E$154 -> 100,000 | J116: =H116-I116 -> 107,490
C117: 2026-09-06 | D117: =H116 -> 207,490 | E117: =SUMIFS($F$37:$F$92,$D$37:$D$92,C117,$F$37:$F$92,">0") -> 0 | F117: =SUMIFS($F$37:$F$92,$D$37:$D$92,C117,$F$37:$F$92,"<0") -> 0 | G117: =SUM(E117:F117) -> 0 | H117: =D117+G117 -> 207,490 | I117: ='Assumptions'!$E$154 -> 100,000 | J117: =H117-I117 -> 107,490
C118: 2026-09-07 | D118: =H117 -> 207,490 | E118: =SUMIFS($F$37:$F$92,$D$37:$D$92,C118,$F$37:$F$92,">0") -> 0 | F118: =SUMIFS($F$37:$F$92,$D$37:$D$92,C118,$F$37:$F$92,"<0") -> 0 | G118: =SUM(E118:F118) -> 0 | H118: =D118+G118 -> 207,490 | I118: ='Assumptions'!$E$154 -> 100,000 | J118: =H118-I118 -> 107,490
C119: 2026-09-08 | D119: =H118 -> 207,490 | E119: =SUMIFS($F$37:$F$92,$D$37:$D$92,C119,$F$37:$F$92,">0") -> 42,764 | F119: =SUMIFS($F$37:$F$92,$D$37:$D$92,C119,$F$37:$F$92,"<0") -> (18,000) | G119: =SUM(E119:F119) -> 24,764 | H119: =D119+G119 -> 232,253 | I119: ='Assumptions'!$E$154 -> 100,000 | J119: =H119-I119 -> 132,253
C120: 2026-09-09 | D120: =H119 -> 232,253 | E120: =SUMIFS($F$37:$F$92,$D$37:$D$92,C120,$F$37:$F$92,">0") -> 0 | F120: =SUMIFS($F$37:$F$92,$D$37:$D$92,C120,$F$37:$F$92,"<0") -> 0 | G120: =SUM(E120:F120) -> 0 | H120: =D120+G120 -> 232,253 | I120: ='Assumptions'!$E$154 -> 100,000 | J120: =H120-I120 -> 132,253
C121: 2026-09-10 | D121: =H120 -> 232,253 | E121: =SUMIFS($F$37:$F$92,$D$37:$D$92,C121,$F$37:$F$92,">0") -> 0 | F121: =SUMIFS($F$37:$F$92,$D$37:$D$92,C121,$F$37:$F$92,"<0") -> (21,000) | G121: =SUM(E121:F121) -> (21,000) | H121: =D121+G121 -> 211,253 | I121: ='Assumptions'!$E$154 -> 100,000 | J121: =H121-I121 -> 111,253
C122: 2026-09-11 | D122: =H121 -> 211,253 | E122: =SUMIFS($F$37:$F$92,$D$37:$D$92,C122,$F$37:$F$92,">0") -> 27,491 | F122: =SUMIFS($F$37:$F$92,$D$37:$D$92,C122,$F$37:$F$92,"<0") -> (948) | G122: =SUM(E122:F122) -> 26,542 | H122: =D122+G122 -> 237,796 | I122: ='Assumptions'!$E$154 -> 100,000 | J122: =H122-I122 -> 137,796
C123: 2026-09-12 | D123: =H122 -> 237,796 | E123: =SUMIFS($F$37:$F$92,$D$37:$D$92,C123,$F$37:$F$92,">0") -> 0 | F123: =SUMIFS($F$37:$F$92,$D$37:$D$92,C123,$F$37:$F$92,"<0") -> (234) | G123: =SUM(E123:F123) -> (234) | H123: =D123+G123 -> 237,562 | I123: ='Assumptions'!$E$154 -> 100,000 | J123: =H123-I123 -> 137,562
C124: 2026-09-13 | D124: =H123 -> 237,562 | E124: =SUMIFS($F$37:$F$92,$D$37:$D$92,C124,$F$37:$F$92,">0") -> 0 | F124: =SUMIFS($F$37:$F$92,$D$37:$D$92,C124,$F$37:$F$92,"<0") -> 0 | G124: =SUM(E124:F124) -> 0 | H124: =D124+G124 -> 237,562 | I124: ='Assumptions'!$E$154 -> 100,000 | J124: =H124-I124 -> 137,562
C125: 2026-09-14 | D125: =H124 -> 237,562 | E125: =SUMIFS($F$37:$F$92,$D$37:$D$92,C125,$F$37:$F$92,">0") -> 0 | F125: =SUMIFS($F$37:$F$92,$D$37:$D$92,C125,$F$37:$F$92,"<0") -> 0 | G125: =SUM(E125:F125) -> 0 | H125: =D125+G125 -> 237,562 | I125: ='Assumptions'!$E$154 -> 100,000 | J125: =H125-I125 -> 137,562
C126: 2026-09-15 | D126: =H125 -> 237,562 | E126: =SUMIFS($F$37:$F$92,$D$37:$D$92,C126,$F$37:$F$92,">0") -> 48,873 | F126: =SUMIFS($F$37:$F$92,$D$37:$D$92,C126,$F$37:$F$92,"<0") -> 0 | G126: =SUM(E126:F126) -> 48,873 | H126: =D126+G126 -> 286,434 | I126: ='Assumptions'!$E$154 -> 100,000 | J126: =H126-I126 -> 186,434
C127: 2026-09-16 | D127: =H126 -> 286,434 | E127: =SUMIFS($F$37:$F$92,$D$37:$D$92,C127,$F$37:$F$92,">0") -> 0 | F127: =SUMIFS($F$37:$F$92,$D$37:$D$92,C127,$F$37:$F$92,"<0") -> 0 | G127: =SUM(E127:F127) -> 0 | H127: =D127+G127 -> 286,434 | I127: ='Assumptions'!$E$154 -> 100,000 | J127: =H127-I127 -> 186,434
C128: 2026-09-17 | D128: =H127 -> 286,434 | E128: =SUMIFS($F$37:$F$92,$D$37:$D$92,C128,$F$37:$F$92,">0") -> 0 | F128: =SUMIFS($F$37:$F$92,$D$37:$D$92,C128,$F$37:$F$92,"<0") -> 0 | G128: =SUM(E128:F128) -> 0 | H128: =D128+G128 -> 286,434 | I128: ='Assumptions'!$E$154 -> 100,000 | J128: =H128-I128 -> 186,434
C129: 2026-09-18 | D129: =H128 -> 286,434 | E129: =SUMIFS($F$37:$F$92,$D$37:$D$92,C129,$F$37:$F$92,">0") -> 30,545 | F129: =SUMIFS($F$37:$F$92,$D$37:$D$92,C129,$F$37:$F$92,"<0") -> (1,012) | G129: =SUM(E129:F129) -> 29,534 | H129: =D129+G129 -> 315,968 | I129: ='Assumptions'!$E$154 -> 100,000 | J129: =H129-I129 -> 215,968
C130: 2026-09-19 | D130: =H129 -> 315,968 | E130: =SUMIFS($F$37:$F$92,$D$37:$D$92,C130,$F$37:$F$92,">0") -> 0 | F130: =SUMIFS($F$37:$F$92,$D$37:$D$92,C130,$F$37:$F$92,"<0") -> 0 | G130: =SUM(E130:F130) -> 0 | H130: =D130+G130 -> 315,968 | I130: ='Assumptions'!$E$154 -> 100,000 | J130: =H130-I130 -> 215,968
C131: 2026-09-20 | D131: =H130 -> 315,968 | E131: =SUMIFS($F$37:$F$92,$D$37:$D$92,C131,$F$37:$F$92,">0") -> 0 | F131: =SUMIFS($F$37:$F$92,$D$37:$D$92,C131,$F$37:$F$92,"<0") -> 0 | G131: =SUM(E131:F131) -> 0 | H131: =D131+G131 -> 315,968 | I131: ='Assumptions'!$E$154 -> 100,000 | J131: =H131-I131 -> 215,968
C132: 2026-09-21 | D132: =H131 -> 315,968 | E132: =SUMIFS($F$37:$F$92,$D$37:$D$92,C132,$F$37:$F$92,">0") -> 0 | F132: =SUMIFS($F$37:$F$92,$D$37:$D$92,C132,$F$37:$F$92,"<0") -> (18,000) | G132: =SUM(E132:F132) -> (18,000) | H132: =D132+G132 -> 297,968 | I132: ='Assumptions'!$E$154 -> 100,000 | J132: =H132-I132 -> 197,968
C133: 2026-09-22 | D133: =H132 -> 297,968 | E133: =SUMIFS($F$37:$F$92,$D$37:$D$92,C133,$F$37:$F$92,">0") -> 39,709 | F133: =SUMIFS($F$37:$F$92,$D$37:$D$92,C133,$F$37:$F$92,"<0") -> (759) | G133: =SUM(E133:F133) -> 38,950 | H133: =D133+G133 -> 336,918 | I133: ='Assumptions'!$E$154 -> 100,000 | J133: =H133-I133 -> 236,918
C134: 2026-09-23 | D134: =H133 -> 336,918 | E134: =SUMIFS($F$37:$F$92,$D$37:$D$92,C134,$F$37:$F$92,">0") -> 0 | F134: =SUMIFS($F$37:$F$92,$D$37:$D$92,C134,$F$37:$F$92,"<0") -> 0 | G134: =SUM(E134:F134) -> 0 | H134: =D134+G134 -> 336,918 | I134: ='Assumptions'!$E$154 -> 100,000 | J134: =H134-I134 -> 236,918
C135: 2026-09-24 | D135: =H134 -> 336,918 | E135: =SUMIFS($F$37:$F$92,$D$37:$D$92,C135,$F$37:$F$92,">0") -> 0 | F135: =SUMIFS($F$37:$F$92,$D$37:$D$92,C135,$F$37:$F$92,"<0") -> 0 | G135: =SUM(E135:F135) -> 0 | H135: =D135+G135 -> 336,918 | I135: ='Assumptions'!$E$154 -> 100,000 | J135: =H135-I135 -> 236,918
C136: 2026-09-25 | D136: =H135 -> 336,918 | E136: =SUMIFS($F$37:$F$92,$D$37:$D$92,C136,$F$37:$F$92,">0") -> 33,600 | F136: =SUMIFS($F$37:$F$92,$D$37:$D$92,C136,$F$37:$F$92,"<0") -> (155,220) | G136: =SUM(E136:F136) -> (121,621) | H136: =D136+G136 -> 215,298 | I136: ='Assumptions'!$E$154 -> 100,000 | J136: =H136-I136 -> 115,298
C137: 2026-09-26 | D137: =H136 -> 215,298 | E137: =SUMIFS($F$37:$F$92,$D$37:$D$92,C137,$F$37:$F$92,">0") -> 0 | F137: =SUMIFS($F$37:$F$92,$D$37:$D$92,C137,$F$37:$F$92,"<0") -> (286) | G137: =SUM(E137:F137) -> (286) | H137: =D137+G137 -> 215,012 | I137: ='Assumptions'!$E$154 -> 100,000 | J137: =H137-I137 -> 115,012
C138: 2026-09-27 | D138: =H137 -> 215,012 | E138: =SUMIFS($F$37:$F$92,$D$37:$D$92,C138,$F$37:$F$92,">0") -> 0 | F138: =SUMIFS($F$37:$F$92,$D$37:$D$92,C138,$F$37:$F$92,"<0") -> 0 | G138: =SUM(E138:F138) -> 0 | H138: =D138+G138 -> 215,012 | I138: ='Assumptions'!$E$154 -> 100,000 | J138: =H138-I138 -> 115,012
C139: 2026-09-28 | D139: =H138 -> 215,012 | E139: =SUMIFS($F$37:$F$92,$D$37:$D$92,C139,$F$37:$F$92,">0") -> 0 | F139: =SUMIFS($F$37:$F$92,$D$37:$D$92,C139,$F$37:$F$92,"<0") -> (4,082) | G139: =SUM(E139:F139) -> (4,082) | H139: =D139+G139 -> 210,930 | I139: ='Assumptions'!$E$154 -> 100,000 | J139: =H139-I139 -> 110,930
C140: 2026-09-29 | D140: =H139 -> 210,930 | E140: =SUMIFS($F$37:$F$92,$D$37:$D$92,C140,$F$37:$F$92,">0") -> 0 | F140: =SUMIFS($F$37:$F$92,$D$37:$D$92,C140,$F$37:$F$92,"<0") -> 0 | G140: =SUM(E140:F140) -> 0 | H140: =D140+G140 -> 210,930 | I140: ='Assumptions'!$E$154 -> 100,000 | J140: =H140-I140 -> 110,930
C141: 2026-09-30 | D141: =H140 -> 210,930 | E141: =SUMIFS($F$37:$F$92,$D$37:$D$92,C141,$F$37:$F$92,">0") -> 0 | F141: =SUMIFS($F$37:$F$92,$D$37:$D$92,C141,$F$37:$F$92,"<0") -> 0 | G141: =SUM(E141:F141) -> 0 | H141: =D141+G141 -> 210,930 | I141: ='Assumptions'!$E$154 -> 100,000 | J141: =H141-I141 -> 110,930
C142: 2026-10-01 | D142: =H141 -> 210,930 | E142: =SUMIFS($F$37:$F$92,$D$37:$D$92,C142,$F$37:$F$92,">0") -> 0 | F142: =SUMIFS($F$37:$F$92,$D$37:$D$92,C142,$F$37:$F$92,"<0") -> 0 | G142: =SUM(E142:F142) -> 0 | H142: =D142+G142 -> 210,930 | I142: ='Assumptions'!$E$154 -> 100,000 | J142: =H142-I142 -> 110,930
C143: 2026-10-02 | D143: =H142 -> 210,930 | E143: =SUMIFS($F$37:$F$92,$D$37:$D$92,C143,$F$37:$F$92,">0") -> 45,818 | F143: =SUMIFS($F$37:$F$92,$D$37:$D$92,C143,$F$37:$F$92,"<0") -> (885) | G143: =SUM(E143:F143) -> 44,933 | H143: =D143+G143 -> 255,863 | I143: ='Assumptions'!$E$154 -> 100,000 | J143: =H143-I143 -> 155,863
C144: 2026-10-03 | D144: =H143 -> 255,863 | E144: =SUMIFS($F$37:$F$92,$D$37:$D$92,C144,$F$37:$F$92,">0") -> 0 | F144: =SUMIFS($F$37:$F$92,$D$37:$D$92,C144,$F$37:$F$92,"<0") -> 0 | G144: =SUM(E144:F144) -> 0 | H144: =D144+G144 -> 255,863 | I144: ='Assumptions'!$E$154 -> 100,000 | J144: =H144-I144 -> 155,863
C145: 2026-10-04 | D145: =H144 -> 255,863 | E145: =SUMIFS($F$37:$F$92,$D$37:$D$92,C145,$F$37:$F$92,">0") -> 0 | F145: =SUMIFS($F$37:$F$92,$D$37:$D$92,C145,$F$37:$F$92,"<0") -> 0 | G145: =SUM(E145:F145) -> 0 | H145: =D145+G145 -> 255,863 | I145: ='Assumptions'!$E$154 -> 100,000 | J145: =H145-I145 -> 155,863
C146: 2026-10-05 | D146: =H145 -> 255,863 | E146: =SUMIFS($F$37:$F$92,$D$37:$D$92,C146,$F$37:$F$92,">0") -> 0 | F146: =SUMIFS($F$37:$F$92,$D$37:$D$92,C146,$F$37:$F$92,"<0") -> 0 | G146: =SUM(E146:F146) -> 0 | H146: =D146+G146 -> 255,863 | I146: ='Assumptions'!$E$154 -> 100,000 | J146: =H146-I146 -> 155,863
C147: 2026-10-06 | D147: =H146 -> 255,863 | E147: =SUMIFS($F$37:$F$92,$D$37:$D$92,C147,$F$37:$F$92,">0") -> 0 | F147: =SUMIFS($F$37:$F$92,$D$37:$D$92,C147,$F$37:$F$92,"<0") -> 0 | G147: =SUM(E147:F147) -> 0 | H147: =D147+G147 -> 255,863 | I147: ='Assumptions'!$E$154 -> 100,000 | J147: =H147-I147 -> 155,863
C148: 2026-10-07 | D148: =H147 -> 255,863 | E148: =SUMIFS($F$37:$F$92,$D$37:$D$92,C148,$F$37:$F$92,">0") -> 0 | F148: =SUMIFS($F$37:$F$92,$D$37:$D$92,C148,$F$37:$F$92,"<0") -> 0 | G148: =SUM(E148:F148) -> 0 | H148: =D148+G148 -> 255,863 | I148: ='Assumptions'!$E$154 -> 100,000 | J148: =H148-I148 -> 155,863
C149: 2026-10-08 | D149: =H148 -> 255,863 | E149: =SUMIFS($F$37:$F$92,$D$37:$D$92,C149,$F$37:$F$92,">0") -> 0 | F149: =SUMIFS($F$37:$F$92,$D$37:$D$92,C149,$F$37:$F$92,"<0") -> (6,000) | G149: =SUM(E149:F149) -> (6,000) | H149: =D149+G149 -> 249,863 | I149: ='Assumptions'!$E$154 -> 100,000 | J149: =H149-I149 -> 149,863
C150: 2026-10-09 | D150: =H149 -> 249,863 | E150: =SUMIFS($F$37:$F$92,$D$37:$D$92,C150,$F$37:$F$92,">0") -> 0 | F150: =SUMIFS($F$37:$F$92,$D$37:$D$92,C150,$F$37:$F$92,"<0") -> 0 | G150: =SUM(E150:F150) -> 0 | H150: =D150+G150 -> 249,863 | I150: ='Assumptions'!$E$154 -> 100,000 | J150: =H150-I150 -> 149,863
C151: 2026-10-10 | D151: =H150 -> 249,863 | E151: =SUMIFS($F$37:$F$92,$D$37:$D$92,C151,$F$37:$F$92,">0") -> 0 | F151: =SUMIFS($F$37:$F$92,$D$37:$D$92,C151,$F$37:$F$92,"<0") -> (21,000) | G151: =SUM(E151:F151) -> (21,000) | H151: =D151+G151 -> 228,863 | I151: ='Assumptions'!$E$154 -> 100,000 | J151: =H151-I151 -> 128,863
C152: 2026-10-11 | D152: =H151 -> 228,863 | E152: =SUMIFS($F$37:$F$92,$D$37:$D$92,C152,$F$37:$F$92,">0") -> 0 | F152: =SUMIFS($F$37:$F$92,$D$37:$D$92,C152,$F$37:$F$92,"<0") -> 0 | G152: =SUM(E152:F152) -> 0 | H152: =D152+G152 -> 228,863 | I152: ='Assumptions'!$E$154 -> 100,000 | J152: =H152-I152 -> 128,863
C153: 2026-10-12 | D153: =H152 -> 228,863 | E153: =SUMIFS($F$37:$F$92,$D$37:$D$92,C153,$F$37:$F$92,">0") -> 0 | F153: =SUMIFS($F$37:$F$92,$D$37:$D$92,C153,$F$37:$F$92,"<0") -> (3,616) | G153: =SUM(E153:F153) -> (3,616) | H153: =D153+G153 -> 225,247 | I153: ='Assumptions'!$E$154 -> 100,000 | J153: =H153-I153 -> 125,247
C154: 2026-10-13 | D154: =H153 -> 225,247 | E154: =SUMIFS($F$37:$F$92,$D$37:$D$92,C154,$F$37:$F$92,">0") -> 0 | F154: =SUMIFS($F$37:$F$92,$D$37:$D$92,C154,$F$37:$F$92,"<0") -> 0 | G154: =SUM(E154:F154) -> 0 | H154: =D154+G154 -> 225,247 | I154: ='Assumptions'!$E$154 -> 100,000 | J154: =H154-I154 -> 125,247
C155: 2026-10-14 | D155: =H154 -> 225,247 | E155: =SUMIFS($F$37:$F$92,$D$37:$D$92,C155,$F$37:$F$92,">0") -> 0 | F155: =SUMIFS($F$37:$F$92,$D$37:$D$92,C155,$F$37:$F$92,"<0") -> 0 | G155: =SUM(E155:F155) -> 0 | H155: =D155+G155 -> 225,247 | I155: ='Assumptions'!$E$154 -> 100,000 | J155: =H155-I155 -> 125,247
C156: 2026-10-15 | D156: =H155 -> 225,247 | E156: =SUMIFS($F$37:$F$92,$D$37:$D$92,C156,$F$37:$F$92,">0") -> 84,437 | F156: =SUMIFS($F$37:$F$92,$D$37:$D$92,C156,$F$37:$F$92,"<0") -> 0 | G156: =SUM(E156:F156) -> 84,437 | H156: =D156+G156 -> 309,684 | I156: ='Assumptions'!$E$154 -> 100,000 | J156: =H156-I156 -> 209,684
C157: 2026-10-16 | D157: =H156 -> 309,684 | E157: =SUMIFS($F$37:$F$92,$D$37:$D$92,C157,$F$37:$F$92,">0") -> 0 | F157: =SUMIFS($F$37:$F$92,$D$37:$D$92,C157,$F$37:$F$92,"<0") -> 0 | G157: =SUM(E157:F157) -> 0 | H157: =D157+G157 -> 309,684 | I157: ='Assumptions'!$E$154 -> 100,000 | J157: =H157-I157 -> 209,684
C158: 2026-10-17 | D158: =H157 -> 309,684 | E158: =SUMIFS($F$37:$F$92,$D$37:$D$92,C158,$F$37:$F$92,">0") -> 0 | F158: =SUMIFS($F$37:$F$92,$D$37:$D$92,C158,$F$37:$F$92,"<0") -> 0 | G158: =SUM(E158:F158) -> 0 | H158: =D158+G158 -> 309,684 | I158: ='Assumptions'!$E$154 -> 100,000 | J158: =H158-I158 -> 209,684
C159: 2026-10-18 | D159: =H158 -> 309,684 | E159: =SUMIFS($F$37:$F$92,$D$37:$D$92,C159,$F$37:$F$92,">0") -> 0 | F159: =SUMIFS($F$37:$F$92,$D$37:$D$92,C159,$F$37:$F$92,"<0") -> 0 | G159: =SUM(E159:F159) -> 0 | H159: =D159+G159 -> 309,684 | I159: ='Assumptions'!$E$154 -> 100,000 | J159: =H159-I159 -> 209,684
C160: 2026-10-19 | D160: =H159 -> 309,684 | E160: =SUMIFS($F$37:$F$92,$D$37:$D$92,C160,$F$37:$F$92,">0") -> 0 | F160: =SUMIFS($F$37:$F$92,$D$37:$D$92,C160,$F$37:$F$92,"<0") -> 0 | G160: =SUM(E160:F160) -> 0 | H160: =D160+G160 -> 309,684 | I160: ='Assumptions'!$E$154 -> 100,000 | J160: =H160-I160 -> 209,684
C161: 2026-10-20 | D161: =H160 -> 309,684 | E161: =SUMIFS($F$37:$F$92,$D$37:$D$92,C161,$F$37:$F$92,">0") -> 0 | F161: =SUMIFS($F$37:$F$92,$D$37:$D$92,C161,$F$37:$F$92,"<0") -> 0 | G161: =SUM(E161:F161) -> 0 | H161: =D161+G161 -> 309,684 | I161: ='Assumptions'!$E$154 -> 100,000 | J161: =H161-I161 -> 209,684
C162: 2026-10-21 | D162: =H161 -> 309,684 | E162: =SUMIFS($F$37:$F$92,$D$37:$D$92,C162,$F$37:$F$92,">0") -> 0 | F162: =SUMIFS($F$37:$F$92,$D$37:$D$92,C162,$F$37:$F$92,"<0") -> 0 | G162: =SUM(E162:F162) -> 0 | H162: =D162+G162 -> 309,684 | I162: ='Assumptions'!$E$154 -> 100,000 | J162: =H162-I162 -> 209,684
C163: 2026-10-22 | D163: =H162 -> 309,684 | E163: =SUMIFS($F$37:$F$92,$D$37:$D$92,C163,$F$37:$F$92,">0") -> 0 | F163: =SUMIFS($F$37:$F$92,$D$37:$D$92,C163,$F$37:$F$92,"<0") -> 0 | G163: =SUM(E163:F163) -> 0 | H163: =D163+G163 -> 309,684 | I163: ='Assumptions'!$E$154 -> 100,000 | J163: =H163-I163 -> 209,684
C164: 2026-10-23 | D164: =H163 -> 309,684 | E164: =SUMIFS($F$37:$F$92,$D$37:$D$92,C164,$F$37:$F$92,">0") -> 0 | F164: =SUMIFS($F$37:$F$92,$D$37:$D$92,C164,$F$37:$F$92,"<0") -> 0 | G164: =SUM(E164:F164) -> 0 | H164: =D164+G164 -> 309,684 | I164: ='Assumptions'!$E$154 -> 100,000 | J164: =H164-I164 -> 209,684
C165: 2026-10-24 | D165: =H164 -> 309,684 | E165: =SUMIFS($F$37:$F$92,$D$37:$D$92,C165,$F$37:$F$92,">0") -> 0 | F165: =SUMIFS($F$37:$F$92,$D$37:$D$92,C165,$F$37:$F$92,"<0") -> 0 | G165: =SUM(E165:F165) -> 0 | H165: =D165+G165 -> 309,684 | I165: ='Assumptions'!$E$154 -> 100,000 | J165: =H165-I165 -> 209,684
C166: 2026-10-25 | D166: =H165 -> 309,684 | E166: =SUMIFS($F$37:$F$92,$D$37:$D$92,C166,$F$37:$F$92,">0") -> 0 | F166: =SUMIFS($F$37:$F$92,$D$37:$D$92,C166,$F$37:$F$92,"<0") -> (155,025) | G166: =SUM(E166:F166) -> (155,025) | H166: =D166+G166 -> 154,659 | I166: ='Assumptions'!$E$154 -> 100,000 | J166: =H166-I166 -> 54,659
C167: 2026-10-26 | D167: =H166 -> 154,659 | E167: =SUMIFS($F$37:$F$92,$D$37:$D$92,C167,$F$37:$F$92,">0") -> 0 | F167: =SUMIFS($F$37:$F$92,$D$37:$D$92,C167,$F$37:$F$92,"<0") -> (4,419) | G167: =SUM(E167:F167) -> (4,419) | H167: =D167+G167 -> 150,240 | I167: ='Assumptions'!$E$154 -> 100,000 | J167: =H167-I167 -> 50,240
C168: 2026-10-27 | D168: =H167 -> 150,240 | E168: =SUMIFS($F$37:$F$92,$D$37:$D$92,C168,$F$37:$F$92,">0") -> 0 | F168: =SUMIFS($F$37:$F$92,$D$37:$D$92,C168,$F$37:$F$92,"<0") -> 0 | G168: =SUM(E168:F168) -> 0 | H168: =D168+G168 -> 150,240 | I168: ='Assumptions'!$E$154 -> 100,000 | J168: =H168-I168 -> 50,240
C169: 2026-10-28 | D169: =H168 -> 150,240 | E169: =SUMIFS($F$37:$F$92,$D$37:$D$92,C169,$F$37:$F$92,">0") -> 156,812 | F169: =SUMIFS($F$37:$F$92,$D$37:$D$92,C169,$F$37:$F$92,"<0") -> (4,066) | G169: =SUM(E169:F169) -> 152,746 | H169: =D169+G169 -> 302,987 | I169: ='Assumptions'!$E$154 -> 100,000 | J169: =H169-I169 -> 202,987
C170: 2026-10-29 | D170: =H169 -> 302,987 | E170: =SUMIFS($F$37:$F$92,$D$37:$D$92,C170,$F$37:$F$92,">0") -> 0 | F170: =SUMIFS($F$37:$F$92,$D$37:$D$92,C170,$F$37:$F$92,"<0") -> 0 | G170: =SUM(E170:F170) -> 0 | H170: =D170+G170 -> 302,987 | I170: ='Assumptions'!$E$154 -> 100,000 | J170: =H170-I170 -> 202,987
C171: 2026-10-30 | D171: =H170 -> 302,987 | E171: =SUMIFS($F$37:$F$92,$D$37:$D$92,C171,$F$37:$F$92,">0") -> 0 | F171: =SUMIFS($F$37:$F$92,$D$37:$D$92,C171,$F$37:$F$92,"<0") -> 0 | G171: =SUM(E171:F171) -> 0 | H171: =D171+G171 -> 302,987 | I171: ='Assumptions'!$E$154 -> 100,000 | J171: =H171-I171 -> 202,987
C172: 2026-10-31 | D172: =H171 -> 302,987 | E172: =SUMIFS($F$37:$F$92,$D$37:$D$92,C172,$F$37:$F$92,">0") -> 0 | F172: =SUMIFS($F$37:$F$92,$D$37:$D$92,C172,$F$37:$F$92,"<0") -> 0 | G172: =SUM(E172:F172) -> 0 | H172: =D172+G172 -> 302,987 | I172: ='Assumptions'!$E$154 -> 100,000 | J172: =H172-I172 -> 202,987
C173: 2026-11-01 | D173: =H172 -> 302,987 | E173: =SUMIFS($F$37:$F$92,$D$37:$D$92,C173,$F$37:$F$92,">0") -> 0 | F173: =SUMIFS($F$37:$F$92,$D$37:$D$92,C173,$F$37:$F$92,"<0") -> 0 | G173: =SUM(E173:F173) -> 0 | H173: =D173+G173 -> 302,987 | I173: ='Assumptions'!$E$154 -> 100,000 | J173: =H173-I173 -> 202,987
C174: 2026-11-02 | D174: =H173 -> 302,987 | E174: =SUMIFS($F$37:$F$92,$D$37:$D$92,C174,$F$37:$F$92,">0") -> 0 | F174: =SUMIFS($F$37:$F$92,$D$37:$D$92,C174,$F$37:$F$92,"<0") -> 0 | G174: =SUM(E174:F174) -> 0 | H174: =D174+G174 -> 302,987 | I174: ='Assumptions'!$E$154 -> 100,000 | J174: =H174-I174 -> 202,987
C175: 2026-11-03 | D175: =H174 -> 302,987 | E175: =SUMIFS($F$37:$F$92,$D$37:$D$92,C175,$F$37:$F$92,">0") -> 0 | F175: =SUMIFS($F$37:$F$92,$D$37:$D$92,C175,$F$37:$F$92,"<0") -> 0 | G175: =SUM(E175:F175) -> 0 | H175: =D175+G175 -> 302,987 | I175: ='Assumptions'!$E$154 -> 100,000 | J175: =H175-I175 -> 202,987
C176: 2026-11-04 | D176: =H175 -> 302,987 | E176: =SUMIFS($F$37:$F$92,$D$37:$D$92,C176,$F$37:$F$92,">0") -> 0 | F176: =SUMIFS($F$37:$F$92,$D$37:$D$92,C176,$F$37:$F$92,"<0") -> 0 | G176: =SUM(E176:F176) -> 0 | H176: =D176+G176 -> 302,987 | I176: ='Assumptions'!$E$154 -> 100,000 | J176: =H176-I176 -> 202,987
C177: 2026-11-05 | D177: =H176 -> 302,987 | E177: =SUMIFS($F$37:$F$92,$D$37:$D$92,C177,$F$37:$F$92,">0") -> 0 | F177: =SUMIFS($F$37:$F$92,$D$37:$D$92,C177,$F$37:$F$92,"<0") -> 0 | G177: =SUM(E177:F177) -> 0 | H177: =D177+G177 -> 302,987 | I177: ='Assumptions'!$E$154 -> 100,000 | J177: =H177-I177 -> 202,987
C178: 2026-11-06 | D178: =H177 -> 302,987 | E178: =SUMIFS($F$37:$F$92,$D$37:$D$92,C178,$F$37:$F$92,">0") -> 0 | F178: =SUMIFS($F$37:$F$92,$D$37:$D$92,C178,$F$37:$F$92,"<0") -> 0 | G178: =SUM(E178:F178) -> 0 | H178: =D178+G178 -> 302,987 | I178: ='Assumptions'!$E$154 -> 100,000 | J178: =H178-I178 -> 202,987
C179: 2026-11-07 | D179: =H178 -> 302,987 | E179: =SUMIFS($F$37:$F$92,$D$37:$D$92,C179,$F$37:$F$92,">0") -> 0 | F179: =SUMIFS($F$37:$F$92,$D$37:$D$92,C179,$F$37:$F$92,"<0") -> 0 | G179: =SUM(E179:F179) -> 0 | H179: =D179+G179 -> 302,987 | I179: ='Assumptions'!$E$154 -> 100,000 | J179: =H179-I179 -> 202,987
C180: 2026-11-08 | D180: =H179 -> 302,987 | E180: =SUMIFS($F$37:$F$92,$D$37:$D$92,C180,$F$37:$F$92,">0") -> 0 | F180: =SUMIFS($F$37:$F$92,$D$37:$D$92,C180,$F$37:$F$92,"<0") -> (6,000) | G180: =SUM(E180:F180) -> (6,000) | H180: =D180+G180 -> 296,987 | I180: ='Assumptions'!$E$154 -> 100,000 | J180: =H180-I180 -> 196,987
C181: 2026-11-09 | D181: =H180 -> 296,987 | E181: =SUMIFS($F$37:$F$92,$D$37:$D$92,C181,$F$37:$F$92,">0") -> 0 | F181: =SUMIFS($F$37:$F$92,$D$37:$D$92,C181,$F$37:$F$92,"<0") -> 0 | G181: =SUM(E181:F181) -> 0 | H181: =D181+G181 -> 296,987 | I181: ='Assumptions'!$E$154 -> 100,000 | J181: =H181-I181 -> 196,987
C182: 2026-11-10 | D182: =H181 -> 296,987 | E182: =SUMIFS($F$37:$F$92,$D$37:$D$92,C182,$F$37:$F$92,">0") -> 0 | F182: =SUMIFS($F$37:$F$92,$D$37:$D$92,C182,$F$37:$F$92,"<0") -> (21,000) | G182: =SUM(E182:F182) -> (21,000) | H182: =D182+G182 -> 275,987 | I182: ='Assumptions'!$E$154 -> 100,000 | J182: =H182-I182 -> 175,987
C183: 2026-11-11 | D183: =H182 -> 275,987 | E183: =SUMIFS($F$37:$F$92,$D$37:$D$92,C183,$F$37:$F$92,">0") -> 0 | F183: =SUMIFS($F$37:$F$92,$D$37:$D$92,C183,$F$37:$F$92,"<0") -> 0 | G183: =SUM(E183:F183) -> 0 | H183: =D183+G183 -> 275,987 | I183: ='Assumptions'!$E$154 -> 100,000 | J183: =H183-I183 -> 175,987
C184: 2026-11-12 | D184: =H183 -> 275,987 | E184: =SUMIFS($F$37:$F$92,$D$37:$D$92,C184,$F$37:$F$92,">0") -> 0 | F184: =SUMIFS($F$37:$F$92,$D$37:$D$92,C184,$F$37:$F$92,"<0") -> (3,404) | G184: =SUM(E184:F184) -> (3,404) | H184: =D184+G184 -> 272,582 | I184: ='Assumptions'!$E$154 -> 100,000 | J184: =H184-I184 -> 172,582
C185: 2026-11-13 | D185: =H184 -> 272,582 | E185: =SUMIFS($F$37:$F$92,$D$37:$D$92,C185,$F$37:$F$92,">0") -> 0 | F185: =SUMIFS($F$37:$F$92,$D$37:$D$92,C185,$F$37:$F$92,"<0") -> 0 | G185: =SUM(E185:F185) -> 0 | H185: =D185+G185 -> 272,582 | I185: ='Assumptions'!$E$154 -> 100,000 | J185: =H185-I185 -> 172,582
C186: 2026-11-14 | D186: =H185 -> 272,582 | E186: =SUMIFS($F$37:$F$92,$D$37:$D$92,C186,$F$37:$F$92,">0") -> 0 | F186: =SUMIFS($F$37:$F$92,$D$37:$D$92,C186,$F$37:$F$92,"<0") -> 0 | G186: =SUM(E186:F186) -> 0 | H186: =D186+G186 -> 272,582 | I186: ='Assumptions'!$E$154 -> 100,000 | J186: =H186-I186 -> 172,582
C187: 2026-11-15 | D187: =H186 -> 272,582 | E187: =SUMIFS($F$37:$F$92,$D$37:$D$92,C187,$F$37:$F$92,">0") -> 100,144 | F187: =SUMIFS($F$37:$F$92,$D$37:$D$92,C187,$F$37:$F$92,"<0") -> 0 | G187: =SUM(E187:F187) -> 100,144 | H187: =D187+G187 -> 372,726 | I187: ='Assumptions'!$E$154 -> 100,000 | J187: =H187-I187 -> 272,726
C188: 2026-11-16 | D188: =H187 -> 372,726 | E188: =SUMIFS($F$37:$F$92,$D$37:$D$92,C188,$F$37:$F$92,">0") -> 0 | F188: =SUMIFS($F$37:$F$92,$D$37:$D$92,C188,$F$37:$F$92,"<0") -> 0 | G188: =SUM(E188:F188) -> 0 | H188: =D188+G188 -> 372,726 | I188: ='Assumptions'!$E$154 -> 100,000 | J188: =H188-I188 -> 272,726
C189: 2026-11-17 | D189: =H188 -> 372,726 | E189: =SUMIFS($F$37:$F$92,$D$37:$D$92,C189,$F$37:$F$92,">0") -> 0 | F189: =SUMIFS($F$37:$F$92,$D$37:$D$92,C189,$F$37:$F$92,"<0") -> 0 | G189: =SUM(E189:F189) -> 0 | H189: =D189+G189 -> 372,726 | I189: ='Assumptions'!$E$154 -> 100,000 | J189: =H189-I189 -> 272,726
C190: 2026-11-18 | D190: =H189 -> 372,726 | E190: =SUMIFS($F$37:$F$92,$D$37:$D$92,C190,$F$37:$F$92,">0") -> 0 | F190: =SUMIFS($F$37:$F$92,$D$37:$D$92,C190,$F$37:$F$92,"<0") -> 0 | G190: =SUM(E190:F190) -> 0 | H190: =D190+G190 -> 372,726 | I190: ='Assumptions'!$E$154 -> 100,000 | J190: =H190-I190 -> 272,726
C191: 2026-11-19 | D191: =H190 -> 372,726 | E191: =SUMIFS($F$37:$F$92,$D$37:$D$92,C191,$F$37:$F$92,">0") -> 0 | F191: =SUMIFS($F$37:$F$92,$D$37:$D$92,C191,$F$37:$F$92,"<0") -> 0 | G191: =SUM(E191:F191) -> 0 | H191: =D191+G191 -> 372,726 | I191: ='Assumptions'!$E$154 -> 100,000 | J191: =H191-I191 -> 272,726
C192: 2026-11-20 | D192: =H191 -> 372,726 | E192: =SUMIFS($F$37:$F$92,$D$37:$D$92,C192,$F$37:$F$92,">0") -> 0 | F192: =SUMIFS($F$37:$F$92,$D$37:$D$92,C192,$F$37:$F$92,"<0") -> 0 | G192: =SUM(E192:F192) -> 0 | H192: =D192+G192 -> 372,726 | I192: ='Assumptions'!$E$154 -> 100,000 | J192: =H192-I192 -> 272,726
C193: 2026-11-21 | D193: =H192 -> 372,726 | E193: =SUMIFS($F$37:$F$92,$D$37:$D$92,C193,$F$37:$F$92,">0") -> 0 | F193: =SUMIFS($F$37:$F$92,$D$37:$D$92,C193,$F$37:$F$92,"<0") -> 0 | G193: =SUM(E193:F193) -> 0 | H193: =D193+G193 -> 372,726 | I193: ='Assumptions'!$E$154 -> 100,000 | J193: =H193-I193 -> 272,726
C194: 2026-11-22 | D194: =H193 -> 372,726 | E194: =SUMIFS($F$37:$F$92,$D$37:$D$92,C194,$F$37:$F$92,">0") -> 0 | F194: =SUMIFS($F$37:$F$92,$D$37:$D$92,C194,$F$37:$F$92,"<0") -> 0 | G194: =SUM(E194:F194) -> 0 | H194: =D194+G194 -> 372,726 | I194: ='Assumptions'!$E$154 -> 100,000 | J194: =H194-I194 -> 272,726
C195: 2026-11-23 | D195: =H194 -> 372,726 | E195: =SUMIFS($F$37:$F$92,$D$37:$D$92,C195,$F$37:$F$92,">0") -> 0 | F195: =SUMIFS($F$37:$F$92,$D$37:$D$92,C195,$F$37:$F$92,"<0") -> 0 | G195: =SUM(E195:F195) -> 0 | H195: =D195+G195 -> 372,726 | I195: ='Assumptions'!$E$154 -> 100,000 | J195: =H195-I195 -> 272,726
C196: 2026-11-24 | D196: =H195 -> 372,726 | E196: =SUMIFS($F$37:$F$92,$D$37:$D$92,C196,$F$37:$F$92,">0") -> 0 | F196: =SUMIFS($F$37:$F$92,$D$37:$D$92,C196,$F$37:$F$92,"<0") -> 0 | G196: =SUM(E196:F196) -> 0 | H196: =D196+G196 -> 372,726 | I196: ='Assumptions'!$E$154 -> 100,000 | J196: =H196-I196 -> 272,726
C197: 2026-11-25 | D197: =H196 -> 372,726 | E197: =SUMIFS($F$37:$F$92,$D$37:$D$92,C197,$F$37:$F$92,">0") -> 0 | F197: =SUMIFS($F$37:$F$92,$D$37:$D$92,C197,$F$37:$F$92,"<0") -> (156,025) | G197: =SUM(E197:F197) -> (156,025) | H197: =D197+G197 -> 216,701 | I197: ='Assumptions'!$E$154 -> 100,000 | J197: =H197-I197 -> 116,701
C198: 2026-11-26 | D198: =H197 -> 216,701 | E198: =SUMIFS($F$37:$F$92,$D$37:$D$92,C198,$F$37:$F$92,">0") -> 0 | F198: =SUMIFS($F$37:$F$92,$D$37:$D$92,C198,$F$37:$F$92,"<0") -> (4,161) | G198: =SUM(E198:F198) -> (4,161) | H198: =D198+G198 -> 212,540 | I198: ='Assumptions'!$E$154 -> 100,000 | J198: =H198-I198 -> 112,540
C199: 2026-11-27 | D199: =H198 -> 212,540 | E199: =SUMIFS($F$37:$F$92,$D$37:$D$92,C199,$F$37:$F$92,">0") -> 0 | F199: =SUMIFS($F$37:$F$92,$D$37:$D$92,C199,$F$37:$F$92,"<0") -> 0 | G199: =SUM(E199:F199) -> 0 | H199: =D199+G199 -> 212,540 | I199: ='Assumptions'!$E$154 -> 100,000 | J199: =H199-I199 -> 112,540
C200: 2026-11-28 | D200: =H199 -> 212,540 | E200: =SUMIFS($F$37:$F$92,$D$37:$D$92,C200,$F$37:$F$92,">0") -> 185,981 | F200: =SUMIFS($F$37:$F$92,$D$37:$D$92,C200,$F$37:$F$92,"<0") -> (4,050) | G200: =SUM(E200:F200) -> 181,931 | H200: =D200+G200 -> 394,471 | I200: ='Assumptions'!$E$154 -> 100,000 | J200: =H200-I200 -> 294,471
C201: 2026-11-29 | D201: =H200 -> 394,471 | E201: =SUMIFS($F$37:$F$92,$D$37:$D$92,C201,$F$37:$F$92,">0") -> 0 | F201: =SUMIFS($F$37:$F$92,$D$37:$D$92,C201,$F$37:$F$92,"<0") -> 0 | G201: =SUM(E201:F201) -> 0 | H201: =D201+G201 -> 394,471 | I201: ='Assumptions'!$E$154 -> 100,000 | J201: =H201-I201 -> 294,471

Sheet Engagements
C2: Engagements
C4: Selected case | E4: ='Assumptions'!$G$4 -> Base | H4: EUR. Entirely fictional.
E6: Actual | F6: Actual | G6: Actual | H6: Actual | I6: Actual | J6: Actual | K6: Actual | L6: Actual | M6: Forecast | N6: Forecast | O6: Forecast | P6: Forecast
E7: 2026-01-01 | F7: 2026-02-01 | G7: 2026-03-01 | H7: 2026-04-01 | I7: 2026-05-01 | J7: 2026-06-01 | K7: 2026-07-01 | L7: 2026-08-01 | M7: 2026-09-01 | N7: 2026-10-01 | O7: 2026-11-01 | P7: 2026-12-01
C8: PS-01 Strategy retainer
C9: Recorded chargeable hours | E9: ='Assumptions'!E59 -> 240 | F9: ='Assumptions'!F59 -> 250 | G9: ='Assumptions'!G59 -> 250 | H9: ='Assumptions'!H59 -> 260 | I9: ='Assumptions'!I59 -> 260 | J9: ='Assumptions'!J59 -> 270 | K9: ='Assumptions'!K59 -> 270 | L9: ='Assumptions'!L59 -> 280 | M9: ='Assumptions'!M59 -> 290 | N9: ='Assumptions'!N59 -> 290 | O9: ='Assumptions'!O59 -> 300 | P9: ='Assumptions'!P59 -> 300
C10: Contract hourly rate | E10: ='Assumptions'!E62 -> 140 | F10: ='Assumptions'!F62 -> 140 | G10: ='Assumptions'!G62 -> 140 | H10: ='Assumptions'!H62 -> 140 | I10: ='Assumptions'!I62 -> 140 | J10: ='Assumptions'!J62 -> 140 | K10: ='Assumptions'!K62 -> 140 | L10: ='Assumptions'!L62 -> 140 | M10: ='Assumptions'!M62 -> 140 | N10: ='Assumptions'!N62 -> 140 | O10: ='Assumptions'!O62 -> 140 | P10: ='Assumptions'!P62 -> 140
C11: Realisation | E11: ='Assumptions'!E65 -> 97.0% | F11: ='Assumptions'!F65 -> 97.0% | G11: ='Assumptions'!G65 -> 97.0% | H11: ='Assumptions'!H65 -> 97.0% | I11: ='Assumptions'!I65 -> 97.0% | J11: ='Assumptions'!J65 -> 97.0% | K11: ='Assumptions'!K65 -> 97.0% | L11: ='Assumptions'!L65 -> 97.0% | M11: ='Assumptions'!M65 -> 97.0% | N11: ='Assumptions'!N65 -> 97.0% | O11: ='Assumptions'!O65 -> 97.0% | P11: ='Assumptions'!P65 -> 97.0%
C12: Gross chargeable value | E12: =E9*E10 -> 33,600 | F12: =F9*F10 -> 35,000 | G12: =G9*G10 -> 35,000 | H12: =H9*H10 -> 36,400 | I12: =I9*I10 -> 36,400 | J12: =J9*J10 -> 37,800 | K12: =K9*K10 -> 37,800 | L12: =L9*L10 -> 39,200 | M12: =M9*M10 -> 40,600 | N12: =N9*N10 -> 40,600 | O12: =O9*O10 -> 42,000 | P12: =P9*P10 -> 42,000
C13: Realisation discount | E13: =E12*(1-E11) -> 1,008 | F13: =F12*(1-F11) -> 1,050 | G13: =G12*(1-G11) -> 1,050 | H13: =H12*(1-H11) -> 1,092 | I13: =I12*(1-I11) -> 1,092 | J13: =J12*(1-J11) -> 1,134 | K13: =K12*(1-K11) -> 1,134 | L13: =L12*(1-L11) -> 1,176 | M13: =M12*(1-M11) -> 1,218 | N13: =N12*(1-N11) -> 1,218 | O13: =O12*(1-O11) -> 1,260 | P13: =P12*(1-P11) -> 1,260
C14: Revenue recognised | E14: =E12-E13 -> €32,592 | F14: =F12-F13 -> €33,950 | G14: =G12-G13 -> €33,950 | H14: =H12-H13 -> €35,308 | I14: =I12-I13 -> €35,308 | J14: =J12-J13 -> €36,666 | K14: =K12-K13 -> €36,666 | L14: =L12-L13 -> €38,024 | M14: =M12-M13 -> €39,382 | N14: =N12-N13 -> €39,382 | O14: =O12-O13 -> €40,740 | P14: =P12-P13 -> €40,740
C15: Gross invoices issued | E15: ='Assumptions'!E68 -> 29,333 | F15: ='Assumptions'!F68 -> 30,555 | G15: ='Assumptions'!G68 -> 30,555 | H15: ='Assumptions'!H68 -> 31,777 | I15: ='Assumptions'!I68 -> 31,777 | J15: ='Assumptions'!J68 -> 32,999 | K15: ='Assumptions'!K68 -> 32,999 | L15: ='Assumptions'!L68 -> 34,222 | M15: ='Assumptions'!M68 -> 40,563 | N15: ='Assumptions'!N68 -> 40,563 | O15: ='Assumptions'!O68 -> 41,962 | P15: ='Assumptions'!P68 -> 54,999
C16: Cumulative earned revenue | E16: =0+E14 -> 32,592 | F16: =E16+F14 -> 66,542 | G16: =F16+G14 -> 100,492 | H16: =G16+H14 -> 135,800 | I16: =H16+I14 -> 171,108 | J16: =I16+J14 -> 207,774 | K16: =J16+K14 -> 244,440 | L16: =K16+L14 -> 282,464 | M16: =L16+M14 -> 321,846 | N16: =M16+N14 -> 361,228 | O16: =N16+O14 -> 401,968 | P16: =O16+P14 -> 442,708
C17: Cumulative invoices issued | E17: =0+E15 -> 29,333 | F17: =E17+F15 -> 59,888 | G17: =F17+G15 -> 90,443 | H17: =G17+H15 -> 122,220 | I17: =H17+I15 -> 153,997 | J17: =I17+J15 -> 186,997 | K17: =J17+K15 -> 219,996 | L17: =K17+L15 -> 254,218 | M17: =L17+M15 -> 294,781 | N17: =M17+N15 -> 335,345 | O17: =N17+O15 -> 377,307 | P17: =O17+P15 -> 432,306
C18: Gross unbilled work | E18: =MAX(0,E16-E17) -> 3,259 | F18: =MAX(0,F16-F17) -> 6,654 | G18: =MAX(0,G16-G17) -> 10,049 | H18: =MAX(0,H16-H17) -> 13,580 | I18: =MAX(0,I16-I17) -> 17,111 | J18: =MAX(0,J16-J17) -> 20,777 | K18: =MAX(0,K16-K17) -> 24,444 | L18: =MAX(0,L16-L17) -> 28,246 | M18: =MAX(0,M16-M17) -> 27,065 | N18: =MAX(0,N16-N17) -> 25,883 | O18: =MAX(0,O16-O17) -> 24,661 | P18: =MAX(0,P16-P17) -> 10,402
C19: Recoverability allowance | E19: =E18*'Assumptions'!E71 -> 65 | F19: =F18*'Assumptions'!F71 -> 133 | G19: =G18*'Assumptions'!G71 -> 201 | H19: =H18*'Assumptions'!H71 -> 272 | I19: =I18*'Assumptions'!I71 -> 342 | J19: =J18*'Assumptions'!J71 -> 416 | K19: =K18*'Assumptions'!K71 -> 489 | L19: =L18*'Assumptions'!L71 -> 565 | M19: =M18*'Assumptions'!M71 -> 541 | N19: =N18*'Assumptions'!N71 -> 518 | O19: =O18*'Assumptions'!O71 -> 493 | P19: =P18*'Assumptions'!P71 -> 208
C20: Net unbilled work | E20: =E18-E19 -> €3,194 | F20: =F18-F19 -> €6,521 | G20: =G18-G19 -> €9,848 | H20: =H18-H19 -> €13,308 | I20: =I18-I19 -> €16,769 | J20: =J18-J19 -> €20,362 | K20: =K18-K19 -> €23,955 | L20: =L18-L19 -> €27,681 | M20: =M18-M19 -> €26,524 | N20: =N18-N19 -> €25,366 | O20: =O18-O19 -> €24,168 | P20: =P18-P19 -> €10,194
C21: Customer advances / contract liability | E21: =MAX(0,E17-E16) -> 0 | F21: =MAX(0,F17-F16) -> 0 | G21: =MAX(0,G17-G16) -> 0 | H21: =MAX(0,H17-H16) -> 0 | I21: =MAX(0,I17-I16) -> 0 | J21: =MAX(0,J17-J16) -> 0 | K21: =MAX(0,K17-K16) -> 0 | L21: =MAX(0,L17-L16) -> 0 | M21: =MAX(0,M17-M16) -> 0 | N21: =MAX(0,N17-N16) -> 0 | O21: =MAX(0,O17-O16) -> 0 | P21: =MAX(0,P17-P16) -> 0
C22: Grade-weighted loaded cost per hour | E22: ='Assumptions'!E38/160*'Team capacity'!$G$18+'Assumptions'!E44/160*'Team capacity'!$H$18+'Assumptions'!E50/160*'Team capacity'!$I$18+'Assumptions'!E56/160*'Team capacity'!$J$18 -> 49 | F22: ='Assumptions'!F38/160*'Team capacity'!$G$18+'Assumptions'!F44/160*'Team capacity'!$H$18+'Assumptions'!F50/160*'Team capacity'!$I$18+'Assumptions'!F56/160*'Team capacity'!$J$18 -> 49 | G22: ='Assumptions'!G38/160*'Team capacity'!$G$18+'Assumptions'!G44/160*'Team capacity'!$H$18+'Assumptions'!G50/160*'Team capacity'!$I$18+'Assumptions'!G56/160*'Team capacity'!$J$18 -> 49 | H22: ='Assumptions'!H38/160*'Team capacity'!$G$18+'Assumptions'!H44/160*'Team capacity'!$H$18+'Assumptions'!H50/160*'Team capacity'!$I$18+'Assumptions'!H56/160*'Team capacity'!$J$18 -> 49 | I22: ='Assumptions'!I38/160*'Team capacity'!$G$18+'Assumptions'!I44/160*'Team capacity'!$H$18+'Assumptions'!I50/160*'Team capacity'!$I$18+'Assumptions'!I56/160*'Team capacity'!$J$18 -> 49 | J22: ='Assumptions'!J38/160*'Team capacity'!$G$18+'Assumptions'!J44/160*'Team capacity'!$H$18+'Assumptions'!J50/160*'Team capacity'!$I$18+'Assumptions'!J56/160*'Team capacity'!$J$18 -> 49 | K22: ='Assumptions'!K38/160*'Team capacity'!$G$18+'Assumptions'!K44/160*'Team capacity'!$H$18+'Assumptions'!K50/160*'Team capacity'!$I$18+'Assumptions'!K56/160*'Team capacity'!$J$18 -> 49 | L22: ='Assumptions'!L38/160*'Team capacity'!$G$18+'Assumptions'!L44/160*'Team capacity'!$H$18+'Assumptions'!L50/160*'Team capacity'!$I$18+'Assumptions'!L56/160*'Team capacity'!$J$18 -> 49 | M22: ='Assumptions'!M38/160*'Team capacity'!$G$18+'Assumptions'!M44/160*'Team capacity'!$H$18+'Assumptions'!M50/160*'Team capacity'!$I$18+'Assumptions'!M56/160*'Team capacity'!$J$18 -> 50 | N22: ='Assumptions'!N38/160*'Team capacity'!$G$18+'Assumptions'!N44/160*'Team capacity'!$H$18+'Assumptions'!N50/160*'Team capacity'!$I$18+'Assumptions'!N56/160*'Team capacity'!$J$18 -> 50 | O22: ='Assumptions'!O38/160*'Team capacity'!$G$18+'Assumptions'!O44/160*'Team capacity'!$H$18+'Assumptions'!O50/160*'Team capacity'!$I$18+'Assumptions'!O56/160*'Team capacity'!$J$18 -> 50 | P22: ='Assumptions'!P38/160*'Team capacity'!$G$18+'Assumptions'!P44/160*'Team capacity'!$H$18+'Assumptions'!P50/160*'Team capacity'!$I$18+'Assumptions'!P56/160*'Team capacity'!$J$18 -> 50
C23: Attributed engagement payroll | E23: =E9*E22 -> 11,738 | F23: =F9*F22 -> 12,227 | G23: =G9*G22 -> 12,227 | H23: =H9*H22 -> 12,716 | I23: =I9*I22 -> 12,716 | J23: =J9*J22 -> 13,205 | K23: =K9*K22 -> 13,205 | L23: =L9*L22 -> 13,694 | M23: =M9*M22 -> 14,537 | N23: =N9*N22 -> 14,537 | O23: =O9*O22 -> 15,039 | P23: =P9*P22 -> 15,039
C24: Engagement contribution before bench | E24: =E14-E23 -> €20,855 | F24: =F14-F23 -> €21,723 | G24: =G14-G23 -> €21,723 | H24: =H14-H23 -> €22,592 | I24: =I14-I23 -> €22,592 | J24: =J14-J23 -> €23,461 | K24: =K14-K23 -> €23,461 | L24: =L14-L23 -> €24,330 | M24: =M14-M23 -> €24,845 | N24: =N14-N23 -> €24,845 | O24: =O14-O23 -> €25,701 | P24: =P14-P23 -> €25,701
C25: Revenue budget remaining | E25: ='Team capacity'!$E$18-E16 -> 410,116 | F25: ='Team capacity'!$E$18-F16 -> 376,166 | G25: ='Team capacity'!$E$18-G16 -> 342,216 | H25: ='Team capacity'!$E$18-H16 -> 306,908 | I25: ='Team capacity'!$E$18-I16 -> 271,600 | J25: ='Team capacity'!$E$18-J16 -> 234,934 | K25: ='Team capacity'!$E$18-K16 -> 198,268 | L25: ='Team capacity'!$E$18-L16 -> 160,244 | M25: ='Team capacity'!$E$18-M16 -> 120,862 | N25: ='Team capacity'!$E$18-N16 -> 81,480 | O25: ='Team capacity'!$E$18-O16 -> 40,740 | P25: ='Team capacity'!$E$18-P16 -> 0
C26: Engagement hours budget remaining | E26: ='Team capacity'!$F$18-SUM($E9:E9) -> 3,020 | F26: ='Team capacity'!$F$18-SUM($E9:F9) -> 2,770 | G26: ='Team capacity'!$F$18-SUM($E9:G9) -> 2,520 | H26: ='Team capacity'!$F$18-SUM($E9:H9) -> 2,260 | I26: ='Team capacity'!$F$18-SUM($E9:I9) -> 2,000 | J26: ='Team capacity'!$F$18-SUM($E9:J9) -> 1,730 | K26: ='Team capacity'!$F$18-SUM($E9:K9) -> 1,460 | L26: ='Team capacity'!$F$18-SUM($E9:L9) -> 1,180 | M26: ='Team capacity'!$F$18-SUM($E9:M9) -> 890 | N26: ='Team capacity'!$F$18-SUM($E9:N9) -> 600 | O26: ='Team capacity'!$F$18-SUM($E9:O9) -> 300 | P26: ='Team capacity'!$F$18-SUM($E9:P9) -> 0
C28: PS-02 Finance transformation
C29: Recorded chargeable hours | E29: ='Assumptions'!E74 -> 150 | F29: ='Assumptions'!F74 -> 190 | G29: ='Assumptions'!G74 -> 250 | H29: ='Assumptions'!H74 -> 300 | I29: ='Assumptions'!I74 -> 350 | J29: ='Assumptions'!J74 -> 400 | K29: ='Assumptions'!K74 -> 420 | L29: ='Assumptions'!L74 -> 460 | M29: ='Assumptions'!M74 -> 450 | N29: ='Assumptions'!N74 -> 430 | O29: ='Assumptions'!O74 -> 400 | P29: ='Assumptions'!P74 -> 350
C30: Contract hourly rate | E30: ='Assumptions'!E77 -> 130 | F30: ='Assumptions'!F77 -> 130 | G30: ='Assumptions'!G77 -> 130 | H30: ='Assumptions'!H77 -> 130 | I30: ='Assumptions'!I77 -> 130 | J30: ='Assumptions'!J77 -> 130 | K30: ='Assumptions'!K77 -> 130 | L30: ='Assumptions'!L77 -> 130 | M30: ='Assumptions'!M77 -> 130 | N30: ='Assumptions'!N77 -> 130 | O30: ='Assumptions'!O77 -> 130 | P30: ='Assumptions'!P77 -> 130
C31: Realisation | E31: ='Assumptions'!E80 -> 94.0% | F31: ='Assumptions'!F80 -> 94.0% | G31: ='Assumptions'!G80 -> 94.0% | H31: ='Assumptions'!H80 -> 94.0% | I31: ='Assumptions'!I80 -> 94.0% | J31: ='Assumptions'!J80 -> 94.0% | K31: ='Assumptions'!K80 -> 94.0% | L31: ='Assumptions'!L80 -> 94.0% | M31: ='Assumptions'!M80 -> 94.0% | N31: ='Assumptions'!N80 -> 94.0% | O31: ='Assumptions'!O80 -> 94.0% | P31: ='Assumptions'!P80 -> 94.0%
C32: Gross chargeable value | E32: =E29*E30 -> 19,500 | F32: =F29*F30 -> 24,700 | G32: =G29*G30 -> 32,500 | H32: =H29*H30 -> 39,000 | I32: =I29*I30 -> 45,500 | J32: =J29*J30 -> 52,000 | K32: =K29*K30 -> 54,600 | L32: =L29*L30 -> 59,800 | M32: =M29*M30 -> 58,500 | N32: =N29*N30 -> 55,900 | O32: =O29*O30 -> 52,000 | P32: =P29*P30 -> 45,500
C33: Realisation discount | E33: =E32*(1-E31) -> 1,170 | F33: =F32*(1-F31) -> 1,482 | G33: =G32*(1-G31) -> 1,950 | H33: =H32*(1-H31) -> 2,340 | I33: =I32*(1-I31) -> 2,730 | J33: =J32*(1-J31) -> 3,120 | K33: =K32*(1-K31) -> 3,276 | L33: =L32*(1-L31) -> 3,588 | M33: =M32*(1-M31) -> 3,510 | N33: =N32*(1-N31) -> 3,354 | O33: =O32*(1-O31) -> 3,120 | P33: =P32*(1-P31) -> 2,730
C34: Revenue recognised | E34: =E32-E33 -> €18,330 | F34: =F32-F33 -> €23,218 | G34: =G32-G33 -> €30,550 | H34: =H32-H33 -> €36,660 | I34: =I32-I33 -> €42,770 | J34: =J32-J33 -> €48,880 | K34: =K32-K33 -> €51,324 | L34: =L32-L33 -> €56,212 | M34: =M32-M33 -> €54,990 | N34: =N32-N33 -> €52,546 | O34: =O32-O33 -> €48,880 | P34: =P32-P33 -> €42,770
C35: Gross invoices issued | E35: ='Assumptions'!E83 -> 16,497 | F35: ='Assumptions'!F83 -> 20,896 | G35: ='Assumptions'!G83 -> 27,495 | H35: ='Assumptions'!H83 -> 32,994 | I35: ='Assumptions'!I83 -> 38,493 | J35: ='Assumptions'!J83 -> 43,992 | K35: ='Assumptions'!K83 -> 46,192 | L35: ='Assumptions'!L83 -> 50,591 | M35: ='Assumptions'!M83 -> 56,640 | N35: ='Assumptions'!N83 -> 54,122 | O35: ='Assumptions'!O83 -> 50,346 | P35: ='Assumptions'!P83 -> 57,740
C36: Cumulative earned revenue | E36: =0+E34 -> 18,330 | F36: =E36+F34 -> 41,548 | G36: =F36+G34 -> 72,098 | H36: =G36+H34 -> 108,758 | I36: =H36+I34 -> 151,528 | J36: =I36+J34 -> 200,408 | K36: =J36+K34 -> 251,732 | L36: =K36+L34 -> 307,944 | M36: =L36+M34 -> 362,934 | N36: =M36+N34 -> 415,480 | O36: =N36+O34 -> 464,360 | P36: =O36+P34 -> 507,130
C37: Cumulative invoices issued | E37: =0+E35 -> 16,497 | F37: =E37+F35 -> 37,393 | G37: =F37+G35 -> 64,888 | H37: =G37+H35 -> 97,882 | I37: =H37+I35 -> 136,375 | J37: =I37+J35 -> 180,367 | K37: =J37+K35 -> 226,559 | L37: =K37+L35 -> 277,150 | M37: =L37+M35 -> 333,789 | N37: =M37+N35 -> 387,912 | O37: =N37+O35 -> 438,258 | P37: =O37+P35 -> 495,998
C38: Gross unbilled work | E38: =MAX(0,E36-E37) -> 1,833 | F38: =MAX(0,F36-F37) -> 4,155 | G38: =MAX(0,G36-G37) -> 7,210 | H38: =MAX(0,H36-H37) -> 10,876 | I38: =MAX(0,I36-I37) -> 15,153 | J38: =MAX(0,J36-J37) -> 20,041 | K38: =MAX(0,K36-K37) -> 25,173 | L38: =MAX(0,L36-L37) -> 30,794 | M38: =MAX(0,M36-M37) -> 29,145 | N38: =MAX(0,N36-N37) -> 27,568 | O38: =MAX(0,O36-O37) -> 26,102 | P38: =MAX(0,P36-P37) -> 11,132
C39: Recoverability allowance | E39: =E38*'Assumptions'!E86 -> 147 | F39: =F38*'Assumptions'!F86 -> 332 | G39: =G38*'Assumptions'!G86 -> 577 | H39: =H38*'Assumptions'!H86 -> 870 | I39: =I38*'Assumptions'!I86 -> 1,212 | J39: =J38*'Assumptions'!J86 -> 1,603 | K39: =K38*'Assumptions'!K86 -> 2,014 | L39: =L38*'Assumptions'!L86 -> 2,464 | M39: =M38*'Assumptions'!M86 -> 2,332 | N39: =N38*'Assumptions'!N86 -> 2,205 | O39: =O38*'Assumptions'!O86 -> 2,088 | P39: =P38*'Assumptions'!P86 -> 891
C40: Net unbilled work | E40: =E38-E39 -> €1,686 | F40: =F38-F39 -> €3,822 | G40: =G38-G39 -> €6,633 | H40: =H38-H39 -> €10,006 | I40: =I38-I39 -> €13,941 | J40: =J38-J39 -> €18,438 | K40: =K38-K39 -> €23,159 | L40: =L38-L39 -> €28,331 | M40: =M38-M39 -> €26,813 | N40: =N38-N39 -> €25,363 | O40: =O38-O39 -> €24,014 | P40: =P38-P39 -> €10,242
C41: Customer advances / contract liability | E41: =MAX(0,E37-E36) -> 0 | F41: =MAX(0,F37-F36) -> 0 | G41: =MAX(0,G37-G36) -> 0 | H41: =MAX(0,H37-H36) -> 0 | I41: =MAX(0,I37-I36) -> 0 | J41: =MAX(0,J37-J36) -> 0 | K41: =MAX(0,K37-K36) -> 0 | L41: =MAX(0,L37-L36) -> 0 | M41: =MAX(0,M37-M36) -> 0 | N41: =MAX(0,N37-N36) -> 0 | O41: =MAX(0,O37-O36) -> 0 | P41: =MAX(0,P37-P36) -> 0
C42: Grade-weighted loaded cost per hour | E42: ='Assumptions'!E38/160*'Team capacity'!$G$19+'Assumptions'!E44/160*'Team capacity'!$H$19+'Assumptions'!E50/160*'Team capacity'!$I$19+'Assumptions'!E56/160*'Team capacity'!$J$19 -> 43 | F42: ='Assumptions'!F38/160*'Team capacity'!$G$19+'Assumptions'!F44/160*'Team capacity'!$H$19+'Assumptions'!F50/160*'Team capacity'!$I$19+'Assumptions'!F56/160*'Team capacity'!$J$19 -> 43 | G42: ='Assumptions'!G38/160*'Team capacity'!$G$19+'Assumptions'!G44/160*'Team capacity'!$H$19+'Assumptions'!G50/160*'Team capacity'!$I$19+'Assumptions'!G56/160*'Team capacity'!$J$19 -> 43 | H42: ='Assumptions'!H38/160*'Team capacity'!$G$19+'Assumptions'!H44/160*'Team capacity'!$H$19+'Assumptions'!H50/160*'Team capacity'!$I$19+'Assumptions'!H56/160*'Team capacity'!$J$19 -> 43 | I42: ='Assumptions'!I38/160*'Team capacity'!$G$19+'Assumptions'!I44/160*'Team capacity'!$H$19+'Assumptions'!I50/160*'Team capacity'!$I$19+'Assumptions'!I56/160*'Team capacity'!$J$19 -> 43 | J42: ='Assumptions'!J38/160*'Team capacity'!$G$19+'Assumptions'!J44/160*'Team capacity'!$H$19+'Assumptions'!J50/160*'Team capacity'!$I$19+'Assumptions'!J56/160*'Team capacity'!$J$19 -> 43 | K42: ='Assumptions'!K38/160*'Team capacity'!$G$19+'Assumptions'!K44/160*'Team capacity'!$H$19+'Assumptions'!K50/160*'Team capacity'!$I$19+'Assumptions'!K56/160*'Team capacity'!$J$19 -> 43 | L42: ='Assumptions'!L38/160*'Team capacity'!$G$19+'Assumptions'!L44/160*'Team capacity'!$H$19+'Assumptions'!L50/160*'Team capacity'!$I$19+'Assumptions'!L56/160*'Team capacity'!$J$19 -> 43 | M42: ='Assumptions'!M38/160*'Team capacity'!$G$19+'Assumptions'!M44/160*'Team capacity'!$H$19+'Assumptions'!M50/160*'Team capacity'!$I$19+'Assumptions'!M56/160*'Team capacity'!$J$19 -> 44 | N42: ='Assumptions'!N38/160*'Team capacity'!$G$19+'Assumptions'!N44/160*'Team capacity'!$H$19+'Assumptions'!N50/160*'Team capacity'!$I$19+'Assumptions'!N56/160*'Team capacity'!$J$19 -> 44 | O42: ='Assumptions'!O38/160*'Team capacity'!$G$19+'Assumptions'!O44/160*'Team capacity'!$H$19+'Assumptions'!O50/160*'Team capacity'!$I$19+'Assumptions'!O56/160*'Team capacity'!$J$19 -> 44 | P42: ='Assumptions'!P38/160*'Team capacity'!$G$19+'Assumptions'!P44/160*'Team capacity'!$H$19+'Assumptions'!P50/160*'Team capacity'!$I$19+'Assumptions'!P56/160*'Team capacity'!$J$19 -> 44
C43: Attributed engagement payroll | E43: =E29*E42 -> 6,445 | F43: =F29*F42 -> 8,164 | G43: =G29*G42 -> 10,742 | H43: =H29*H42 -> 12,891 | I43: =I29*I42 -> 15,039 | J43: =J29*J42 -> 17,188 | K43: =K29*K42 -> 18,047 | L43: =L29*L42 -> 19,766 | M43: =M29*M42 -> 19,819 | N43: =N29*N42 -> 18,938 | O43: =O29*O42 -> 17,617 | P43: =P29*P42 -> 15,415
C44: Engagement contribution before bench | E44: =E34-E43 -> €11,885 | F44: =F34-F43 -> €15,054 | G44: =G34-G43 -> €19,808 | H44: =H34-H43 -> €23,769 | I44: =I34-I43 -> €27,731 | J44: =J34-J43 -> €31,693 | K44: =K34-K43 -> €33,277 | L44: =L34-L43 -> €36,446 | M44: =M34-M43 -> €35,171 | N44: =N34-N43 -> €33,608 | O44: =O34-O43 -> €31,263 | P44: =P34-P43 -> €27,355
C45: Revenue budget remaining | E45: ='Team capacity'!$E$19-E36 -> 504,985 | F45: ='Team capacity'!$E$19-F36 -> 481,767 | G45: ='Team capacity'!$E$19-G36 -> 451,217 | H45: ='Team capacity'!$E$19-H36 -> 414,557 | I45: ='Team capacity'!$E$19-I36 -> 371,787 | J45: ='Team capacity'!$E$19-J36 -> 322,907 | K45: ='Team capacity'!$E$19-K36 -> 271,583 | L45: ='Team capacity'!$E$19-L36 -> 215,371 | M45: ='Team capacity'!$E$19-M36 -> 160,381 | N45: ='Team capacity'!$E$19-N36 -> 107,835 | O45: ='Team capacity'!$E$19-O36 -> 58,955 | P45: ='Team capacity'!$E$19-P36 -> 16,185
C46: Engagement hours budget remaining | E46: ='Team capacity'!$F$19-SUM($E29:E29) -> 4,000 | F46: ='Team capacity'!$F$19-SUM($E29:F29) -> 3,810 | G46: ='Team capacity'!$F$19-SUM($E29:G29) -> 3,560 | H46: ='Team capacity'!$F$19-SUM($E29:H29) -> 3,260 | I46: ='Team capacity'!$F$19-SUM($E29:I29) -> 2,910 | J46: ='Team capacity'!$F$19-SUM($E29:J29) -> 2,510 | K46: ='Team capacity'!$F$19-SUM($E29:K29) -> 2,090 | L46: ='Team capacity'!$F$19-SUM($E29:L29) -> 1,630 | M46: ='Team capacity'!$F$19-SUM($E29:M29) -> 1,180 | N46: ='Team capacity'!$F$19-SUM($E29:N29) -> 750 | O46: ='Team capacity'!$F$19-SUM($E29:O29) -> 350 | P46: ='Team capacity'!$F$19-SUM($E29:P29) -> 0
C48: PS-03 Regulatory advisory
C49: Recorded chargeable hours | E49: ='Assumptions'!E89 -> 260 | F49: ='Assumptions'!F89 -> 270 | G49: ='Assumptions'!G89 -> 270 | H49: ='Assumptions'!H89 -> 280 | I49: ='Assumptions'!I89 -> 280 | J49: ='Assumptions'!J89 -> 300 | K49: ='Assumptions'!K89 -> 300 | L49: ='Assumptions'!L89 -> 310 | M49: ='Assumptions'!M89 -> 310 | N49: ='Assumptions'!N89 -> 320 | O49: ='Assumptions'!O89 -> 320 | P49: ='Assumptions'!P89 -> 320
C50: Contract hourly rate | E50: ='Assumptions'!E92 -> 125 | F50: ='Assumptions'!F92 -> 125 | G50: ='Assumptions'!G92 -> 125 | H50: ='Assumptions'!H92 -> 125 | I50: ='Assumptions'!I92 -> 125 | J50: ='Assumptions'!J92 -> 125 | K50: ='Assumptions'!K92 -> 125 | L50: ='Assumptions'!L92 -> 125 | M50: ='Assumptions'!M92 -> 125 | N50: ='Assumptions'!N92 -> 125 | O50: ='Assumptions'!O92 -> 125 | P50: ='Assumptions'!P92 -> 125
C51: Realisation | E51: ='Assumptions'!E95 -> 96.0% | F51: ='Assumptions'!F95 -> 96.0% | G51: ='Assumptions'!G95 -> 96.0% | H51: ='Assumptions'!H95 -> 96.0% | I51: ='Assumptions'!I95 -> 96.0% | J51: ='Assumptions'!J95 -> 96.0% | K51: ='Assumptions'!K95 -> 96.0% | L51: ='Assumptions'!L95 -> 96.0% | M51: ='Assumptions'!M95 -> 96.0% | N51: ='Assumptions'!N95 -> 96.0% | O51: ='Assumptions'!O95 -> 96.0% | P51: ='Assumptions'!P95 -> 96.0%
C52: Gross chargeable value | E52: =E49*E50 -> 32,500 | F52: =F49*F50 -> 33,750 | G52: =G49*G50 -> 33,750 | H52: =H49*H50 -> 35,000 | I52: =I49*I50 -> 35,000 | J52: =J49*J50 -> 37,500 | K52: =K49*K50 -> 37,500 | L52: =L49*L50 -> 38,750 | M52: =M49*M50 -> 38,750 | N52: =N49*N50 -> 40,000 | O52: =O49*O50 -> 40,000 | P52: =P49*P50 -> 40,000
C53: Realisation discount | E53: =E52*(1-E51) -> 1,300 | F53: =F52*(1-F51) -> 1,350 | G53: =G52*(1-G51) -> 1,350 | H53: =H52*(1-H51) -> 1,400 | I53: =I52*(1-I51) -> 1,400 | J53: =J52*(1-J51) -> 1,500 | K53: =K52*(1-K51) -> 1,500 | L53: =L52*(1-L51) -> 1,550 | M53: =M52*(1-M51) -> 1,550 | N53: =N52*(1-N51) -> 1,600 | O53: =O52*(1-O51) -> 1,600 | P53: =P52*(1-P51) -> 1,600
C54: Revenue recognised | E54: =E52-E53 -> €31,200 | F54: =F52-F53 -> €32,400 | G54: =G52-G53 -> €32,400 | H54: =H52-H53 -> €33,600 | I54: =I52-I53 -> €33,600 | J54: =J52-J53 -> €36,000 | K54: =K52-K53 -> €36,000 | L54: =L52-L53 -> €37,200 | M54: =M52-M53 -> €37,200 | N54: =N52-N53 -> €38,400 | O54: =O52-O53 -> €38,400 | P54: =P52-P53 -> €38,400
C55: Gross invoices issued | E55: ='Assumptions'!E98 -> 28,080 | F55: ='Assumptions'!F98 -> 29,160 | G55: ='Assumptions'!G98 -> 29,160 | H55: ='Assumptions'!H98 -> 30,240 | I55: ='Assumptions'!I98 -> 30,240 | J55: ='Assumptions'!J98 -> 32,400 | K55: ='Assumptions'!K98 -> 32,400 | L55: ='Assumptions'!L98 -> 33,480 | M55: ='Assumptions'!M98 -> 38,316 | N55: ='Assumptions'!N98 -> 39,552 | O55: ='Assumptions'!O98 -> 39,552 | P55: ='Assumptions'!P98 -> 51,840
C56: Cumulative earned revenue | E56: =0+E54 -> 31,200 | F56: =E56+F54 -> 63,600 | G56: =F56+G54 -> 96,000 | H56: =G56+H54 -> 129,600 | I56: =H56+I54 -> 163,200 | J56: =I56+J54 -> 199,200 | K56: =J56+K54 -> 235,200 | L56: =K56+L54 -> 272,400 | M56: =L56+M54 -> 309,600 | N56: =M56+N54 -> 348,000 | O56: =N56+O54 -> 386,400 | P56: =O56+P54 -> 424,800
C57: Cumulative invoices issued | E57: =0+E55 -> 28,080 | F57: =E57+F55 -> 57,240 | G57: =F57+G55 -> 86,400 | H57: =G57+H55 -> 116,640 | I57: =H57+I55 -> 146,880 | J57: =I57+J55 -> 179,280 | K57: =J57+K55 -> 211,680 | L57: =K57+L55 -> 245,160 | M57: =L57+M55 -> 283,476 | N57: =M57+N55 -> 323,028 | O57: =N57+O55 -> 362,580 | P57: =O57+P55 -> 414,420
C58: Gross unbilled work | E58: =MAX(0,E56-E57) -> 3,120 | F58: =MAX(0,F56-F57) -> 6,360 | G58: =MAX(0,G56-G57) -> 9,600 | H58: =MAX(0,H56-H57) -> 12,960 | I58: =MAX(0,I56-I57) -> 16,320 | J58: =MAX(0,J56-J57) -> 19,920 | K58: =MAX(0,K56-K57) -> 23,520 | L58: =MAX(0,L56-L57) -> 27,240 | M58: =MAX(0,M56-M57) -> 26,124 | N58: =MAX(0,N56-N57) -> 24,972 | O58: =MAX(0,O56-O57) -> 23,820 | P58: =MAX(0,P56-P57) -> 10,380
C59: Recoverability allowance | E59: =E58*'Assumptions'!E101 -> 78 | F59: =F58*'Assumptions'!F101 -> 159 | G59: =G58*'Assumptions'!G101 -> 240 | H59: =H58*'Assumptions'!H101 -> 324 | I59: =I58*'Assumptions'!I101 -> 408 | J59: =J58*'Assumptions'!J101 -> 498 | K59: =K58*'Assumptions'!K101 -> 588 | L59: =L58*'Assumptions'!L101 -> 681 | M59: =M58*'Assumptions'!M101 -> 653 | N59: =N58*'Assumptions'!N101 -> 624 | O59: =O58*'Assumptions'!O101 -> 596 | P59: =P58*'Assumptions'!P101 -> 260
C60: Net unbilled work | E60: =E58-E59 -> €3,042 | F60: =F58-F59 -> €6,201 | G60: =G58-G59 -> €9,360 | H60: =H58-H59 -> €12,636 | I60: =I58-I59 -> €15,912 | J60: =J58-J59 -> €19,422 | K60: =K58-K59 -> €22,932 | L60: =L58-L59 -> €26,559 | M60: =M58-M59 -> €25,471 | N60: =N58-N59 -> €24,348 | O60: =O58-O59 -> €23,225 | P60: =P58-P59 -> €10,121
C61: Customer advances / contract liability | E61: =MAX(0,E57-E56) -> 0 | F61: =MAX(0,F57-F56) -> 0 | G61: =MAX(0,G57-G56) -> 0 | H61: =MAX(0,H57-H56) -> 0 | I61: =MAX(0,I57-I56) -> 0 | J61: =MAX(0,J57-J56) -> 0 | K61: =MAX(0,K57-K56) -> 0 | L61: =MAX(0,L57-L56) -> 0 | M61: =MAX(0,M57-M56) -> 0 | N61: =MAX(0,N57-N56) -> 0 | O61: =MAX(0,O57-O56) -> 0 | P61: =MAX(0,P57-P56) -> 0
C62: Grade-weighted loaded cost per hour | E62: ='Assumptions'!E38/160*'Team capacity'!$G$20+'Assumptions'!E44/160*'Team capacity'!$H$20+'Assumptions'!E50/160*'Team capacity'!$I$20+'Assumptions'!E56/160*'Team capacity'!$J$20 -> 45 | F62: ='Assumptions'!F38/160*'Team capacity'!$G$20+'Assumptions'!F44/160*'Team capacity'!$H$20+'Assumptions'!F50/160*'Team capacity'!$I$20+'Assumptions'!F56/160*'Team capacity'!$J$20 -> 45 | G62: ='Assumptions'!G38/160*'Team capacity'!$G$20+'Assumptions'!G44/160*'Team capacity'!$H$20+'Assumptions'!G50/160*'Team capacity'!$I$20+'Assumptions'!G56/160*'Team capacity'!$J$20 -> 45 | H62: ='Assumptions'!H38/160*'Team capacity'!$G$20+'Assumptions'!H44/160*'Team capacity'!$H$20+'Assumptions'!H50/160*'Team capacity'!$I$20+'Assumptions'!H56/160*'Team capacity'!$J$20 -> 45 | I62: ='Assumptions'!I38/160*'Team capacity'!$G$20+'Assumptions'!I44/160*'Team capacity'!$H$20+'Assumptions'!I50/160*'Team capacity'!$I$20+'Assumptions'!I56/160*'Team capacity'!$J$20 -> 45 | J62: ='Assumptions'!J38/160*'Team capacity'!$G$20+'Assumptions'!J44/160*'Team capacity'!$H$20+'Assumptions'!J50/160*'Team capacity'!$I$20+'Assumptions'!J56/160*'Team capacity'!$J$20 -> 45 | K62: ='Assumptions'!K38/160*'Team capacity'!$G$20+'Assumptions'!K44/160*'Team capacity'!$H$20+'Assumptions'!K50/160*'Team capacity'!$I$20+'Assumptions'!K56/160*'Team capacity'!$J$20 -> 45 | L62: ='Assumptions'!L38/160*'Team capacity'!$G$20+'Assumptions'!L44/160*'Team capacity'!$H$20+'Assumptions'!L50/160*'Team capacity'!$I$20+'Assumptions'!L56/160*'Team capacity'!$J$20 -> 45 | M62: ='Assumptions'!M38/160*'Team capacity'!$G$20+'Assumptions'!M44/160*'Team capacity'!$H$20+'Assumptions'!M50/160*'Team capacity'!$I$20+'Assumptions'!M56/160*'Team capacity'!$J$20 -> 46 | N62: ='Assumptions'!N38/160*'Team capacity'!$G$20+'Assumptions'!N44/160*'Team capacity'!$H$20+'Assumptions'!N50/160*'Team capacity'!$I$20+'Assumptions'!N56/160*'Team capacity'!$J$20 -> 46 | O62: ='Assumptions'!O38/160*'Team capacity'!$G$20+'Assumptions'!O44/160*'Team capacity'!$H$20+'Assumptions'!O50/160*'Team capacity'!$I$20+'Assumptions'!O56/160*'Team capacity'!$J$20 -> 46 | P62: ='Assumptions'!P38/160*'Team capacity'!$G$20+'Assumptions'!P44/160*'Team capacity'!$H$20+'Assumptions'!P50/160*'Team capacity'!$I$20+'Assumptions'!P56/160*'Team capacity'!$J$20 -> 46
C63: Attributed engagement payroll | E63: =E49*E62 -> 11,619 | F63: =F49*F62 -> 12,066 | G63: =G49*G62 -> 12,066 | H63: =H49*H62 -> 12,513 | I63: =I49*I62 -> 12,513 | J63: =J49*J62 -> 13,406 | K63: =K49*K62 -> 13,406 | L63: =L49*L62 -> 13,853 | M63: =M49*M62 -> 14,199 | N63: =N49*N62 -> 14,658 | O63: =O49*O62 -> 14,658 | P63: =P49*P62 -> 14,658
C64: Engagement contribution before bench | E64: =E54-E63 -> €19,581 | F64: =F54-F63 -> €20,334 | G64: =G54-G63 -> €20,334 | H64: =H54-H63 -> €21,088 | I64: =I54-I63 -> €21,088 | J64: =J54-J63 -> €22,594 | K64: =K54-K63 -> €22,594 | L64: =L54-L63 -> €23,347 | M64: =M54-M63 -> €23,001 | N64: =N54-N63 -> €23,743 | O64: =O54-O63 -> €23,743 | P64: =P54-P63 -> €23,743
C65: Revenue budget remaining | E65: ='Team capacity'!$E$20-E56 -> 398,025 | F65: ='Team capacity'!$E$20-F56 -> 365,625 | G65: ='Team capacity'!$E$20-G56 -> 333,225 | H65: ='Team capacity'!$E$20-H56 -> 299,625 | I65: ='Team capacity'!$E$20-I56 -> 266,025 | J65: ='Team capacity'!$E$20-J56 -> 230,025 | K65: ='Team capacity'!$E$20-K56 -> 194,025 | L65: ='Team capacity'!$E$20-L56 -> 156,825 | M65: ='Team capacity'!$E$20-M56 -> 119,625 | N65: ='Team capacity'!$E$20-N56 -> 81,225 | O65: ='Team capacity'!$E$20-O56 -> 42,825 | P65: ='Team capacity'!$E$20-P56 -> 4,425
C66: Engagement hours budget remaining | E66: ='Team capacity'!$F$20-SUM($E49:E49) -> 3,280 | F66: ='Team capacity'!$F$20-SUM($E49:F49) -> 3,010 | G66: ='Team capacity'!$F$20-SUM($E49:G49) -> 2,740 | H66: ='Team capacity'!$F$20-SUM($E49:H49) -> 2,460 | I66: ='Team capacity'!$F$20-SUM($E49:I49) -> 2,180 | J66: ='Team capacity'!$F$20-SUM($E49:J49) -> 1,880 | K66: ='Team capacity'!$F$20-SUM($E49:K49) -> 1,580 | L66: ='Team capacity'!$F$20-SUM($E49:L49) -> 1,270 | M66: ='Team capacity'!$F$20-SUM($E49:M49) -> 960 | N66: ='Team capacity'!$F$20-SUM($E49:N49) -> 640 | O66: ='Team capacity'!$F$20-SUM($E49:O49) -> 320 | P66: ='Team capacity'!$F$20-SUM($E49:P49) -> 0
C68: PS-04 Transaction support
C69: Recorded chargeable hours | E69: ='Assumptions'!E104 -> 220 | F69: ='Assumptions'!F104 -> 250 | G69: ='Assumptions'!G104 -> 280 | H69: ='Assumptions'!H104 -> 280 | I69: ='Assumptions'!I104 -> 310 | J69: ='Assumptions'!J104 -> 340 | K69: ='Assumptions'!K104 -> 360 | L69: ='Assumptions'!L104 -> 380 | M69: ='Assumptions'!M104 -> 380 | N69: ='Assumptions'!N104 -> 390 | O69: ='Assumptions'!O104 -> 400 | P69: ='Assumptions'!P104 -> 380
C70: Contract hourly rate | E70: ='Assumptions'!E107 -> 160 | F70: ='Assumptions'!F107 -> 160 | G70: ='Assumptions'!G107 -> 160 | H70: ='Assumptions'!H107 -> 160 | I70: ='Assumptions'!I107 -> 160 | J70: ='Assumptions'!J107 -> 160 | K70: ='Assumptions'!K107 -> 160 | L70: ='Assumptions'!L107 -> 160 | M70: ='Assumptions'!M107 -> 160 | N70: ='Assumptions'!N107 -> 160 | O70: ='Assumptions'!O107 -> 160 | P70: ='Assumptions'!P107 -> 160
C71: Realisation | E71: ='Assumptions'!E110 -> 92.0% | F71: ='Assumptions'!F110 -> 92.0% | G71: ='Assumptions'!G110 -> 92.0% | H71: ='Assumptions'!H110 -> 92.0% | I71: ='Assumptions'!I110 -> 92.0% | J71: ='Assumptions'!J110 -> 92.0% | K71: ='Assumptions'!K110 -> 92.0% | L71: ='Assumptions'!L110 -> 92.0% | M71: ='Assumptions'!M110 -> 92.0% | N71: ='Assumptions'!N110 -> 92.0% | O71: ='Assumptions'!O110 -> 92.0% | P71: ='Assumptions'!P110 -> 92.0%
C72: Gross chargeable value | E72: =E69*E70 -> 35,200 | F72: =F69*F70 -> 40,000 | G72: =G69*G70 -> 44,800 | H72: =H69*H70 -> 44,800 | I72: =I69*I70 -> 49,600 | J72: =J69*J70 -> 54,400 | K72: =K69*K70 -> 57,600 | L72: =L69*L70 -> 60,800 | M72: =M69*M70 -> 60,800 | N72: =N69*N70 -> 62,400 | O72: =O69*O70 -> 64,000 | P72: =P69*P70 -> 60,800
C73: Realisation discount | E73: =E72*(1-E71) -> 2,816 | F73: =F72*(1-F71) -> 3,200 | G73: =G72*(1-G71) -> 3,584 | H73: =H72*(1-H71) -> 3,584 | I73: =I72*(1-I71) -> 3,968 | J73: =J72*(1-J71) -> 4,352 | K73: =K72*(1-K71) -> 4,608 | L73: =L72*(1-L71) -> 4,864 | M73: =M72*(1-M71) -> 4,864 | N73: =N72*(1-N71) -> 4,992 | O73: =O72*(1-O71) -> 5,120 | P73: =P72*(1-P71) -> 4,864
C74: Revenue recognised | E74: =E72-E73 -> €32,384 | F74: =F72-F73 -> €36,800 | G74: =G72-G73 -> €41,216 | H74: =H72-H73 -> €41,216 | I74: =I72-I73 -> €45,632 | J74: =J72-J73 -> €50,048 | K74: =K72-K73 -> €52,992 | L74: =L72-L73 -> €55,936 | M74: =M72-M73 -> €55,936 | N74: =N72-N73 -> €57,408 | O74: =O72-O73 -> €58,880 | P74: =P72-P73 -> €55,936
C75: Gross invoices issued | E75: ='Assumptions'!E113 -> 29,146 | F75: ='Assumptions'!F113 -> 33,120 | G75: ='Assumptions'!G113 -> 37,094 | H75: ='Assumptions'!H113 -> 37,094 | I75: ='Assumptions'!I113 -> 41,069 | J75: ='Assumptions'!J113 -> 45,043 | K75: ='Assumptions'!K113 -> 47,693 | L75: ='Assumptions'!L113 -> 50,342 | M75: ='Assumptions'!M113 -> 57,614 | N75: ='Assumptions'!N113 -> 59,130 | O75: ='Assumptions'!O113 -> 60,646 | P75: ='Assumptions'!P113 -> 75,514
C76: Cumulative earned revenue | E76: =0+E74 -> 32,384 | F76: =E76+F74 -> 69,184 | G76: =F76+G74 -> 110,400 | H76: =G76+H74 -> 151,616 | I76: =H76+I74 -> 197,248 | J76: =I76+J74 -> 247,296 | K76: =J76+K74 -> 300,288 | L76: =K76+L74 -> 356,224 | M76: =L76+M74 -> 412,160 | N76: =M76+N74 -> 469,568 | O76: =N76+O74 -> 528,448 | P76: =O76+P74 -> 584,384
C77: Cumulative invoices issued | E77: =0+E75 -> 29,146 | F77: =E77+F75 -> 62,266 | G77: =F77+G75 -> 99,360 | H77: =G77+H75 -> 136,454 | I77: =H77+I75 -> 177,523 | J77: =I77+J75 -> 222,566 | K77: =J77+K75 -> 270,259 | L77: =K77+L75 -> 320,602 | M77: =L77+M75 -> 378,216 | N77: =M77+N75 -> 437,346 | O77: =N77+O75 -> 497,992 | P77: =O77+P75 -> 573,506
C78: Gross unbilled work | E78: =MAX(0,E76-E77) -> 3,238 | F78: =MAX(0,F76-F77) -> 6,918 | G78: =MAX(0,G76-G77) -> 11,040 | H78: =MAX(0,H76-H77) -> 15,162 | I78: =MAX(0,I76-I77) -> 19,725 | J78: =MAX(0,J76-J77) -> 24,730 | K78: =MAX(0,K76-K77) -> 30,029 | L78: =MAX(0,L76-L77) -> 35,622 | M78: =MAX(0,M76-M77) -> 33,944 | N78: =MAX(0,N76-N77) -> 32,222 | O78: =MAX(0,O76-O77) -> 30,456 | P78: =MAX(0,P76-P77) -> 10,878
C79: Recoverability allowance | E79: =E78*'Assumptions'!E116 -> 453 | F79: =F78*'Assumptions'!F116 -> 969 | G79: =G78*'Assumptions'!G116 -> 1,546 | H79: =H78*'Assumptions'!H116 -> 2,123 | I79: =I78*'Assumptions'!I116 -> 2,761 | J79: =J78*'Assumptions'!J116 -> 3,462 | K79: =K78*'Assumptions'!K116 -> 4,204 | L79: =L78*'Assumptions'!L116 -> 4,987 | M79: =M78*'Assumptions'!M116 -> 4,752 | N79: =N78*'Assumptions'!N116 -> 4,511 | O79: =O78*'Assumptions'!O116 -> 4,264 | P79: =P78*'Assumptions'!P116 -> 1,523
C80: Net unbilled work | E80: =E78-E79 -> €2,785 | F80: =F78-F79 -> €5,950 | G80: =G78-G79 -> €9,494 | H80: =H78-H79 -> €13,039 | I80: =I78-I79 -> €16,963 | J80: =J78-J79 -> €21,267 | K80: =K78-K79 -> €25,825 | L80: =L78-L79 -> €30,635 | M80: =M78-M79 -> €29,192 | N80: =N78-N79 -> €27,711 | O80: =O78-O79 -> €26,192 | P80: =P78-P79 -> €9,355
C81: Customer advances / contract liability | E81: =MAX(0,E77-E76) -> 0 | F81: =MAX(0,F77-F76) -> 0 | G81: =MAX(0,G77-G76) -> 0 | H81: =MAX(0,H77-H76) -> 0 | I81: =MAX(0,I77-I76) -> 0 | J81: =MAX(0,J77-J76) -> 0 | K81: =MAX(0,K77-K76) -> 0 | L81: =MAX(0,L77-L76) -> 0 | M81: =MAX(0,M77-M76) -> 0 | N81: =MAX(0,N77-N76) -> 0 | O81: =MAX(0,O77-O76) -> 0 | P81: =MAX(0,P77-P76) -> 0
C82: Grade-weighted loaded cost per hour | E82: ='Assumptions'!E38/160*'Team capacity'!$G$21+'Assumptions'!E44/160*'Team capacity'!$H$21+'Assumptions'!E50/160*'Team capacity'!$I$21+'Assumptions'!E56/160*'Team capacity'!$J$21 -> 51 | F82: ='Assumptions'!F38/160*'Team capacity'!$G$21+'Assumptions'!F44/160*'Team capacity'!$H$21+'Assumptions'!F50/160*'Team capacity'!$I$21+'Assumptions'!F56/160*'Team capacity'!$J$21 -> 51 | G82: ='Assumptions'!G38/160*'Team capacity'!$G$21+'Assumptions'!G44/160*'Team capacity'!$H$21+'Assumptions'!G50/160*'Team capacity'!$I$21+'Assumptions'!G56/160*'Team capacity'!$J$21 -> 51 | H82: ='Assumptions'!H38/160*'Team capacity'!$G$21+'Assumptions'!H44/160*'Team capacity'!$H$21+'Assumptions'!H50/160*'Team capacity'!$I$21+'Assumptions'!H56/160*'Team capacity'!$J$21 -> 51 | I82: ='Assumptions'!I38/160*'Team capacity'!$G$21+'Assumptions'!I44/160*'Team capacity'!$H$21+'Assumptions'!I50/160*'Team capacity'!$I$21+'Assumptions'!I56/160*'Team capacity'!$J$21 -> 51 | J82: ='Assumptions'!J38/160*'Team capacity'!$G$21+'Assumptions'!J44/160*'Team capacity'!$H$21+'Assumptions'!J50/160*'Team capacity'!$I$21+'Assumptions'!J56/160*'Team capacity'!$J$21 -> 51 | K82: ='Assumptions'!K38/160*'Team capacity'!$G$21+'Assumptions'!K44/160*'Team capacity'!$H$21+'Assumptions'!K50/160*'Team capacity'!$I$21+'Assumptions'!K56/160*'Team capacity'!$J$21 -> 51 | L82: ='Assumptions'!L38/160*'Team capacity'!$G$21+'Assumptions'!L44/160*'Team capacity'!$H$21+'Assumptions'!L50/160*'Team capacity'!$I$21+'Assumptions'!L56/160*'Team capacity'!$J$21 -> 51 | M82: ='Assumptions'!M38/160*'Team capacity'!$G$21+'Assumptions'!M44/160*'Team capacity'!$H$21+'Assumptions'!M50/160*'Team capacity'!$I$21+'Assumptions'!M56/160*'Team capacity'!$J$21 -> 52 | N82: ='Assumptions'!N38/160*'Team capacity'!$G$21+'Assumptions'!N44/160*'Team capacity'!$H$21+'Assumptions'!N50/160*'Team capacity'!$I$21+'Assumptions'!N56/160*'Team capacity'!$J$21 -> 52 | O82: ='Assumptions'!O38/160*'Team capacity'!$G$21+'Assumptions'!O44/160*'Team capacity'!$H$21+'Assumptions'!O50/160*'Team capacity'!$I$21+'Assumptions'!O56/160*'Team capacity'!$J$21 -> 52 | P82: ='Assumptions'!P38/160*'Team capacity'!$G$21+'Assumptions'!P44/160*'Team capacity'!$H$21+'Assumptions'!P50/160*'Team capacity'!$I$21+'Assumptions'!P56/160*'Team capacity'!$J$21 -> 52
C83: Attributed engagement payroll | E83: =E69*E82 -> 11,138 | F83: =F69*F82 -> 12,656 | G83: =G69*G82 -> 14,175 | H83: =H69*H82 -> 14,175 | I83: =I69*I82 -> 15,694 | J83: =J69*J82 -> 17,213 | K83: =K69*K82 -> 18,225 | L83: =L69*L82 -> 19,238 | M83: =M69*M82 -> 19,718 | N83: =N69*N82 -> 20,237 | O83: =O69*O82 -> 20,756 | P83: =P69*P82 -> 19,718
C84: Engagement contribution before bench | E84: =E74-E83 -> €21,247 | F84: =F74-F83 -> €24,144 | G84: =G74-G83 -> €27,041 | H84: =H74-H83 -> €27,041 | I84: =I74-I83 -> €29,938 | J84: =J74-J83 -> €32,836 | K84: =K74-K83 -> €34,767 | L84: =L74-L83 -> €36,699 | M84: =M74-M83 -> €36,218 | N84: =N74-N83 -> €37,171 | O84: =O74-O83 -> €38,124 | P84: =P74-P83 -> €36,218
C85: Revenue budget remaining | E85: ='Team capacity'!$E$21-E76 -> 583,760 | F85: ='Team capacity'!$E$21-F76 -> 546,960 | G85: ='Team capacity'!$E$21-G76 -> 505,744 | H85: ='Team capacity'!$E$21-H76 -> 464,528 | I85: ='Team capacity'!$E$21-I76 -> 418,896 | J85: ='Team capacity'!$E$21-J76 -> 368,848 | K85: ='Team capacity'!$E$21-K76 -> 315,856 | L85: ='Team capacity'!$E$21-L76 -> 259,920 | M85: ='Team capacity'!$E$21-M76 -> 203,984 | N85: ='Team capacity'!$E$21-N76 -> 146,576 | O85: ='Team capacity'!$E$21-O76 -> 87,696 | P85: ='Team capacity'!$E$21-P76 -> 31,760
C86: Engagement hours budget remaining | E86: ='Team capacity'!$F$21-SUM($E69:E69) -> 3,750 | F86: ='Team capacity'!$F$21-SUM($E69:F69) -> 3,500 | G86: ='Team capacity'!$F$21-SUM($E69:G69) -> 3,220 | H86: ='Team capacity'!$F$21-SUM($E69:H69) -> 2,940 | I86: ='Team capacity'!$F$21-SUM($E69:I69) -> 2,630 | J86: ='Team capacity'!$F$21-SUM($E69:J69) -> 2,290 | K86: ='Team capacity'!$F$21-SUM($E69:K69) -> 1,930 | L86: ='Team capacity'!$F$21-SUM($E69:L69) -> 1,550 | M86: ='Team capacity'!$F$21-SUM($E69:M69) -> 1,170 | N86: ='Team capacity'!$F$21-SUM($E69:N69) -> 780 | O86: ='Team capacity'!$F$21-SUM($E69:O69) -> 380 | P86: ='Team capacity'!$F$21-SUM($E69:P69) -> 0
C88: PS-05 Analytics programme
C89: Recorded chargeable hours | E89: ='Assumptions'!E119 -> 420 | F89: ='Assumptions'!F119 -> 430 | G89: ='Assumptions'!G119 -> 430 | H89: ='Assumptions'!H119 -> 440 | I89: ='Assumptions'!I119 -> 440 | J89: ='Assumptions'!J119 -> 450 | K89: ='Assumptions'!K119 -> 450 | L89: ='Assumptions'!L119 -> 460 | M89: ='Assumptions'!M119 -> 470 | N89: ='Assumptions'!N119 -> 470 | O89: ='Assumptions'!O119 -> 480 | P89: ='Assumptions'!P119 -> 480
C90: Contract hourly rate | E90: ='Assumptions'!E122 -> 110 | F90: ='Assumptions'!F122 -> 110 | G90: ='Assumptions'!G122 -> 110 | H90: ='Assumptions'!H122 -> 110 | I90: ='Assumptions'!I122 -> 110 | J90: ='Assumptions'!J122 -> 110 | K90: ='Assumptions'!K122 -> 110 | L90: ='Assumptions'!L122 -> 110 | M90: ='Assumptions'!M122 -> 110 | N90: ='Assumptions'!N122 -> 110 | O90: ='Assumptions'!O122 -> 110 | P90: ='Assumptions'!P122 -> 110
C91: Realisation | E91: ='Assumptions'!E125 -> 95.0% | F91: ='Assumptions'!F125 -> 95.0% | G91: ='Assumptions'!G125 -> 95.0% | H91: ='Assumptions'!H125 -> 95.0% | I91: ='Assumptions'!I125 -> 95.0% | J91: ='Assumptions'!J125 -> 95.0% | K91: ='Assumptions'!K125 -> 95.0% | L91: ='Assumptions'!L125 -> 95.0% | M91: ='Assumptions'!M125 -> 95.0% | N91: ='Assumptions'!N125 -> 95.0% | O91: ='Assumptions'!O125 -> 95.0% | P91: ='Assumptions'!P125 -> 95.0%
C92: Gross chargeable value | E92: =E89*E90 -> 46,200 | F92: =F89*F90 -> 47,300 | G92: =G89*G90 -> 47,300 | H92: =H89*H90 -> 48,400 | I92: =I89*I90 -> 48,400 | J92: =J89*J90 -> 49,500 | K92: =K89*K90 -> 49,500 | L92: =L89*L90 -> 50,600 | M92: =M89*M90 -> 51,700 | N92: =N89*N90 -> 51,700 | O92: =O89*O90 -> 52,800 | P92: =P89*P90 -> 52,800
C93: Realisation discount | E93: =E92*(1-E91) -> 2,310 | F93: =F92*(1-F91) -> 2,365 | G93: =G92*(1-G91) -> 2,365 | H93: =H92*(1-H91) -> 2,420 | I93: =I92*(1-I91) -> 2,420 | J93: =J92*(1-J91) -> 2,475 | K93: =K92*(1-K91) -> 2,475 | L93: =L92*(1-L91) -> 2,530 | M93: =M92*(1-M91) -> 2,585 | N93: =N92*(1-N91) -> 2,585 | O93: =O92*(1-O91) -> 2,640 | P93: =P92*(1-P91) -> 2,640
C94: Revenue recognised | E94: =E92-E93 -> €43,890 | F94: =F92-F93 -> €44,935 | G94: =G92-G93 -> €44,935 | H94: =H92-H93 -> €45,980 | I94: =I92-I93 -> €45,980 | J94: =J92-J93 -> €47,025 | K94: =K92-K93 -> €47,025 | L94: =L92-L93 -> €48,070 | M94: =M92-M93 -> €49,115 | N94: =N92-N93 -> €49,115 | O94: =O92-O93 -> €50,160 | P94: =P92-P93 -> €50,160
C95: Gross invoices issued | E95: ='Assumptions'!E128 -> 39,501 | F95: ='Assumptions'!F128 -> 40,442 | G95: ='Assumptions'!G128 -> 40,442 | H95: ='Assumptions'!H128 -> 41,382 | I95: ='Assumptions'!I128 -> 41,382 | J95: ='Assumptions'!J128 -> 42,323 | K95: ='Assumptions'!K128 -> 42,323 | L95: ='Assumptions'!L128 -> 43,263 | M95: ='Assumptions'!M128 -> 50,588 | N95: ='Assumptions'!N128 -> 50,588 | O95: ='Assumptions'!O128 -> 51,665 | P95: ='Assumptions'!P128 -> 67,716
C96: Cumulative earned revenue | E96: =0+E94 -> 43,890 | F96: =E96+F94 -> 88,825 | G96: =F96+G94 -> 133,760 | H96: =G96+H94 -> 179,740 | I96: =H96+I94 -> 225,720 | J96: =I96+J94 -> 272,745 | K96: =J96+K94 -> 319,770 | L96: =K96+L94 -> 367,840 | M96: =L96+M94 -> 416,955 | N96: =M96+N94 -> 466,070 | O96: =N96+O94 -> 516,230 | P96: =O96+P94 -> 566,390
C97: Cumulative invoices issued | E97: =0+E95 -> 39,501 | F97: =E97+F95 -> 79,943 | G97: =F97+G95 -> 120,384 | H97: =G97+H95 -> 161,766 | I97: =H97+I95 -> 203,148 | J97: =I97+J95 -> 245,471 | K97: =J97+K95 -> 287,793 | L97: =K97+L95 -> 331,056 | M97: =L97+M95 -> 381,644 | N97: =M97+N95 -> 432,233 | O97: =N97+O95 -> 483,898 | P97: =O97+P95 -> 551,614
C98: Gross unbilled work | E98: =MAX(0,E96-E97) -> 4,389 | F98: =MAX(0,F96-F97) -> 8,883 | G98: =MAX(0,G96-G97) -> 13,376 | H98: =MAX(0,H96-H97) -> 17,974 | I98: =MAX(0,I96-I97) -> 22,572 | J98: =MAX(0,J96-J97) -> 27,275 | K98: =MAX(0,K96-K97) -> 31,977 | L98: =MAX(0,L96-L97) -> 36,784 | M98: =MAX(0,M96-M97) -> 35,311 | N98: =MAX(0,N96-N97) -> 33,837 | O98: =MAX(0,O96-O97) -> 32,332 | P98: =MAX(0,P96-P97) -> 14,776
C99: Recoverability allowance | E99: =E98*'Assumptions'!E131 -> 198 | F99: =F98*'Assumptions'!F131 -> 400 | G99: =G98*'Assumptions'!G131 -> 602 | H99: =H98*'Assumptions'!H131 -> 809 | I99: =I98*'Assumptions'!I131 -> 1,016 | J99: =J98*'Assumptions'!J131 -> 1,227 | K99: =K98*'Assumptions'!K131 -> 1,439 | L99: =L98*'Assumptions'!L131 -> 1,655 | M99: =M98*'Assumptions'!M131 -> 1,589 | N99: =N98*'Assumptions'!N131 -> 1,523 | O99: =O98*'Assumptions'!O131 -> 1,455 | P99: =P98*'Assumptions'!P131 -> 665
C100: Net unbilled work | E100: =E98-E99 -> €4,191 | F100: =F98-F99 -> €8,483 | G100: =G98-G99 -> €12,774 | H100: =H98-H99 -> €17,165 | I100: =I98-I99 -> €21,556 | J100: =J98-J99 -> €26,047 | K100: =K98-K99 -> €30,538 | L100: =L98-L99 -> €35,129 | M100: =M98-M99 -> €33,722 | N100: =N98-N99 -> €32,314 | O100: =O98-O99 -> €30,877 | P100: =P98-P99 -> €14,111
C101: Customer advances / contract liability | E101: =MAX(0,E97-E96) -> 0 | F101: =MAX(0,F97-F96) -> 0 | G101: =MAX(0,G97-G96) -> 0 | H101: =MAX(0,H97-H96) -> 0 | I101: =MAX(0,I97-I96) -> 0 | J101: =MAX(0,J97-J96) -> 0 | K101: =MAX(0,K97-K96) -> 0 | L101: =MAX(0,L97-L96) -> 0 | M101: =MAX(0,M97-M96) -> 0 | N101: =MAX(0,N97-N96) -> 0 | O101: =MAX(0,O97-O96) -> 0 | P101: =MAX(0,P97-P96) -> 0
C102: Grade-weighted loaded cost per hour | E102: ='Assumptions'!E38/160*'Team capacity'!$G$22+'Assumptions'!E44/160*'Team capacity'!$H$22+'Assumptions'!E50/160*'Team capacity'!$I$22+'Assumptions'!E56/160*'Team capacity'!$J$22 -> 39 | F102: ='Assumptions'!F38/160*'Team capacity'!$G$22+'Assumptions'!F44/160*'Team capacity'!$H$22+'Assumptions'!F50/160*'Team capacity'!$I$22+'Assumptions'!F56/160*'Team capacity'!$J$22 -> 39 | G102: ='Assumptions'!G38/160*'Team capacity'!$G$22+'Assumptions'!G44/160*'Team capacity'!$H$22+'Assumptions'!G50/160*'Team capacity'!$I$22+'Assumptions'!G56/160*'Team capacity'!$J$22 -> 39 | H102: ='Assumptions'!H38/160*'Team capacity'!$G$22+'Assumptions'!H44/160*'Team capacity'!$H$22+'Assumptions'!H50/160*'Team capacity'!$I$22+'Assumptions'!H56/160*'Team capacity'!$J$22 -> 39 | I102: ='Assumptions'!I38/160*'Team capacity'!$G$22+'Assumptions'!I44/160*'Team capacity'!$H$22+'Assumptions'!I50/160*'Team capacity'!$I$22+'Assumptions'!I56/160*'Team capacity'!$J$22 -> 39 | J102: ='Assumptions'!J38/160*'Team capacity'!$G$22+'Assumptions'!J44/160*'Team capacity'!$H$22+'Assumptions'!J50/160*'Team capacity'!$I$22+'Assumptions'!J56/160*'Team capacity'!$J$22 -> 39 | K102: ='Assumptions'!K38/160*'Team capacity'!$G$22+'Assumptions'!K44/160*'Team capacity'!$H$22+'Assumptions'!K50/160*'Team capacity'!$I$22+'Assumptions'!K56/160*'Team capacity'!$J$22 -> 39 | L102: ='Assumptions'!L38/160*'Team capacity'!$G$22+'Assumptions'!L44/160*'Team capacity'!$H$22+'Assumptions'!L50/160*'Team capacity'!$I$22+'Assumptions'!L56/160*'Team capacity'!$J$22 -> 39 | M102: ='Assumptions'!M38/160*'Team capacity'!$G$22+'Assumptions'!M44/160*'Team capacity'!$H$22+'Assumptions'!M50/160*'Team capacity'!$I$22+'Assumptions'!M56/160*'Team capacity'!$J$22 -> 40 | N102: ='Assumptions'!N38/160*'Team capacity'!$G$22+'Assumptions'!N44/160*'Team capacity'!$H$22+'Assumptions'!N50/160*'Team capacity'!$I$22+'Assumptions'!N56/160*'Team capacity'!$J$22 -> 40 | O102: ='Assumptions'!O38/160*'Team capacity'!$G$22+'Assumptions'!O44/160*'Team capacity'!$H$22+'Assumptions'!O50/160*'Team capacity'!$I$22+'Assumptions'!O56/160*'Team capacity'!$J$22 -> 40 | P102: ='Assumptions'!P38/160*'Team capacity'!$G$22+'Assumptions'!P44/160*'Team capacity'!$H$22+'Assumptions'!P50/160*'Team capacity'!$I$22+'Assumptions'!P56/160*'Team capacity'!$J$22 -> 40
C103: Attributed engagement payroll | E103: =E89*E102 -> 16,564 | F103: =F89*F102 -> 16,958 | G103: =G89*G102 -> 16,958 | H103: =H89*H102 -> 17,353 | I103: =I89*I102 -> 17,353 | J103: =J89*J102 -> 17,747 | K103: =K89*K102 -> 17,747 | L103: =L89*L102 -> 18,141 | M103: =M89*M102 -> 18,999 | N103: =N89*N102 -> 18,999 | O103: =O89*O102 -> 19,403 | P103: =P89*P102 -> 19,403
C104: Engagement contribution before bench | E104: =E94-E103 -> €27,326 | F104: =F94-F103 -> €27,977 | G104: =G94-G103 -> €27,977 | H104: =H94-H103 -> €28,628 | I104: =I94-I103 -> €28,628 | J104: =J94-J103 -> €29,278 | K104: =K94-K103 -> €29,278 | L104: =L94-L103 -> €29,929 | M104: =M94-M103 -> €30,116 | N104: =N94-N103 -> €30,116 | O104: =O94-O103 -> €30,757 | P104: =P94-P103 -> €30,757
C105: Revenue budget remaining | E105: ='Team capacity'!$E$22-E96 -> 534,424 | F105: ='Team capacity'!$E$22-F96 -> 489,489 | G105: ='Team capacity'!$E$22-G96 -> 444,554 | H105: ='Team capacity'!$E$22-H96 -> 398,574 | I105: ='Team capacity'!$E$22-I96 -> 352,594 | J105: ='Team capacity'!$E$22-J96 -> 305,569 | K105: ='Team capacity'!$E$22-K96 -> 258,544 | L105: ='Team capacity'!$E$22-L96 -> 210,474 | M105: ='Team capacity'!$E$22-M96 -> 161,359 | N105: ='Team capacity'!$E$22-N96 -> 112,244 | O105: ='Team capacity'!$E$22-O96 -> 62,084 | P105: ='Team capacity'!$E$22-P96 -> 11,924
C106: Engagement hours budget remaining | E106: ='Team capacity'!$F$22-SUM($E89:E89) -> 5,000 | F106: ='Team capacity'!$F$22-SUM($E89:F89) -> 4,570 | G106: ='Team capacity'!$F$22-SUM($E89:G89) -> 4,140 | H106: ='Team capacity'!$F$22-SUM($E89:H89) -> 3,700 | I106: ='Team capacity'!$F$22-SUM($E89:I89) -> 3,260 | J106: ='Team capacity'!$F$22-SUM($E89:J89) -> 2,810 | K106: ='Team capacity'!$F$22-SUM($E89:K89) -> 2,360 | L106: ='Team capacity'!$F$22-SUM($E89:L89) -> 1,900 | M106: ='Team capacity'!$F$22-SUM($E89:M89) -> 1,430 | N106: ='Team capacity'!$F$22-SUM($E89:N89) -> 960 | O106: ='Team capacity'!$F$22-SUM($E89:O89) -> 480 | P106: ='Team capacity'!$F$22-SUM($E89:P89) -> 0
C108: PS-06 Technology advisory
C109: Recorded chargeable hours | E109: ='Assumptions'!E134 -> 280 | F109: ='Assumptions'!F134 -> 290 | G109: ='Assumptions'!G134 -> 300 | H109: ='Assumptions'!H134 -> 300 | I109: ='Assumptions'!I134 -> 310 | J109: ='Assumptions'!J134 -> 320 | K109: ='Assumptions'!K134 -> 320 | L109: ='Assumptions'!L134 -> 330 | M109: ='Assumptions'!M134 -> 340 | N109: ='Assumptions'!N134 -> 340 | O109: ='Assumptions'!O134 -> 350 | P109: ='Assumptions'!P134 -> 350
C110: Contract hourly rate | E110: ='Assumptions'!E137 -> 135 | F110: ='Assumptions'!F137 -> 135 | G110: ='Assumptions'!G137 -> 135 | H110: ='Assumptions'!H137 -> 135 | I110: ='Assumptions'!I137 -> 135 | J110: ='Assumptions'!J137 -> 135 | K110: ='Assumptions'!K137 -> 135 | L110: ='Assumptions'!L137 -> 135 | M110: ='Assumptions'!M137 -> 135 | N110: ='Assumptions'!N137 -> 135 | O110: ='Assumptions'!O137 -> 135 | P110: ='Assumptions'!P137 -> 135
C111: Realisation | E111: ='Assumptions'!E140 -> 93.0% | F111: ='Assumptions'!F140 -> 93.0% | G111: ='Assumptions'!G140 -> 93.0% | H111: ='Assumptions'!H140 -> 93.0% | I111: ='Assumptions'!I140 -> 93.0% | J111: ='Assumptions'!J140 -> 93.0% | K111: ='Assumptions'!K140 -> 93.0% | L111: ='Assumptions'!L140 -> 93.0% | M111: ='Assumptions'!M140 -> 93.0% | N111: ='Assumptions'!N140 -> 93.0% | O111: ='Assumptions'!O140 -> 93.0% | P111: ='Assumptions'!P140 -> 93.0%
C112: Gross chargeable value | E112: =E109*E110 -> 37,800 | F112: =F109*F110 -> 39,150 | G112: =G109*G110 -> 40,500 | H112: =H109*H110 -> 40,500 | I112: =I109*I110 -> 41,850 | J112: =J109*J110 -> 43,200 | K112: =K109*K110 -> 43,200 | L112: =L109*L110 -> 44,550 | M112: =M109*M110 -> 45,900 | N112: =N109*N110 -> 45,900 | O112: =O109*O110 -> 47,250 | P112: =P109*P110 -> 47,250
C113: Realisation discount | E113: =E112*(1-E111) -> 2,646 | F113: =F112*(1-F111) -> 2,741 | G113: =G112*(1-G111) -> 2,835 | H113: =H112*(1-H111) -> 2,835 | I113: =I112*(1-I111) -> 2,930 | J113: =J112*(1-J111) -> 3,024 | K113: =K112*(1-K111) -> 3,024 | L113: =L112*(1-L111) -> 3,119 | M113: =M112*(1-M111) -> 3,213 | N113: =N112*(1-N111) -> 3,213 | O113: =O112*(1-O111) -> 3,308 | P113: =P112*(1-P111) -> 3,308
C114: Revenue recognised | E114: =E112-E113 -> €35,154 | F114: =F112-F113 -> €36,410 | G114: =G112-G113 -> €37,665 | H114: =H112-H113 -> €37,665 | I114: =I112-I113 -> €38,921 | J114: =J112-J113 -> €40,176 | K114: =K112-K113 -> €40,176 | L114: =L112-L113 -> €41,432 | M114: =M112-M113 -> €42,687 | N114: =N112-N113 -> €42,687 | O114: =O112-O113 -> €43,943 | P114: =P112-P113 -> €43,943
C115: Gross invoices issued | E115: ='Assumptions'!E143 -> 31,639 | F115: ='Assumptions'!F143 -> 32,769 | G115: ='Assumptions'!G143 -> 33,899 | H115: ='Assumptions'!H143 -> 33,899 | I115: ='Assumptions'!I143 -> 35,028 | J115: ='Assumptions'!J143 -> 36,158 | K115: ='Assumptions'!K143 -> 36,158 | L115: ='Assumptions'!L143 -> 37,288 | M115: ='Assumptions'!M143 -> 43,968 | N115: ='Assumptions'!N143 -> 43,968 | O115: ='Assumptions'!O143 -> 45,261 | P115: ='Assumptions'!P143 -> 59,322
C116: Cumulative earned revenue | E116: =0+E114 -> 35,154 | F116: =E116+F114 -> 71,564 | G116: =F116+G114 -> 109,229 | H116: =G116+H114 -> 146,894 | I116: =H116+I114 -> 185,814 | J116: =I116+J114 -> 225,990 | K116: =J116+K114 -> 266,166 | L116: =K116+L114 -> 307,598 | M116: =L116+M114 -> 350,285 | N116: =M116+N114 -> 392,972 | O116: =N116+O114 -> 436,914 | P116: =O116+P114 -> 480,857
C117: Cumulative invoices issued | E117: =0+E115 -> 31,639 | F117: =E117+F115 -> 64,407 | G117: =F117+G115 -> 98,306 | H117: =G117+H115 -> 132,204 | I117: =H117+I115 -> 167,233 | J117: =I117+J115 -> 203,391 | K117: =J117+K115 -> 239,549 | L117: =K117+L115 -> 276,838 | M117: =L117+M115 -> 320,805 | N117: =M117+N115 -> 364,773 | O117: =N117+O115 -> 410,034 | P117: =O117+P115 -> 469,356
C118: Gross unbilled work | E118: =MAX(0,E116-E117) -> 3,515 | F118: =MAX(0,F116-F117) -> 7,156 | G118: =MAX(0,G116-G117) -> 10,923 | H118: =MAX(0,H116-H117) -> 14,689 | I118: =MAX(0,I116-I117) -> 18,581 | J118: =MAX(0,J116-J117) -> 22,599 | K118: =MAX(0,K116-K117) -> 26,617 | L118: =MAX(0,L116-L117) -> 30,760 | M118: =MAX(0,M116-M117) -> 29,479 | N118: =MAX(0,N116-N117) -> 28,199 | O118: =MAX(0,O116-O117) -> 26,880 | P118: =MAX(0,P116-P117) -> 11,500
C119: Recoverability allowance | E119: =E118*'Assumptions'!E146 -> 246 | F119: =F118*'Assumptions'!F146 -> 501 | G119: =G118*'Assumptions'!G146 -> 765 | H119: =H118*'Assumptions'!H146 -> 1,028 | I119: =I118*'Assumptions'!I146 -> 1,301 | J119: =J118*'Assumptions'!J146 -> 1,582 | K119: =K118*'Assumptions'!K146 -> 1,863 | L119: =L118*'Assumptions'!L146 -> 2,153 | M119: =M118*'Assumptions'!M146 -> 2,064 | N119: =N118*'Assumptions'!N146 -> 1,974 | O119: =O118*'Assumptions'!O146 -> 1,882 | P119: =P118*'Assumptions'!P146 -> 805
C120: Net unbilled work | E120: =E118-E119 -> €3,269 | F120: =F118-F119 -> €6,655 | G120: =G118-G119 -> €10,158 | H120: =H118-H119 -> €13,661 | I120: =I118-I119 -> €17,281 | J120: =J118-J119 -> €21,017 | K120: =K118-K119 -> €24,753 | L120: =L118-L119 -> €28,607 | M120: =M118-M119 -> €27,416 | N120: =N118-N119 -> €26,225 | O120: =O118-O119 -> €24,999 | P120: =P118-P119 -> €10,695
C121: Customer advances / contract liability | E121: =MAX(0,E117-E116) -> 0 | F121: =MAX(0,F117-F116) -> 0 | G121: =MAX(0,G117-G116) -> 0 | H121: =MAX(0,H117-H116) -> 0 | I121: =MAX(0,I117-I116) -> 0 | J121: =MAX(0,J117-J116) -> 0 | K121: =MAX(0,K117-K116) -> 0 | L121: =MAX(0,L117-L116) -> 0 | M121: =MAX(0,M117-M116) -> 0 | N121: =MAX(0,N117-N116) -> 0 | O121: =MAX(0,O117-O116) -> 0 | P121: =MAX(0,P117-P116) -> 0
C122: Grade-weighted loaded cost per hour | E122: ='Assumptions'!E38/160*'Team capacity'!$G$23+'Assumptions'!E44/160*'Team capacity'!$H$23+'Assumptions'!E50/160*'Team capacity'!$I$23+'Assumptions'!E56/160*'Team capacity'!$J$23 -> 43 | F122: ='Assumptions'!F38/160*'Team capacity'!$G$23+'Assumptions'!F44/160*'Team capacity'!$H$23+'Assumptions'!F50/160*'Team capacity'!$I$23+'Assumptions'!F56/160*'Team capacity'!$J$23 -> 43 | G122: ='Assumptions'!G38/160*'Team capacity'!$G$23+'Assumptions'!G44/160*'Team capacity'!$H$23+'Assumptions'!G50/160*'Team capacity'!$I$23+'Assumptions'!G56/160*'Team capacity'!$J$23 -> 43 | H122: ='Assumptions'!H38/160*'Team capacity'!$G$23+'Assumptions'!H44/160*'Team capacity'!$H$23+'Assumptions'!H50/160*'Team capacity'!$I$23+'Assumptions'!H56/160*'Team capacity'!$J$23 -> 43 | I122: ='Assumptions'!I38/160*'Team capacity'!$G$23+'Assumptions'!I44/160*'Team capacity'!$H$23+'Assumptions'!I50/160*'Team capacity'!$I$23+'Assumptions'!I56/160*'Team capacity'!$J$23 -> 43 | J122: ='Assumptions'!J38/160*'Team capacity'!$G$23+'Assumptions'!J44/160*'Team capacity'!$H$23+'Assumptions'!J50/160*'Team capacity'!$I$23+'Assumptions'!J56/160*'Team capacity'!$J$23 -> 43 | K122: ='Assumptions'!K38/160*'Team capacity'!$G$23+'Assumptions'!K44/160*'Team capacity'!$H$23+'Assumptions'!K50/160*'Team capacity'!$I$23+'Assumptions'!K56/160*'Team capacity'!$J$23 -> 43 | L122: ='Assumptions'!L38/160*'Team capacity'!$G$23+'Assumptions'!L44/160*'Team capacity'!$H$23+'Assumptions'!L50/160*'Team capacity'!$I$23+'Assumptions'!L56/160*'Team capacity'!$J$23 -> 43 | M122: ='Assumptions'!M38/160*'Team capacity'!$G$23+'Assumptions'!M44/160*'Team capacity'!$H$23+'Assumptions'!M50/160*'Team capacity'!$I$23+'Assumptions'!M56/160*'Team capacity'!$J$23 -> 44 | N122: ='Assumptions'!N38/160*'Team capacity'!$G$23+'Assumptions'!N44/160*'Team capacity'!$H$23+'Assumptions'!N50/160*'Team capacity'!$I$23+'Assumptions'!N56/160*'Team capacity'!$J$23 -> 44 | O122: ='Assumptions'!O38/160*'Team capacity'!$G$23+'Assumptions'!O44/160*'Team capacity'!$H$23+'Assumptions'!O50/160*'Team capacity'!$I$23+'Assumptions'!O56/160*'Team capacity'!$J$23 -> 44 | P122: ='Assumptions'!P38/160*'Team capacity'!$G$23+'Assumptions'!P44/160*'Team capacity'!$H$23+'Assumptions'!P50/160*'Team capacity'!$I$23+'Assumptions'!P56/160*'Team capacity'!$J$23 -> 44
C123: Attributed engagement payroll | E123: =E109*E122 -> 12,031 | F123: =F109*F122 -> 12,461 | G123: =G109*G122 -> 12,891 | H123: =H109*H122 -> 12,891 | I123: =I109*I122 -> 13,320 | J123: =J109*J122 -> 13,750 | K123: =K109*K122 -> 13,750 | L123: =L109*L122 -> 14,180 | M123: =M109*M122 -> 14,975 | N123: =N109*N122 -> 14,975 | O123: =O109*O122 -> 15,415 | P123: =P109*P122 -> 15,415
C124: Engagement contribution before bench | E124: =E114-E123 -> €23,123 | F124: =F114-F123 -> €23,949 | G124: =G114-G123 -> €24,774 | H124: =H114-H123 -> €24,774 | I124: =I114-I123 -> €25,600 | J124: =J114-J123 -> €26,426 | K124: =K114-K123 -> €26,426 | L124: =L114-L123 -> €27,252 | M124: =M114-M123 -> €27,712 | N124: =N114-N123 -> €27,712 | O124: =O114-O123 -> €28,527 | P124: =P114-P123 -> €28,527
C125: Revenue budget remaining | E125: ='Team capacity'!$E$23-E116 -> 466,385 | F125: ='Team capacity'!$E$23-F116 -> 429,975 | G125: ='Team capacity'!$E$23-G116 -> 392,310 | H125: ='Team capacity'!$E$23-H116 -> 354,645 | I125: ='Team capacity'!$E$23-I116 -> 315,725 | J125: ='Team capacity'!$E$23-J116 -> 275,549 | K125: ='Team capacity'!$E$23-K116 -> 235,373 | L125: ='Team capacity'!$E$23-L116 -> 193,941 | M125: ='Team capacity'!$E$23-M116 -> 151,254 | N125: ='Team capacity'!$E$23-N116 -> 108,567 | O125: ='Team capacity'!$E$23-O116 -> 64,625 | P125: ='Team capacity'!$E$23-P116 -> 20,682
C126: Engagement hours budget remaining | E126: ='Team capacity'!$F$23-SUM($E109:E109) -> 3,550 | F126: ='Team capacity'!$F$23-SUM($E109:F109) -> 3,260 | G126: ='Team capacity'!$F$23-SUM($E109:G109) -> 2,960 | H126: ='Team capacity'!$F$23-SUM($E109:H109) -> 2,660 | I126: ='Team capacity'!$F$23-SUM($E109:I109) -> 2,350 | J126: ='Team capacity'!$F$23-SUM($E109:J109) -> 2,030 | K126: ='Team capacity'!$F$23-SUM($E109:K109) -> 1,710 | L126: ='Team capacity'!$F$23-SUM($E109:L109) -> 1,380 | M126: ='Team capacity'!$F$23-SUM($E109:M109) -> 1,040 | N126: ='Team capacity'!$F$23-SUM($E109:N109) -> 700 | O126: ='Team capacity'!$F$23-SUM($E109:O109) -> 350 | P126: ='Team capacity'!$F$23-SUM($E109:P109) -> 0
C128: Portfolio totals
C129: Recorded chargeable hours | E129: =SUM(E9,E29,E49,E69,E89,E109) -> 1,570 | F129: =SUM(F9,F29,F49,F69,F89,F109) -> 1,680 | G129: =SUM(G9,G29,G49,G69,G89,G109) -> 1,780 | H129: =SUM(H9,H29,H49,H69,H89,H109) -> 1,860 | I129: =SUM(I9,I29,I49,I69,I89,I109) -> 1,950 | J129: =SUM(J9,J29,J49,J69,J89,J109) -> 2,080 | K129: =SUM(K9,K29,K49,K69,K89,K109) -> 2,120 | L129: =SUM(L9,L29,L49,L69,L89,L109) -> 2,220 | M129: =SUM(M9,M29,M49,M69,M89,M109) -> 2,240 | N129: =SUM(N9,N29,N49,N69,N89,N109) -> 2,240 | O129: =SUM(O9,O29,O49,O69,O89,O109) -> 2,250 | P129: =SUM(P9,P29,P49,P69,P89,P109) -> 2,180
C130: Gross chargeable value | E130: =SUM(E12,E32,E52,E72,E92,E112) -> 204,800 | F130: =SUM(F12,F32,F52,F72,F92,F112) -> 219,900 | G130: =SUM(G12,G32,G52,G72,G92,G112) -> 233,850 | H130: =SUM(H12,H32,H52,H72,H92,H112) -> 244,100 | I130: =SUM(I12,I32,I52,I72,I92,I112) -> 256,750 | J130: =SUM(J12,J32,J52,J72,J92,J112) -> 274,400 | K130: =SUM(K12,K32,K52,K72,K92,K112) -> 280,200 | L130: =SUM(L12,L32,L52,L72,L92,L112) -> 293,700 | M130: =SUM(M12,M32,M52,M72,M92,M112) -> 296,250 | N130: =SUM(N12,N32,N52,N72,N92,N112) -> 296,500 | O130: =SUM(O12,O32,O52,O72,O92,O112) -> 298,050 | P130: =SUM(P12,P32,P52,P72,P92,P112) -> 288,350
C131: Realisation discount | E131: =SUM(E13,E33,E53,E73,E93,E113) -> 11,250 | F131: =SUM(F13,F33,F53,F73,F93,F113) -> 12,188 | G131: =SUM(G13,G33,G53,G73,G93,G113) -> 13,134 | H131: =SUM(H13,H33,H53,H73,H93,H113) -> 13,671 | I131: =SUM(I13,I33,I53,I73,I93,I113) -> 14,540 | J131: =SUM(J13,J33,J53,J73,J93,J113) -> 15,605 | K131: =SUM(K13,K33,K53,K73,K93,K113) -> 16,017 | L131: =SUM(L13,L33,L53,L73,L93,L113) -> 16,827 | M131: =SUM(M13,M33,M53,M73,M93,M113) -> 16,940 | N131: =SUM(N13,N33,N53,N73,N93,N113) -> 16,962 | O131: =SUM(O13,O33,O53,O73,O93,O113) -> 17,048 | P131: =SUM(P13,P33,P53,P73,P93,P113) -> 16,402
C132: Revenue recognised | E132: =SUM(E14,E34,E54,E74,E94,E114) -> 193,550 | F132: =SUM(F14,F34,F54,F74,F94,F114) -> 207,713 | G132: =SUM(G14,G34,G54,G74,G94,G114) -> 220,716 | H132: =SUM(H14,H34,H54,H74,H94,H114) -> 230,429 | I132: =SUM(I14,I34,I54,I74,I94,I114) -> 242,211 | J132: =SUM(J14,J34,J54,J74,J94,J114) -> 258,795 | K132: =SUM(K14,K34,K54,K74,K94,K114) -> 264,183 | L132: =SUM(L14,L34,L54,L74,L94,L114) -> 276,874 | M132: =SUM(M14,M34,M54,M74,M94,M114) -> 279,310 | N132: =SUM(N14,N34,N54,N74,N94,N114) -> 279,538 | O132: =SUM(O14,O34,O54,O74,O94,O114) -> 281,003 | P132: =SUM(P14,P34,P54,P74,P94,P114) -> 271,949
C133: Gross invoices issued | E133: =SUM(E15,E35,E55,E75,E95,E115) -> 174,195 | F133: =SUM(F15,F35,F55,F75,F95,F115) -> 186,941 | G133: =SUM(G15,G35,G55,G75,G95,G115) -> 198,644 | H133: =SUM(H15,H35,H55,H75,H95,H115) -> 207,386 | I133: =SUM(I15,I35,I55,I75,I95,I115) -> 217,989 | J133: =SUM(J15,J35,J55,J75,J95,J115) -> 232,916 | K133: =SUM(K15,K35,K55,K75,K95,K115) -> 237,765 | L133: =SUM(L15,L35,L55,L75,L95,L115) -> 249,186 | M133: =SUM(M15,M35,M55,M75,M95,M115) -> 287,689 | N133: =SUM(N15,N35,N55,N75,N95,N115) -> 287,924 | O133: =SUM(O15,O35,O55,O75,O95,O115) -> 289,433 | P133: =SUM(P15,P35,P55,P75,P95,P115) -> 367,130
C134: Cumulative earned revenue | E134: =SUM(E16,E36,E56,E76,E96,E116) -> 193,550 | F134: =SUM(F16,F36,F56,F76,F96,F116) -> 401,263 | G134: =SUM(G16,G36,G56,G76,G96,G116) -> 621,979 | H134: =SUM(H16,H36,H56,H76,H96,H116) -> 852,408 | I134: =SUM(I16,I36,I56,I76,I96,I116) -> 1,094,618 | J134: =SUM(J16,J36,J56,J76,J96,J116) -> 1,353,413 | K134: =SUM(K16,K36,K56,K76,K96,K116) -> 1,617,596 | L134: =SUM(L16,L36,L56,L76,L96,L116) -> 1,894,470 | M134: =SUM(M16,M36,M56,M76,M96,M116) -> 2,173,780 | N134: =SUM(N16,N36,N56,N76,N96,N116) -> 2,453,318 | O134: =SUM(O16,O36,O56,O76,O96,O116) -> 2,734,320 | P134: =SUM(P16,P36,P56,P76,P96,P116) -> 3,006,269
C135: Cumulative invoices issued | E135: =SUM(E17,E37,E57,E77,E97,E117) -> 174,195 | F135: =SUM(F17,F37,F57,F77,F97,F117) -> 361,136 | G135: =SUM(G17,G37,G57,G77,G97,G117) -> 559,781 | H135: =SUM(H17,H37,H57,H77,H97,H117) -> 767,167 | I135: =SUM(I17,I37,I57,I77,I97,I117) -> 985,156 | J135: =SUM(J17,J37,J57,J77,J97,J117) -> 1,218,072 | K135: =SUM(K17,K37,K57,K77,K97,K117) -> 1,455,836 | L135: =SUM(L17,L37,L57,L77,L97,L117) -> 1,705,023 | M135: =SUM(M17,M37,M57,M77,M97,M117) -> 1,992,712 | N135: =SUM(N17,N37,N57,N77,N97,N117) -> 2,280,636 | O135: =SUM(O17,O37,O57,O77,O97,O117) -> 2,570,069 | P135: =SUM(P17,P37,P57,P77,P97,P117) -> 2,937,199
C136: Gross unbilled work | E136: =SUM(E18,E38,E58,E78,E98,E118) -> 19,355 | F136: =SUM(F18,F38,F58,F78,F98,F118) -> 40,126 | G136: =SUM(G18,G38,G58,G78,G98,G118) -> 62,198 | H136: =SUM(H18,H38,H58,H78,H98,H118) -> 85,241 | I136: =SUM(I18,I38,I58,I78,I98,I118) -> 109,462 | J136: =SUM(J18,J38,J58,J78,J98,J118) -> 135,341 | K136: =SUM(K18,K38,K58,K78,K98,K118) -> 161,760 | L136: =SUM(L18,L38,L58,L78,L98,L118) -> 189,447 | M136: =SUM(M18,M38,M58,M78,M98,M118) -> 181,068 | N136: =SUM(N18,N38,N58,N78,N98,N118) -> 172,682 | O136: =SUM(O18,O38,O58,O78,O98,O118) -> 164,251 | P136: =SUM(P18,P38,P58,P78,P98,P118) -> 69,069
C137: Recoverability allowance | E137: =SUM(E19,E39,E59,E79,E99,E119) -> 1,187 | F137: =SUM(F19,F39,F59,F79,F99,F119) -> 2,494 | G137: =SUM(G19,G39,G59,G79,G99,G119) -> 3,930 | H137: =SUM(H19,H39,H59,H79,H99,H119) -> 5,425 | I137: =SUM(I19,I39,I59,I79,I99,I119) -> 7,040 | J137: =SUM(J19,J39,J59,J79,J99,J119) -> 8,788 | K137: =SUM(K19,K39,K59,K79,K99,K119) -> 10,597 | L137: =SUM(L19,L39,L59,L79,L99,L119) -> 12,505 | M137: =SUM(M19,M39,M59,M79,M99,M119) -> 11,931 | N137: =SUM(N19,N39,N59,N79,N99,N119) -> 11,355 | O137: =SUM(O19,O39,O59,O79,O99,O119) -> 10,777 | P137: =SUM(P19,P39,P59,P79,P99,P119) -> 4,351
C138: Net unbilled work | E138: =SUM(E20,E40,E60,E80,E100,E120) -> 18,168 | F138: =SUM(F20,F40,F60,F80,F100,F120) -> 37,633 | G138: =SUM(G20,G40,G60,G80,G100,G120) -> 58,268 | H138: =SUM(H20,H40,H60,H80,H100,H120) -> 79,815 | I138: =SUM(I20,I40,I60,I80,I100,I120) -> 102,421 | J138: =SUM(J20,J40,J60,J80,J100,J120) -> 126,553 | K138: =SUM(K20,K40,K60,K80,K100,K120) -> 151,163 | L138: =SUM(L20,L40,L60,L80,L100,L120) -> 176,942 | M138: =SUM(M20,M40,M60,M80,M100,M120) -> 169,137 | N138: =SUM(N20,N40,N60,N80,N100,N120) -> 161,326 | O138: =SUM(O20,O40,O60,O80,O100,O120) -> 153,474 | P138: =SUM(P20,P40,P60,P80,P100,P120) -> 64,718
C139: Customer advances / contract liability | E139: =SUM(E21,E41,E61,E81,E101,E121) -> 0 | F139: =SUM(F21,F41,F61,F81,F101,F121) -> 0 | G139: =SUM(G21,G41,G61,G81,G101,G121) -> 0 | H139: =SUM(H21,H41,H61,H81,H101,H121) -> 0 | I139: =SUM(I21,I41,I61,I81,I101,I121) -> 0 | J139: =SUM(J21,J41,J61,J81,J101,J121) -> 0 | K139: =SUM(K21,K41,K61,K81,K101,K121) -> 0 | L139: =SUM(L21,L41,L61,L81,L101,L121) -> 0 | M139: =SUM(M21,M41,M61,M81,M101,M121) -> 0 | N139: =SUM(N21,N41,N61,N81,N101,N121) -> 0 | O139: =SUM(O21,O41,O61,O81,O101,O121) -> 0 | P139: =SUM(P21,P41,P61,P81,P101,P121) -> 0
C140: Attributed engagement payroll | E140: =SUM(E23,E43,E63,E83,E103,E123) -> 69,534 | F140: =SUM(F23,F43,F63,F83,F103,F123) -> 74,532 | G140: =SUM(G23,G43,G63,G83,G103,G123) -> 79,058 | H140: =SUM(H23,H43,H63,H83,H103,H123) -> 82,537 | I140: =SUM(I23,I43,I63,I83,I103,I123) -> 86,634 | J140: =SUM(J23,J43,J63,J83,J103,J123) -> 92,508 | K140: =SUM(K23,K43,K63,K83,K103,K123) -> 94,380 | L140: =SUM(L23,L43,L63,L83,L103,L123) -> 98,871 | M140: =SUM(M23,M43,M63,M83,M103,M123) -> 102,248 | N140: =SUM(N23,N43,N63,N83,N103,N123) -> 102,344 | O140: =SUM(O23,O43,O63,O83,O103,O123) -> 102,888 | P140: =SUM(P23,P43,P63,P83,P103,P123) -> 99,648
C141: Engagement contribution before bench | E141: =SUM(E24,E44,E64,E84,E104,E124) -> 124,016 | F141: =SUM(F24,F44,F64,F84,F104,F124) -> 133,181 | G141: =SUM(G24,G44,G64,G84,G104,G124) -> 141,658 | H141: =SUM(H24,H44,H64,H84,H104,H124) -> 147,892 | I141: =SUM(I24,I44,I64,I84,I104,I124) -> 155,577 | J141: =SUM(J24,J44,J64,J84,J104,J124) -> 166,287 | K141: =SUM(K24,K44,K64,K84,K104,K124) -> 169,803 | L141: =SUM(L24,L44,L64,L84,L104,L124) -> 178,003 | M141: =SUM(M24,M44,M64,M84,M104,M124) -> 177,062 | N141: =SUM(N24,N44,N64,N84,N104,N124) -> 177,194 | O141: =SUM(O24,O44,O64,O84,O104,O124) -> 178,115 | P141: =SUM(P24,P44,P64,P84,P104,P124) -> 172,301
C142: Revenue budget remaining | E142: =SUM(E25,E45,E65,E85,E105,E125) -> 2,897,695 | F142: =SUM(F25,F45,F65,F85,F105,F125) -> 2,689,982 | G142: =SUM(G25,G45,G65,G85,G105,G125) -> 2,469,266 | H142: =SUM(H25,H45,H65,H85,H105,H125) -> 2,238,837 | I142: =SUM(I25,I45,I65,I85,I105,I125) -> 1,996,627 | J142: =SUM(J25,J45,J65,J85,J105,J125) -> 1,737,832 | K142: =SUM(K25,K45,K65,K85,K105,K125) -> 1,473,649 | L142: =SUM(L25,L45,L65,L85,L105,L125) -> 1,196,775 | M142: =SUM(M25,M45,M65,M85,M105,M125) -> 917,465 | N142: =SUM(N25,N45,N65,N85,N105,N125) -> 637,927 | O142: =SUM(O25,O45,O65,O85,O105,O125) -> 356,925 | P142: =SUM(P25,P45,P65,P85,P105,P125) -> 84,976
C143: Engagement hours budget remaining | E143: =SUM(E26,E46,E66,E86,E106,E126) -> 22,600 | F143: =SUM(F26,F46,F66,F86,F106,F126) -> 20,920 | G143: =SUM(G26,G46,G66,G86,G106,G126) -> 19,140 | H143: =SUM(H26,H46,H66,H86,H106,H126) -> 17,280 | I143: =SUM(I26,I46,I66,I86,I106,I126) -> 15,330 | J143: =SUM(J26,J46,J66,J86,J106,J126) -> 13,250 | K143: =SUM(K26,K46,K66,K86,K106,K126) -> 11,130 | L143: =SUM(L26,L46,L66,L86,L106,L126) -> 8,910 | M143: =SUM(M26,M46,M66,M86,M106,M126) -> 6,670 | N143: =SUM(N26,N46,N66,N86,N106,N126) -> 4,430 | O143: =SUM(O26,O46,O66,O86,O106,O126) -> 2,180 | P143: =SUM(P26,P46,P66,P86,P106,P126) -> 0
C144: Total loaded team payroll | E144: ='Assumptions'!E35*'Assumptions'!E38+'Assumptions'!E41*'Assumptions'!E44+'Assumptions'!E47*'Assumptions'!E50+'Assumptions'!E53*'Assumptions'!E56 -> 101,000 | F144: ='Assumptions'!F35*'Assumptions'!F38+'Assumptions'!F41*'Assumptions'!F44+'Assumptions'!F47*'Assumptions'!F50+'Assumptions'!F53*'Assumptions'!F56 -> 101,000 | G144: ='Assumptions'!G35*'Assumptions'!G38+'Assumptions'!G41*'Assumptions'!G44+'Assumptions'!G47*'Assumptions'!G50+'Assumptions'!G53*'Assumptions'!G56 -> 101,000 | H144: ='Assumptions'!H35*'Assumptions'!H38+'Assumptions'!H41*'Assumptions'!H44+'Assumptions'!H47*'Assumptions'!H50+'Assumptions'!H53*'Assumptions'!H56 -> 101,000 | I144: ='Assumptions'!I35*'Assumptions'!I38+'Assumptions'!I41*'Assumptions'!I44+'Assumptions'!I47*'Assumptions'!I50+'Assumptions'!I53*'Assumptions'!I56 -> 101,000 | J144: ='Assumptions'!J35*'Assumptions'!J38+'Assumptions'!J41*'Assumptions'!J44+'Assumptions'!J47*'Assumptions'!J50+'Assumptions'!J53*'Assumptions'!J56 -> 101,000 | K144: ='Assumptions'!K35*'Assumptions'!K38+'Assumptions'!K41*'Assumptions'!K44+'Assumptions'!K47*'Assumptions'!K50+'Assumptions'!K53*'Assumptions'!K56 -> 101,000 | L144: ='Assumptions'!L35*'Assumptions'!L38+'Assumptions'!L41*'Assumptions'!L44+'Assumptions'!L47*'Assumptions'!L50+'Assumptions'!L53*'Assumptions'!L56 -> 101,000 | M144: ='Assumptions'!M35*'Assumptions'!M38+'Assumptions'!M41*'Assumptions'!M44+'Assumptions'!M47*'Assumptions'!M50+'Assumptions'!M53*'Assumptions'!M56 -> 103,525 | N144: ='Assumptions'!N35*'Assumptions'!N38+'Assumptions'!N41*'Assumptions'!N44+'Assumptions'!N47*'Assumptions'!N50+'Assumptions'!N53*'Assumptions'!N56 -> 103,525 | O144: ='Assumptions'!O35*'Assumptions'!O38+'Assumptions'!O41*'Assumptions'!O44+'Assumptions'!O47*'Assumptions'!O50+'Assumptions'!O53*'Assumptions'!O56 -> 103,525 | P144: ='Assumptions'!P35*'Assumptions'!P38+'Assumptions'!P41*'Assumptions'!P44+'Assumptions'!P47*'Assumptions'!P50+'Assumptions'!P53*'Assumptions'!P56 -> 103,525
C145: Available working hours | E145: =('Assumptions'!E35+'Assumptions'!E41+'Assumptions'!E47+'Assumptions'!E53)*160 -> 2,400 | F145: =('Assumptions'!F35+'Assumptions'!F41+'Assumptions'!F47+'Assumptions'!F53)*160 -> 2,400 | G145: =('Assumptions'!G35+'Assumptions'!G41+'Assumptions'!G47+'Assumptions'!G53)*160 -> 2,400 | H145: =('Assumptions'!H35+'Assumptions'!H41+'Assumptions'!H47+'Assumptions'!H53)*160 -> 2,400 | I145: =('Assumptions'!I35+'Assumptions'!I41+'Assumptions'!I47+'Assumptions'!I53)*160 -> 2,400 | J145: =('Assumptions'!J35+'Assumptions'!J41+'Assumptions'!J47+'Assumptions'!J53)*160 -> 2,400 | K145: =('Assumptions'!K35+'Assumptions'!K41+'Assumptions'!K47+'Assumptions'!K53)*160 -> 2,400 | L145: =('Assumptions'!L35+'Assumptions'!L41+'Assumptions'!L47+'Assumptions'!L53)*160 -> 2,400 | M145: =('Assumptions'!M35+'Assumptions'!M41+'Assumptions'!M47+'Assumptions'!M53)*160 -> 2,400 | N145: =('Assumptions'!N35+'Assumptions'!N41+'Assumptions'!N47+'Assumptions'!N53)*160 -> 2,400 | O145: =('Assumptions'!O35+'Assumptions'!O41+'Assumptions'!O47+'Assumptions'!O53)*160 -> 2,400 | P145: =('Assumptions'!P35+'Assumptions'!P41+'Assumptions'!P47+'Assumptions'!P53)*160 -> 2,400
C146: Paid FTE | E146: ='Assumptions'!E35+'Assumptions'!E41+'Assumptions'!E47+'Assumptions'!E53 -> 15 | F146: ='Assumptions'!F35+'Assumptions'!F41+'Assumptions'!F47+'Assumptions'!F53 -> 15 | G146: ='Assumptions'!G35+'Assumptions'!G41+'Assumptions'!G47+'Assumptions'!G53 -> 15 | H146: ='Assumptions'!H35+'Assumptions'!H41+'Assumptions'!H47+'Assumptions'!H53 -> 15 | I146: ='Assumptions'!I35+'Assumptions'!I41+'Assumptions'!I47+'Assumptions'!I53 -> 15 | J146: ='Assumptions'!J35+'Assumptions'!J41+'Assumptions'!J47+'Assumptions'!J53 -> 15 | K146: ='Assumptions'!K35+'Assumptions'!K41+'Assumptions'!K47+'Assumptions'!K53 -> 15 | L146: ='Assumptions'!L35+'Assumptions'!L41+'Assumptions'!L47+'Assumptions'!L53 -> 15 | M146: ='Assumptions'!M35+'Assumptions'!M41+'Assumptions'!M47+'Assumptions'!M53 -> 15 | N146: ='Assumptions'!N35+'Assumptions'!N41+'Assumptions'!N47+'Assumptions'!N53 -> 15 | O146: ='Assumptions'!O35+'Assumptions'!O41+'Assumptions'!O47+'Assumptions'!O53 -> 15 | P146: ='Assumptions'!P35+'Assumptions'!P41+'Assumptions'!P47+'Assumptions'!P53 -> 15
C147: Chargeable utilisation | E147: =E129/E145 -> 65.4% | F147: =F129/F145 -> 70.0% | G147: =G129/G145 -> 74.2% | H147: =H129/H145 -> 77.5% | I147: =I129/I145 -> 81.3% | J147: =J129/J145 -> 86.7% | K147: =K129/K145 -> 88.3% | L147: =L129/L145 -> 92.5% | M147: =M129/M145 -> 93.3% | N147: =N129/N145 -> 93.3% | O147: =O129/O145 -> 93.8% | P147: =P129/P145 -> 90.8%
C148: Payroll not attributed to engagements | E148: =E144-E140 -> 31,466 | F148: =F144-F140 -> 26,468 | G148: =G144-G140 -> 21,942 | H148: =H144-H140 -> 18,463 | I148: =I144-I140 -> 14,366 | J148: =J144-J140 -> 8,492 | K148: =K144-K140 -> 6,620 | L148: =L144-L140 -> 2,129 | M148: =M144-M140 -> 1,277 | N148: =N144-N140 -> 1,181 | O148: =O144-O140 -> 637 | P148: =P144-P140 -> 3,877

Sheet Team capacity
C2: Team capacity
C4: Selected case | E4: ='Assumptions'!$G$4 -> Base | H4: EUR. Entirely fictional.
C7: Grade | D7: Paid FTE | E7: Loaded monthly pay | F7: Available hours | G7: Payroll cost
C8: Partner | D8: ='Assumptions'!L35 -> 1 | E8: ='Assumptions'!L38 -> 12,000 | F8: =D8*160 -> 160 | G8: =D8*E8 -> 12,000
C9: Manager | D9: ='Assumptions'!L41 -> 3 | E9: ='Assumptions'!L44 -> 8,500 | F9: =D9*160 -> 480 | G9: =D9*E9 -> 25,500
C10: Consultant | D10: ='Assumptions'!L47 -> 7 | E10: ='Assumptions'!L50 -> 6,500 | F10: =D10*160 -> 1,120 | G10: =D10*E10 -> 45,500
C11: Analyst | D11: ='Assumptions'!L53 -> 4 | E11: ='Assumptions'!L56 -> 4,500 | F11: =D11*160 -> 640 | G11: =D11*E11 -> 18,000
C15: Engagement budget and grade mix
C17: Engagement | D17: Description | E17: Revenue budget | F17: Hours budget | G17: Partner | H17: Manager | I17: Consultant | J17: Analyst | K17: Rate | L17: Mix check
C18: PS-01 | D18: Strategy retainer | E18: 442,708 | F18: 3,260 | G18: 15.0% | H18: 35.0% | I18: 40.0% | J18: 10.0% | K18: 140 | L18: =SUM(G18:J18)-1 -> 0
C19: PS-02 | D19: Finance transformation | E19: 523,315 | F19: 4,150 | G19: 5.0% | H19: 25.0% | I19: 50.0% | J19: 20.0% | K19: 130 | L19: =SUM(G19:J19)-1 -> 0
C20: PS-03 | D20: Regulatory advisory | E20: 429,225 | F20: 3,540 | G20: 10.0% | H20: 25.0% | I20: 45.0% | J20: 20.0% | K20: 125 | L20: =SUM(G20:J20)-1 -> 0
C21: PS-04 | D21: Transaction support | E21: 616,144 | F21: 3,970 | G21: 20.0% | H21: 35.0% | I21: 35.0% | J21: 10.0% | K21: 160 | L21: =SUM(G21:J21)-1 -> 0
C22: PS-05 | D22: Analytics programme | E22: 578,314 | F22: 5,420 | G22: 2.0% | H22: 15.0% | I22: 53.0% | J22: 30.0% | K22: 110 | L22: =SUM(G22:J22)-1 -> 0
C23: PS-06 | D23: Technology advisory | E23: 501,539 | F23: 3,830 | G23: 5.0% | H23: 25.0% | I23: 50.0% | J23: 20.0% | K23: 135 | L23: =SUM(G23:J23)-1 -> 0
C26: Upper table is August actual payroll. Forecast grade inputs are in Assumptions.
C30: Grade demand and available capacity
E31: Jan 26 | F31: Feb 26 | G31: Mar 26 | H31: Apr 26 | I31: May 26 | J31: Jun 26 | K31: Jul 26 | L31: Aug 26 | M31: Sept 26 | N31: Oct 26 | O31: Nov 26 | P31: Dec 26
C33: Partner
C34: Available paid hours | E34: ='Assumptions'!E35*160 -> 160 | F34: ='Assumptions'!F35*160 -> 160 | G34: ='Assumptions'!G35*160 -> 160 | H34: ='Assumptions'!H35*160 -> 160 | I34: ='Assumptions'!I35*160 -> 160 | J34: ='Assumptions'!J35*160 -> 160 | K34: ='Assumptions'!K35*160 -> 160 | L34: ='Assumptions'!L35*160 -> 160 | M34: ='Assumptions'!M35*160 -> 160 | N34: ='Assumptions'!N35*160 -> 160 | O34: ='Assumptions'!O35*160 -> 160 | P34: ='Assumptions'!P35*160 -> 160
C35: Hours allocated to engagements | E35: ='Engagements'!E9*'Team capacity'!$G$18+'Engagements'!E29*'Team capacity'!$G$19+'Engagements'!E49*'Team capacity'!$G$20+'Engagements'!E69*'Team capacity'!$G$21+'Engagements'!E89*'Team capacity'!$G$22+'Engagements'!E109*'Team capacity'!$G$23 -> 136 | F35: ='Engagements'!F9*'Team capacity'!$G$18+'Engagements'!F29*'Team capacity'!$G$19+'Engagements'!F49*'Team capacity'!$G$20+'Engagements'!F69*'Team capacity'!$G$21+'Engagements'!F89*'Team capacity'!$G$22+'Engagements'!F109*'Team capacity'!$G$23 -> 147 | G35: ='Engagements'!G9*'Team capacity'!$G$18+'Engagements'!G29*'Team capacity'!$G$19+'Engagements'!G49*'Team capacity'!$G$20+'Engagements'!G69*'Team capacity'!$G$21+'Engagements'!G89*'Team capacity'!$G$22+'Engagements'!G109*'Team capacity'!$G$23 -> 157 | H35: ='Engagements'!H9*'Team capacity'!$G$18+'Engagements'!H29*'Team capacity'!$G$19+'Engagements'!H49*'Team capacity'!$G$20+'Engagements'!H69*'Team capacity'!$G$21+'Engagements'!H89*'Team capacity'!$G$22+'Engagements'!H109*'Team capacity'!$G$23 -> 162 | I35: ='Engagements'!I9*'Team capacity'!$G$18+'Engagements'!I29*'Team capacity'!$G$19+'Engagements'!I49*'Team capacity'!$G$20+'Engagements'!I69*'Team capacity'!$G$21+'Engagements'!I89*'Team capacity'!$G$22+'Engagements'!I109*'Team capacity'!$G$23 -> 171 | J35: ='Engagements'!J9*'Team capacity'!$G$18+'Engagements'!J29*'Team capacity'!$G$19+'Engagements'!J49*'Team capacity'!$G$20+'Engagements'!J69*'Team capacity'!$G$21+'Engagements'!J89*'Team capacity'!$G$22+'Engagements'!J109*'Team capacity'!$G$23 -> 184 | K35: ='Engagements'!K9*'Team capacity'!$G$18+'Engagements'!K29*'Team capacity'!$G$19+'Engagements'!K49*'Team capacity'!$G$20+'Engagements'!K69*'Team capacity'!$G$21+'Engagements'!K89*'Team capacity'!$G$22+'Engagements'!K109*'Team capacity'!$G$23 -> 189 | L35: ='Engagements'!L9*'Team capacity'!$G$18+'Engagements'!L29*'Team capacity'!$G$19+'Engagements'!L49*'Team capacity'!$G$20+'Engagements'!L69*'Team capacity'!$G$21+'Engagements'!L89*'Team capacity'!$G$22+'Engagements'!L109*'Team capacity'!$G$23 -> 198 | M35: ='Engagements'!M9*'Team capacity'!$G$18+'Engagements'!M29*'Team capacity'!$G$19+'Engagements'!M49*'Team capacity'!$G$20+'Engagements'!M69*'Team capacity'!$G$21+'Engagements'!M89*'Team capacity'!$G$22+'Engagements'!M109*'Team capacity'!$G$23 -> 199 | N35: ='Engagements'!N9*'Team capacity'!$G$18+'Engagements'!N29*'Team capacity'!$G$19+'Engagements'!N49*'Team capacity'!$G$20+'Engagements'!N69*'Team capacity'!$G$21+'Engagements'!N89*'Team capacity'!$G$22+'Engagements'!N109*'Team capacity'!$G$23 -> 201 | O35: ='Engagements'!O9*'Team capacity'!$G$18+'Engagements'!O29*'Team capacity'!$G$19+'Engagements'!O49*'Team capacity'!$G$20+'Engagements'!O69*'Team capacity'!$G$21+'Engagements'!O89*'Team capacity'!$G$22+'Engagements'!O109*'Team capacity'!$G$23 -> 204 | P35: ='Engagements'!P9*'Team capacity'!$G$18+'Engagements'!P29*'Team capacity'!$G$19+'Engagements'!P49*'Team capacity'!$G$20+'Engagements'!P69*'Team capacity'!$G$21+'Engagements'!P89*'Team capacity'!$G$22+'Engagements'!P109*'Team capacity'!$G$23 -> 198
C36: Grade utilisation | E36: =E35/E34 -> 84.9% | F36: =F35/F34 -> 91.9% | G36: =G35/G34 -> 97.9% | H36: =H35/H34 -> 101.1% | I36: =I35/I34 -> 106.8% | J36: =J35/J34 -> 114.7% | K36: =K35/K34 -> 117.8% | L36: =L35/L34 -> 123.6% | M36: =M35/M34 -> 124.6% | N36: =N35/N34 -> 125.9% | O36: =O35/O34 -> 127.6% | P36: =P35/P34 -> 123.5%
C38: Manager
C39: Available paid hours | E39: ='Assumptions'!E41*160 -> 480 | F39: ='Assumptions'!F41*160 -> 480 | G39: ='Assumptions'!G41*160 -> 480 | H39: ='Assumptions'!H41*160 -> 480 | I39: ='Assumptions'!I41*160 -> 480 | J39: ='Assumptions'!J41*160 -> 480 | K39: ='Assumptions'!K41*160 -> 480 | L39: ='Assumptions'!L41*160 -> 480 | M39: ='Assumptions'!M41*160 -> 480 | N39: ='Assumptions'!N41*160 -> 480 | O39: ='Assumptions'!O41*160 -> 480 | P39: ='Assumptions'!P41*160 -> 480
C40: Hours allocated to engagements | E40: ='Engagements'!E9*'Team capacity'!$H$18+'Engagements'!E29*'Team capacity'!$H$19+'Engagements'!E49*'Team capacity'!$H$20+'Engagements'!E69*'Team capacity'!$H$21+'Engagements'!E89*'Team capacity'!$H$22+'Engagements'!E109*'Team capacity'!$H$23 -> 397 | F40: ='Engagements'!F9*'Team capacity'!$H$18+'Engagements'!F29*'Team capacity'!$H$19+'Engagements'!F49*'Team capacity'!$H$20+'Engagements'!F69*'Team capacity'!$H$21+'Engagements'!F89*'Team capacity'!$H$22+'Engagements'!F109*'Team capacity'!$H$23 -> 427 | G40: ='Engagements'!G9*'Team capacity'!$H$18+'Engagements'!G29*'Team capacity'!$H$19+'Engagements'!G49*'Team capacity'!$H$20+'Engagements'!G69*'Team capacity'!$H$21+'Engagements'!G89*'Team capacity'!$H$22+'Engagements'!G109*'Team capacity'!$H$23 -> 455 | H40: ='Engagements'!H9*'Team capacity'!$H$18+'Engagements'!H29*'Team capacity'!$H$19+'Engagements'!H49*'Team capacity'!$H$20+'Engagements'!H69*'Team capacity'!$H$21+'Engagements'!H89*'Team capacity'!$H$22+'Engagements'!H109*'Team capacity'!$H$23 -> 475 | I40: ='Engagements'!I9*'Team capacity'!$H$18+'Engagements'!I29*'Team capacity'!$H$19+'Engagements'!I49*'Team capacity'!$H$20+'Engagements'!I69*'Team capacity'!$H$21+'Engagements'!I89*'Team capacity'!$H$22+'Engagements'!I109*'Team capacity'!$H$23 -> 501 | J40: ='Engagements'!J9*'Team capacity'!$H$18+'Engagements'!J29*'Team capacity'!$H$19+'Engagements'!J49*'Team capacity'!$H$20+'Engagements'!J69*'Team capacity'!$H$21+'Engagements'!J89*'Team capacity'!$H$22+'Engagements'!J109*'Team capacity'!$H$23 -> 536 | K40: ='Engagements'!K9*'Team capacity'!$H$18+'Engagements'!K29*'Team capacity'!$H$19+'Engagements'!K49*'Team capacity'!$H$20+'Engagements'!K69*'Team capacity'!$H$21+'Engagements'!K89*'Team capacity'!$H$22+'Engagements'!K109*'Team capacity'!$H$23 -> 548 | L40: ='Engagements'!L9*'Team capacity'!$H$18+'Engagements'!L29*'Team capacity'!$H$19+'Engagements'!L49*'Team capacity'!$H$20+'Engagements'!L69*'Team capacity'!$H$21+'Engagements'!L89*'Team capacity'!$H$22+'Engagements'!L109*'Team capacity'!$H$23 -> 575 | M40: ='Engagements'!M9*'Team capacity'!$H$18+'Engagements'!M29*'Team capacity'!$H$19+'Engagements'!M49*'Team capacity'!$H$20+'Engagements'!M69*'Team capacity'!$H$21+'Engagements'!M89*'Team capacity'!$H$22+'Engagements'!M109*'Team capacity'!$H$23 -> 580 | N40: ='Engagements'!N9*'Team capacity'!$H$18+'Engagements'!N29*'Team capacity'!$H$19+'Engagements'!N49*'Team capacity'!$H$20+'Engagements'!N69*'Team capacity'!$H$21+'Engagements'!N89*'Team capacity'!$H$22+'Engagements'!N109*'Team capacity'!$H$23 -> 581 | O40: ='Engagements'!O9*'Team capacity'!$H$18+'Engagements'!O29*'Team capacity'!$H$19+'Engagements'!O49*'Team capacity'!$H$20+'Engagements'!O69*'Team capacity'!$H$21+'Engagements'!O89*'Team capacity'!$H$22+'Engagements'!O109*'Team capacity'!$H$23 -> 585 | P40: ='Engagements'!P9*'Team capacity'!$H$18+'Engagements'!P29*'Team capacity'!$H$19+'Engagements'!P49*'Team capacity'!$H$20+'Engagements'!P69*'Team capacity'!$H$21+'Engagements'!P89*'Team capacity'!$H$22+'Engagements'!P109*'Team capacity'!$H$23 -> 565
C41: Grade utilisation | E41: =E40/E39 -> 82.6% | F41: =F40/F39 -> 89.0% | G41: =G40/G39 -> 94.8% | H41: =H40/H39 -> 99.0% | I41: =I40/I39 -> 104.3% | J41: =J40/J39 -> 111.7% | K41: =K40/K39 -> 114.2% | L41: =L40/L39 -> 119.8% | M41: =M40/M39 -> 120.8% | N41: =N40/N39 -> 121.0% | O41: =O40/O39 -> 121.8% | P41: =P40/P39 -> 117.7%
C43: Consultant
C44: Available paid hours | E44: ='Assumptions'!E47*160 -> 1,120 | F44: ='Assumptions'!F47*160 -> 1,120 | G44: ='Assumptions'!G47*160 -> 1,120 | H44: ='Assumptions'!H47*160 -> 1,120 | I44: ='Assumptions'!I47*160 -> 1,120 | J44: ='Assumptions'!J47*160 -> 1,120 | K44: ='Assumptions'!K47*160 -> 1,120 | L44: ='Assumptions'!L47*160 -> 1,120 | M44: ='Assumptions'!M47*160 -> 1,120 | N44: ='Assumptions'!N47*160 -> 1,120 | O44: ='Assumptions'!O47*160 -> 1,120 | P44: ='Assumptions'!P47*160 -> 1,120
C45: Hours allocated to engagements | E45: ='Engagements'!E9*'Team capacity'!$I$18+'Engagements'!E29*'Team capacity'!$I$19+'Engagements'!E49*'Team capacity'!$I$20+'Engagements'!E69*'Team capacity'!$I$21+'Engagements'!E89*'Team capacity'!$I$22+'Engagements'!E109*'Team capacity'!$I$23 -> 728 | F45: ='Engagements'!F9*'Team capacity'!$I$18+'Engagements'!F29*'Team capacity'!$I$19+'Engagements'!F49*'Team capacity'!$I$20+'Engagements'!F69*'Team capacity'!$I$21+'Engagements'!F89*'Team capacity'!$I$22+'Engagements'!F109*'Team capacity'!$I$23 -> 777 | G45: ='Engagements'!G9*'Team capacity'!$I$18+'Engagements'!G29*'Team capacity'!$I$19+'Engagements'!G49*'Team capacity'!$I$20+'Engagements'!G69*'Team capacity'!$I$21+'Engagements'!G89*'Team capacity'!$I$22+'Engagements'!G109*'Team capacity'!$I$23 -> 822 | H45: ='Engagements'!H9*'Team capacity'!$I$18+'Engagements'!H29*'Team capacity'!$I$19+'Engagements'!H49*'Team capacity'!$I$20+'Engagements'!H69*'Team capacity'!$I$21+'Engagements'!H89*'Team capacity'!$I$22+'Engagements'!H109*'Team capacity'!$I$23 -> 861 | I45: ='Engagements'!I9*'Team capacity'!$I$18+'Engagements'!I29*'Team capacity'!$I$19+'Engagements'!I49*'Team capacity'!$I$20+'Engagements'!I69*'Team capacity'!$I$21+'Engagements'!I89*'Team capacity'!$I$22+'Engagements'!I109*'Team capacity'!$I$23 -> 902 | J45: ='Engagements'!J9*'Team capacity'!$I$18+'Engagements'!J29*'Team capacity'!$I$19+'Engagements'!J49*'Team capacity'!$I$20+'Engagements'!J69*'Team capacity'!$I$21+'Engagements'!J89*'Team capacity'!$I$22+'Engagements'!J109*'Team capacity'!$I$23 -> 961 | K45: ='Engagements'!K9*'Team capacity'!$I$18+'Engagements'!K29*'Team capacity'!$I$19+'Engagements'!K49*'Team capacity'!$I$20+'Engagements'!K69*'Team capacity'!$I$21+'Engagements'!K89*'Team capacity'!$I$22+'Engagements'!K109*'Team capacity'!$I$23 -> 978 | L45: ='Engagements'!L9*'Team capacity'!$I$18+'Engagements'!L29*'Team capacity'!$I$19+'Engagements'!L49*'Team capacity'!$I$20+'Engagements'!L69*'Team capacity'!$I$21+'Engagements'!L89*'Team capacity'!$I$22+'Engagements'!L109*'Team capacity'!$I$23 -> 1,023 | M45: ='Engagements'!M9*'Team capacity'!$I$18+'Engagements'!M29*'Team capacity'!$I$19+'Engagements'!M49*'Team capacity'!$I$20+'Engagements'!M69*'Team capacity'!$I$21+'Engagements'!M89*'Team capacity'!$I$22+'Engagements'!M109*'Team capacity'!$I$23 -> 1,033 | N45: ='Engagements'!N9*'Team capacity'!$I$18+'Engagements'!N29*'Team capacity'!$I$19+'Engagements'!N49*'Team capacity'!$I$20+'Engagements'!N69*'Team capacity'!$I$21+'Engagements'!N89*'Team capacity'!$I$22+'Engagements'!N109*'Team capacity'!$I$23 -> 1,031 | O45: ='Engagements'!O9*'Team capacity'!$I$18+'Engagements'!O29*'Team capacity'!$I$19+'Engagements'!O49*'Team capacity'!$I$20+'Engagements'!O69*'Team capacity'!$I$21+'Engagements'!O89*'Team capacity'!$I$22+'Engagements'!O109*'Team capacity'!$I$23 -> 1,033 | P45: ='Engagements'!P9*'Team capacity'!$I$18+'Engagements'!P29*'Team capacity'!$I$19+'Engagements'!P49*'Team capacity'!$I$20+'Engagements'!P69*'Team capacity'!$I$21+'Engagements'!P89*'Team capacity'!$I$22+'Engagements'!P109*'Team capacity'!$I$23 -> 1,001
C46: Grade utilisation | E46: =E45/E44 -> 65.0% | F46: =F45/F44 -> 69.4% | G46: =G45/G44 -> 73.4% | H46: =H45/H44 -> 76.9% | I46: =I45/I44 -> 80.5% | J46: =J45/J44 -> 85.8% | K46: =K45/K44 -> 87.3% | L46: =L45/L44 -> 91.4% | M46: =M45/M44 -> 92.2% | N46: =N45/N44 -> 92.0% | O46: =O45/O44 -> 92.3% | P46: =P45/P44 -> 89.4%
C48: Analyst
C49: Available paid hours | E49: ='Assumptions'!E53*160 -> 640 | F49: ='Assumptions'!F53*160 -> 640 | G49: ='Assumptions'!G53*160 -> 640 | H49: ='Assumptions'!H53*160 -> 640 | I49: ='Assumptions'!I53*160 -> 640 | J49: ='Assumptions'!J53*160 -> 640 | K49: ='Assumptions'!K53*160 -> 640 | L49: ='Assumptions'!L53*160 -> 640 | M49: ='Assumptions'!M53*160 -> 640 | N49: ='Assumptions'!N53*160 -> 640 | O49: ='Assumptions'!O53*160 -> 640 | P49: ='Assumptions'!P53*160 -> 640
C50: Hours allocated to engagements | E50: ='Engagements'!E9*'Team capacity'!$J$18+'Engagements'!E29*'Team capacity'!$J$19+'Engagements'!E49*'Team capacity'!$J$20+'Engagements'!E69*'Team capacity'!$J$21+'Engagements'!E89*'Team capacity'!$J$22+'Engagements'!E109*'Team capacity'!$J$23 -> 310 | F50: ='Engagements'!F9*'Team capacity'!$J$18+'Engagements'!F29*'Team capacity'!$J$19+'Engagements'!F49*'Team capacity'!$J$20+'Engagements'!F69*'Team capacity'!$J$21+'Engagements'!F89*'Team capacity'!$J$22+'Engagements'!F109*'Team capacity'!$J$23 -> 329 | G50: ='Engagements'!G9*'Team capacity'!$J$18+'Engagements'!G29*'Team capacity'!$J$19+'Engagements'!G49*'Team capacity'!$J$20+'Engagements'!G69*'Team capacity'!$J$21+'Engagements'!G89*'Team capacity'!$J$22+'Engagements'!G109*'Team capacity'!$J$23 -> 346 | H50: ='Engagements'!H9*'Team capacity'!$J$18+'Engagements'!H29*'Team capacity'!$J$19+'Engagements'!H49*'Team capacity'!$J$20+'Engagements'!H69*'Team capacity'!$J$21+'Engagements'!H89*'Team capacity'!$J$22+'Engagements'!H109*'Team capacity'!$J$23 -> 362 | I50: ='Engagements'!I9*'Team capacity'!$J$18+'Engagements'!I29*'Team capacity'!$J$19+'Engagements'!I49*'Team capacity'!$J$20+'Engagements'!I69*'Team capacity'!$J$21+'Engagements'!I89*'Team capacity'!$J$22+'Engagements'!I109*'Team capacity'!$J$23 -> 377 | J50: ='Engagements'!J9*'Team capacity'!$J$18+'Engagements'!J29*'Team capacity'!$J$19+'Engagements'!J49*'Team capacity'!$J$20+'Engagements'!J69*'Team capacity'!$J$21+'Engagements'!J89*'Team capacity'!$J$22+'Engagements'!J109*'Team capacity'!$J$23 -> 400 | K50: ='Engagements'!K9*'Team capacity'!$J$18+'Engagements'!K29*'Team capacity'!$J$19+'Engagements'!K49*'Team capacity'!$J$20+'Engagements'!K69*'Team capacity'!$J$21+'Engagements'!K89*'Team capacity'!$J$22+'Engagements'!K109*'Team capacity'!$J$23 -> 406 | L50: ='Engagements'!L9*'Team capacity'!$J$18+'Engagements'!L29*'Team capacity'!$J$19+'Engagements'!L49*'Team capacity'!$J$20+'Engagements'!L69*'Team capacity'!$J$21+'Engagements'!L89*'Team capacity'!$J$22+'Engagements'!L109*'Team capacity'!$J$23 -> 424 | M50: ='Engagements'!M9*'Team capacity'!$J$18+'Engagements'!M29*'Team capacity'!$J$19+'Engagements'!M49*'Team capacity'!$J$20+'Engagements'!M69*'Team capacity'!$J$21+'Engagements'!M89*'Team capacity'!$J$22+'Engagements'!M109*'Team capacity'!$J$23 -> 428 | N50: ='Engagements'!N9*'Team capacity'!$J$18+'Engagements'!N29*'Team capacity'!$J$19+'Engagements'!N49*'Team capacity'!$J$20+'Engagements'!N69*'Team capacity'!$J$21+'Engagements'!N89*'Team capacity'!$J$22+'Engagements'!N109*'Team capacity'!$J$23 -> 427 | O50: ='Engagements'!O9*'Team capacity'!$J$18+'Engagements'!O29*'Team capacity'!$J$19+'Engagements'!O49*'Team capacity'!$J$20+'Engagements'!O69*'Team capacity'!$J$21+'Engagements'!O89*'Team capacity'!$J$22+'Engagements'!O109*'Team capacity'!$J$23 -> 428 | P50: ='Engagements'!P9*'Team capacity'!$J$18+'Engagements'!P29*'Team capacity'!$J$19+'Engagements'!P49*'Team capacity'!$J$20+'Engagements'!P69*'Team capacity'!$J$21+'Engagements'!P89*'Team capacity'!$J$22+'Engagements'!P109*'Team capacity'!$J$23 -> 416
C51: Grade utilisation | E51: =E50/E49 -> 48.4% | F51: =F50/F49 -> 51.4% | G51: =G50/G49 -> 54.1% | H51: =H50/H49 -> 56.6% | I51: =I50/I49 -> 58.9% | J51: =J50/J49 -> 62.5% | K51: =K50/K49 -> 63.4% | L51: =L50/L49 -> 66.3% | M51: =M50/M49 -> 66.9% | N51: =N50/N49 -> 66.7% | O51: =O50/O49 -> 66.9% | P51: =P50/P49 -> 65.0%
C56: Above 100% requires staffing, reallocation or overtime review. No automatic overtime premium is modelled.

Sheet Working capital
C2: Working capital
C4: Selected case | E4: ='Assumptions'!$G$4 -> Base | H4: EUR. Entirely fictional.
E6: Actual | F6: Actual | G6: Actual | H6: Actual | I6: Actual | J6: Actual | K6: Actual | L6: Actual | M6: Forecast | N6: Forecast | O6: Forecast | P6: Forecast
E7: 2026-01-01 | F7: 2026-02-01 | G7: 2026-03-01 | H7: 2026-04-01 | I7: 2026-05-01 | J7: 2026-06-01 | K7: 2026-07-01 | L7: 2026-08-01 | M7: 2026-09-01 | N7: 2026-10-01 | O7: 2026-11-01 | P7: 2026-12-01
C8: Ordinary invoices issued | E8: ='Engagements'!E133 -> 174,195 | F8: ='Engagements'!F133 -> 186,941 | G8: ='Engagements'!G133 -> 198,644 | H8: ='Engagements'!H133 -> 207,386 | I8: ='Engagements'!I133 -> 217,989 | J8: ='Engagements'!J133 -> 232,916 | K8: ='Engagements'!K133 -> 237,765 | L8: ='Engagements'!L133 -> 249,186 | M8: ='Engagements'!M133 -> 287,689 | N8: ='Engagements'!N133 -> 287,924 | O8: ='Engagements'!O133 -> 289,433 | P8: ='Engagements'!P133 -> 367,130
C9: Scheduled opening invoice receipts | E9: =0 -> 0 | F9: =0 -> 0 | G9: =0 -> 0 | H9: =0 -> 0 | I9: =0 -> 0 | J9: =0 -> 0 | K9: =0 -> 0 | L9: =0 -> 0 | M9: =SUMIFS($L$42:$L$49,$I$42:$I$49,">="&46266,$I$42:$I$49,"<="&46295) -> 259,636 | N9: =SUMIFS($L$42:$L$49,$I$42:$I$49,">="&46296,$I$42:$I$49,"<="&46326) -> 45,818 | O9: =SUMIFS($L$42:$L$49,$I$42:$I$49,">="&46327,$I$42:$I$49,"<="&46356) -> 0 | P9: =SUMIFS($L$42:$L$49,$I$42:$I$49,">="&46357,$I$42:$I$49,"<="&46387) -> 0
C10: Unpaid opening receivables | E10: =0 -> 0 | F10: =0 -> 0 | G10: =0 -> 0 | H10: =0 -> 0 | I10: =0 -> 0 | J10: =0 -> 0 | K10: =0 -> 0 | L10: =0 -> 0 | M10: =SUMIFS($G$42:$G$49,$I$42:$I$49,">"&46295) -> 45,818 | N10: =SUMIFS($G$42:$G$49,$I$42:$I$49,">"&46326) -> 0 | O10: =SUMIFS($G$42:$G$49,$I$42:$I$49,">"&46356) -> 0 | P10: =SUMIFS($G$42:$G$49,$I$42:$I$49,">"&46387) -> 0
C11: Closing ordinary trade receivables | E11: =MIN('Actual inputs'!$E$60+E8,E8*'Assumptions'!E20/31) -> 174,195 | F11: =MIN(E11+F8,F8*'Assumptions'!F20/28) -> 253,706 | G11: =MIN(F11+G8,G8*'Assumptions'!G20/31) -> 243,500 | H11: =MIN(G11+H8,H8*'Assumptions'!H20/30) -> 262,689 | I11: =MIN(H11+I8,I8*'Assumptions'!I20/31) -> 267,213 | J11: =MIN(I11+J8,J8*'Assumptions'!J20/30) -> 295,026 | K11: =MIN(J11+K8,K8*'Assumptions'!K20/31) -> 291,454 | L11: =SUM($G$42:$G$49) -> 305,454 | M11: =MAX(M10,MIN(M8*'Assumptions'!M20/30,L11+M8-M9)) -> 333,507 | N11: =MAX(N10,MIN(N8*'Assumptions'!N20/31,M11+N8-N9)) -> 334,364 | O11: =MAX(O10,MIN(O8*'Assumptions'!O20/30,N11+O8-O9)) -> 337,671 | P11: =MAX(P10,MIN(P8*'Assumptions'!P20/31,O11+P8-P9)) -> 414,502
C12: Customer cash receipts | E12: =E8+'Actual inputs'!$E$60-E11 -> 0 | F12: =F8+E11-F11 -> 107,430 | G12: =G8+F11-G11 -> 208,851 | H12: =H8+G11-H11 -> 188,197 | I12: =I8+H11-I11 -> 213,466 | J12: =J8+I11-J11 -> 205,102 | K12: =K8+J11-K11 -> 241,337 | L12: =L8+K11-L11 -> 235,186 | M12: =M8+L11-M11 -> 259,636 | N12: =N8+M11-N11 -> 287,068 | O12: =O8+N11-O11 -> 286,125 | P12: =P8+O11-P11 -> 290,300
C14: Vendor expense incurred | E14: =-'P&L'!E10-'P&L'!E11-'P&L'!E12 -> 7,000 | F14: =-'P&L'!F10-'P&L'!F11-'P&L'!F12 -> 7,000 | G14: =-'P&L'!G10-'P&L'!G11-'P&L'!G12 -> 7,000 | H14: =-'P&L'!H10-'P&L'!H11-'P&L'!H12 -> 7,000 | I14: =-'P&L'!I10-'P&L'!I11-'P&L'!I12 -> 7,000 | J14: =-'P&L'!J10-'P&L'!J11-'P&L'!J12 -> 7,000 | K14: =-'P&L'!K10-'P&L'!K11-'P&L'!K12 -> 7,000 | L14: =-'P&L'!L10-'P&L'!L11-'P&L'!L12 -> 7,000 | M14: =-'P&L'!M10-'P&L'!M11-'P&L'!M12 -> 7,800 | N14: =-'P&L'!N10-'P&L'!N11-'P&L'!N12 -> 7,800 | O14: =-'P&L'!O10-'P&L'!O11-'P&L'!O12 -> 7,800 | P14: =-'P&L'!P10-'P&L'!P11-'P&L'!P12 -> 7,800
C15: Unpaid opening supplier invoices | E15: =0 -> 0 | F15: =0 -> 0 | G15: =0 -> 0 | H15: =0 -> 0 | I15: =0 -> 0 | J15: =0 -> 0 | K15: =0 -> 0 | L15: =0 -> 0 | M15: =SUM($I$56:$I$63)-SUMIFS($O$56:$O$63,$N$56:$N$63,"<="&46295,$N$56:$N$63,">0") -> 2,086 | N15: =SUM($I$56:$I$63)-SUMIFS($O$56:$O$63,$N$56:$N$63,"<="&46326,$N$56:$N$63,">0") -> 1,201 | O15: =SUM($I$56:$I$63)-SUMIFS($O$56:$O$63,$N$56:$N$63,"<="&46356,$N$56:$N$63,">0") -> 1,201 | P15: =SUM($I$56:$I$63)-SUMIFS($O$56:$O$63,$N$56:$N$63,"<="&46387,$N$56:$N$63,">0") -> 1,201
C16: Closing trade payables | E16: =E14*'Assumptions'!E23/31+E15 -> 6,323 | F16: =F14*'Assumptions'!F23/28+F15 -> 7,000 | G16: =G14*'Assumptions'!G23/31+G15 -> 6,323 | H16: =H14*'Assumptions'!H23/30+H15 -> 6,533 | I16: =I14*'Assumptions'!I23/31+I15 -> 6,323 | J16: =J14*'Assumptions'!J23/30+J15 -> 6,533 | K16: =K14*'Assumptions'!K23/31+K15 -> 6,323 | L16: =SUM($I$56:$I$63) -> 6,323 | M16: =M14*'Assumptions'!M23/30+M15 -> 9,366 | N16: =N14*'Assumptions'!N23/31+N15 -> 8,246 | O16: =O14*'Assumptions'!O23/30+O15 -> 8,481 | P16: =P14*'Assumptions'!P23/31+P15 -> 8,246
C17: Supplier cash payments | E17: =-(E14+'Actual inputs'!$E$61-E16) -> (23,677) | F17: =-(F14+E16-F16) -> (6,323) | G17: =-(G14+F16-G16) -> (7,677) | H17: =-(H14+G16-H16) -> (6,789) | I17: =-(I14+H16-I16) -> (7,211) | J17: =-(J14+I16-J16) -> (6,789) | K17: =-(K14+J16-K16) -> (7,211) | L17: =-(L14+K16-L16) -> (7,000) | M17: =-(M14+L16-M16) -> (4,756) | N17: =-(N14+M16-N16) -> (8,920) | O17: =-(O14+N16-O16) -> (7,565) | P17: =-(P14+O16-P16) -> (8,035)
C19: Closing contract assets / net unbilled work | E19: ='Engagements'!E138 -> 18,168 | F19: ='Engagements'!F138 -> 37,633 | G19: ='Engagements'!G138 -> 58,268 | H19: ='Engagements'!H138 -> 79,815 | I19: ='Engagements'!I138 -> 102,421 | J19: ='Engagements'!J138 -> 126,553 | K19: ='Engagements'!K138 -> 151,163 | L19: ='Engagements'!L138 -> 176,942 | M19: ='Engagements'!M138 -> 169,137 | N19: ='Engagements'!N138 -> 161,326 | O19: ='Engagements'!O138 -> 153,474 | P19: ='Engagements'!P138 -> 64,718
C20: Closing retention receivables | E20: =0 -> 0 | F20: =0 -> 0 | G20: =0 -> 0 | H20: =0 -> 0 | I20: =0 -> 0 | J20: =0 -> 0 | K20: =0 -> 0 | L20: =0 -> 0 | M20: =0 -> 0 | N20: =0 -> 0 | O20: =0 -> 0 | P20: =0 -> 0
C21: Closing customer advances | E21: ='Engagements'!E139 -> 0 | F21: ='Engagements'!F139 -> 0 | G21: ='Engagements'!G139 -> 0 | H21: ='Engagements'!H139 -> 0 | I21: ='Engagements'!I139 -> 0 | J21: ='Engagements'!J139 -> 0 | K21: ='Engagements'!K139 -> 0 | L21: ='Engagements'!L139 -> 0 | M21: ='Engagements'!M139 -> 0 | N21: ='Engagements'!N139 -> 0 | O21: ='Engagements'!O139 -> 0 | P21: ='Engagements'!P139 -> 0
C23: Direct and administration payroll paid | E23: ='P&L'!E9+'P&L'!E17 -> (146,000) | F23: ='P&L'!F9+'P&L'!F17 -> (146,500) | G23: ='P&L'!G9+'P&L'!G17 -> (147,000) | H23: ='P&L'!H9+'P&L'!H17 -> (147,500) | I23: ='P&L'!I9+'P&L'!I17 -> (148,000) | J23: ='P&L'!J9+'P&L'!J17 -> (148,500) | K23: ='P&L'!K9+'P&L'!K17 -> (149,000) | L23: ='P&L'!L9+'P&L'!L17 -> (149,500) | M23: ='P&L'!M9+'P&L'!M17 -> (154,525) | N23: ='P&L'!N9+'P&L'!N17 -> (155,025) | O23: ='P&L'!O9+'P&L'!O17 -> (156,025) | P23: ='P&L'!P9+'P&L'!P17 -> (157,025)
C24: Operating overhead cash paid | E24: ='P&L'!E18+'P&L'!E19 -> (19,000) | F24: ='P&L'!F18+'P&L'!F19 -> (19,000) | G24: ='P&L'!G18+'P&L'!G19 -> (19,000) | H24: ='P&L'!H18+'P&L'!H19 -> (19,000) | I24: ='P&L'!I18+'P&L'!I19 -> (19,000) | J24: ='P&L'!J18+'P&L'!J19 -> (19,000) | K24: ='P&L'!K18+'P&L'!K19 -> (19,000) | L24: ='P&L'!L18+'P&L'!L19 -> (19,000) | M24: ='P&L'!M18+'P&L'!M19 -> (21,000) | N24: ='P&L'!N18+'P&L'!N19 -> (21,000) | O24: ='P&L'!O18+'P&L'!O19 -> (21,000) | P24: ='P&L'!P18+'P&L'!P19 -> (21,000)
C25: Current tax paid | E25: =-'Assumptions'!E29 -> 0 | F25: =-'Assumptions'!F29 -> 0 | G25: =-'Assumptions'!G29 -> (9,000) | H25: =-'Assumptions'!H29 -> 0 | I25: =-'Assumptions'!I29 -> 0 | J25: =-'Assumptions'!J29 -> (12,000) | K25: =-'Assumptions'!K29 -> 0 | L25: =-'Assumptions'!L29 -> 0 | M25: =-'Assumptions'!M29 -> (18,000) | N25: =-'Assumptions'!N29 -> 0 | O25: =-'Assumptions'!O29 -> 0 | P25: =-'Assumptions'!P29 -> (16,000)
C26: Interest paid | E26: ='P&L'!E25 -> (710) | F26: ='P&L'!F25 -> (694) | G26: ='P&L'!G25 -> (678) | H26: ='P&L'!H25 -> (662) | I26: ='P&L'!I25 -> (646) | J26: ='P&L'!J25 -> (630) | K26: ='P&L'!K25 -> (614) | L26: ='P&L'!L25 -> (598) | M26: ='P&L'!M25 -> (582) | N26: ='P&L'!N25 -> (566) | O26: ='P&L'!O25 -> (550) | P26: ='P&L'!P25 -> (534)
C27: Capital expenditure paid | E27: =-'Assumptions'!E26 -> (6,000) | F27: =-'Assumptions'!F26 -> (4,000) | G27: =-'Assumptions'!G26 -> (8,000) | H27: =-'Assumptions'!H26 -> (6,000) | I27: =-'Assumptions'!I26 -> (9,000) | J27: =-'Assumptions'!J26 -> (5,000) | K27: =-'Assumptions'!K26 -> (8,000) | L27: =-'Assumptions'!L26 -> (6,000) | M27: =-'Assumptions'!M26 -> (18,000) | N27: =-'Assumptions'!N26 -> (6,000) | O27: =-'Assumptions'!O26 -> (6,000) | P27: =-'Assumptions'!P26 -> (6,000)
C28: Principal repaid | E28: =-'Assets debt'!E14 -> (3,500) | F28: =-'Assets debt'!F14 -> (3,500) | G28: =-'Assets debt'!G14 -> (3,500) | H28: =-'Assets debt'!H14 -> (3,500) | I28: =-'Assets debt'!I14 -> (3,500) | J28: =-'Assets debt'!J14 -> (3,500) | K28: =-'Assets debt'!K14 -> (3,500) | L28: =-'Assets debt'!L14 -> (3,500) | M28: =-'Assets debt'!M14 -> (3,500) | N28: =-'Assets debt'!N14 -> (3,500) | O28: =-'Assets debt'!O14 -> (3,500) | P28: =-'Assets debt'!P14 -> (3,500)
C29: Direct cash net change | E29: =SUM(E12,E17,E23:E28) -> (198,888) | F29: =SUM(F12,F17,F23:F28) -> (72,587) | G29: =SUM(G12,G17,G23:G28) -> 13,995 | H29: =SUM(H12,H17,H23:H28) -> 4,745 | I29: =SUM(I12,I17,I23:I28) -> 26,109 | J29: =SUM(J12,J17,J23:J28) -> 9,683 | K29: =SUM(K12,K17,K23:K28) -> 54,013 | L29: =SUM(L12,L17,L23:L28) -> 49,588 | M29: =SUM(M12,M17,M23:M28) -> 39,273 | N29: =SUM(N12,N17,N23:N28) -> 92,057 | O29: =SUM(O12,O17,O23:O28) -> 91,485 | P29: =SUM(P12,P17,P23:P28) -> 78,206
C39: Open trade receivables at 31 August
C41: Invoice | D41: Customer | E41: Issued | F41: Due | G41: Outstanding | H41: Planned receipt | I41: Case receipt date | J41: Days overdue | K41: Ageing | L41: Receipt amount
C42: AR-01 | D42: Fictional customer 01 | E42: 2026-05-20 | F42: 2026-06-19 | G42: 36,654 | H42: 2026-09-04 | I42: =H42+'Assumptions'!M32 -> 2026-09-04 | J42: =MAX(0,46265-F42) -> 73 | K42: =IF(J42=0,"Current",IF(J42<=30,"1–30",IF(J42<=60,"31–60",IF(J42<=90,"61–90","90+")))) -> 61–90 | L42: =G42 -> 36,654
C43: AR-02 | D43: Fictional customer 02 | E43: 2026-06-18 | F43: 2026-07-18 | G43: 42,764 | H43: 2026-09-08 | I43: =H43+'Assumptions'!M32 -> 2026-09-08 | J43: =MAX(0,46265-F43) -> 44 | K43: =IF(J43=0,"Current",IF(J43<=30,"1–30",IF(J43<=60,"31–60",IF(J43<=90,"61–90","90+")))) -> 31–60 | L43: =G43 -> 42,764
C44: AR-03 | D44: Fictional customer 03 | E44: 2026-07-06 | F44: 2026-08-05 | G44: 27,491 | H44: 2026-09-11 | I44: =H44+'Assumptions'!M32 -> 2026-09-11 | J44: =MAX(0,46265-F44) -> 26 | K44: =IF(J44=0,"Current",IF(J44<=30,"1–30",IF(J44<=60,"31–60",IF(J44<=90,"61–90","90+")))) -> 1–30 | L44: =G44 -> 27,491
C45: AR-04 | D45: Fictional customer 04 | E45: 2026-07-20 | F45: 2026-08-19 | G45: 48,873 | H45: 2026-09-15 | I45: =H45+'Assumptions'!M32 -> 2026-09-15 | J45: =MAX(0,46265-F45) -> 12 | K45: =IF(J45=0,"Current",IF(J45<=30,"1–30",IF(J45<=60,"31–60",IF(J45<=90,"61–90","90+")))) -> 1–30 | L45: =G45 -> 48,873
C46: AR-05 | D46: Fictional customer 05 | E46: 2026-08-02 | F46: 2026-09-01 | G46: 30,545 | H46: 2026-09-18 | I46: =H46+'Assumptions'!M32 -> 2026-09-18 | J46: =MAX(0,46265-F46) -> 0 | K46: =IF(J46=0,"Current",IF(J46<=30,"1–30",IF(J46<=60,"31–60",IF(J46<=90,"61–90","90+")))) -> Current | L46: =G46 -> 30,545
C47: AR-06 | D47: Fictional customer 06 | E47: 2026-08-10 | F47: 2026-09-09 | G47: 39,709 | H47: 2026-09-22 | I47: =H47+'Assumptions'!M32 -> 2026-09-22 | J47: =MAX(0,46265-F47) -> 0 | K47: =IF(J47=0,"Current",IF(J47<=30,"1–30",IF(J47<=60,"31–60",IF(J47<=90,"61–90","90+")))) -> Current | L47: =G47 -> 39,709
C48: AR-07 | D48: Fictional customer 07 | E48: 2026-08-18 | F48: 2026-09-17 | G48: 33,600 | H48: 2026-09-25 | I48: =H48+'Assumptions'!M32 -> 2026-09-25 | J48: =MAX(0,46265-F48) -> 0 | K48: =IF(J48=0,"Current",IF(J48<=30,"1–30",IF(J48<=60,"31–60",IF(J48<=90,"61–90","90+")))) -> Current | L48: =G48 -> 33,600
C49: AR-08 | D49: Fictional customer 08 | E49: 2026-08-25 | F49: 2026-09-24 | G49: 45,818 | H49: 2026-10-02 | I49: =H49+'Assumptions'!M32 -> 2026-10-02 | J49: =MAX(0,46265-F49) -> 0 | K49: =IF(J49=0,"Current",IF(J49<=30,"1–30",IF(J49<=60,"31–60",IF(J49<=90,"61–90","90+")))) -> Current | L49: =G49 -> 45,818
C53: Supplier payments and prerequisites
C55: Invoice | D55: Supplier | E55: Issued | F55: Due | G55: Original total | H55: Paid to date | I55: Outstanding | J55: Planned date | K55: Approval | L55: Review | M55: Hold | N55: Payment date | O55: Eligible amount | P55: Days overdue
C56: AP-01 | D56: Fictional supplier 01 | E56: 2026-05-20 | F56: 2026-06-19 | G56: 3,222 | H56: 2,400 | I56: =G56-H56 -> 822 | J56: 2026-09-04 | K56: Approved | L56: Complete | M56: No | N56: =IF(AND(K56="Approved",L56="Complete",M56="No"),J56,0) -> 2026-09-04 | O56: =IF(N56>0,I56,0) -> 822 | P56: =MAX(0,46265-F56) -> 73
C57: AP-02 | D57: Fictional supplier 02 | E57: 2026-06-18 | F57: 2026-07-18 | G57: 569 | H57: 0 | I57: =G57-H57 -> 569 | J57: 2026-09-08 | K57: Pending | L57: Complete | M57: Yes | N57: =IF(AND(K57="Approved",L57="Complete",M57="No"),J57,0) -> 00:00:00 | O57: =IF(N57>0,I57,0) -> 0 | P57: =MAX(0,46265-F57) -> 44
C58: AP-03 | D58: Fictional supplier 03 | E58: 2026-07-06 | F58: 2026-08-05 | G58: 2,148 | H58: 1,200 | I58: =G58-H58 -> 948 | J58: 2026-09-11 | K58: Approved | L58: Complete | M58: No | N58: =IF(AND(K58="Approved",L58="Complete",M58="No"),J58,0) -> 2026-09-11 | O58: =IF(N58>0,I58,0) -> 948 | P58: =MAX(0,46265-F58) -> 26
C59: AP-04 | D59: Fictional supplier 04 | E59: 2026-07-20 | F59: 2026-08-19 | G59: 632 | H59: 0 | I59: =G59-H59 -> 632 | J59: 2026-09-15 | K59: Approved | L59: Pending | M59: No | N59: =IF(AND(K59="Approved",L59="Complete",M59="No"),J59,0) -> 00:00:00 | O59: =IF(N59>0,I59,0) -> 0 | P59: =MAX(0,46265-F59) -> 12
C60: AP-05 | D60: Fictional supplier 05 | E60: 2026-08-02 | F60: 2026-09-01 | G60: 4,212 | H60: 3,200 | I60: =G60-H60 -> 1,012 | J60: 2026-09-18 | K60: Approved | L60: Complete | M60: No | N60: =IF(AND(K60="Approved",L60="Complete",M60="No"),J60,0) -> 2026-09-18 | O60: =IF(N60>0,I60,0) -> 1,012 | P60: =MAX(0,46265-F60) -> 0
C61: AP-06 | D61: Fictional supplier 06 | E61: 2026-08-10 | F61: 2026-09-09 | G61: 759 | H61: 0 | I61: =G61-H61 -> 759 | J61: 2026-09-22 | K61: Approved | L61: Complete | M61: No | N61: =IF(AND(K61="Approved",L61="Complete",M61="No"),J61,0) -> 2026-09-22 | O61: =IF(N61>0,I61,0) -> 759 | P61: =MAX(0,46265-F61) -> 0
C62: AP-07 | D62: Fictional supplier 07 | E62: 2026-08-18 | F62: 2026-09-17 | G62: 695 | H62: 0 | I62: =G62-H62 -> 695 | J62: 2026-09-25 | K62: Approved | L62: Complete | M62: No | N62: =IF(AND(K62="Approved",L62="Complete",M62="No"),J62,0) -> 2026-09-25 | O62: =IF(N62>0,I62,0) -> 695 | P62: =MAX(0,46265-F62) -> 0
C63: AP-08 | D63: Fictional supplier 08 | E63: 2026-08-25 | F63: 2026-09-24 | G63: 2,685 | H63: 1,800 | I63: =G63-H63 -> 885 | J63: 2026-10-02 | K63: Approved | L63: Complete | M63: No | N63: =IF(AND(K63="Approved",L63="Complete",M63="No"),J63,0) -> 2026-10-02 | O63: =IF(N63>0,I63,0) -> 885 | P63: =MAX(0,46265-F63) -> 0

Sheet Assets debt
C2: Assets debt
C4: Selected case | E4: ='Assumptions'!$G$4 -> Base | H4: EUR. Entirely fictional.
E6: Actual | F6: Actual | G6: Actual | H6: Actual | I6: Actual | J6: Actual | K6: Actual | L6: Actual | M6: Forecast | N6: Forecast | O6: Forecast | P6: Forecast
E7: 2026-01-01 | F7: 2026-02-01 | G7: 2026-03-01 | H7: 2026-04-01 | I7: 2026-05-01 | J7: 2026-06-01 | K7: 2026-07-01 | L7: 2026-08-01 | M7: 2026-09-01 | N7: 2026-10-01 | O7: 2026-11-01 | P7: 2026-12-01
C8: Fixed assets at cost | E8: ='Actual inputs'!$E$68+'Assumptions'!E26 -> 136,000 | F8: =E8+'Assumptions'!F26 -> 140,000 | G8: =F8+'Assumptions'!G26 -> 148,000 | H8: =G8+'Assumptions'!H26 -> 154,000 | I8: =H8+'Assumptions'!I26 -> 163,000 | J8: =I8+'Assumptions'!J26 -> 168,000 | K8: =J8+'Assumptions'!K26 -> 176,000 | L8: =K8+'Assumptions'!L26 -> 182,000 | M8: =L8+'Assumptions'!M26 -> 200,000 | N8: =M8+'Assumptions'!N26 -> 206,000 | O8: =N8+'Assumptions'!O26 -> 212,000 | P8: =O8+'Assumptions'!P26 -> 218,000
C9: Depreciation expense | E9: =-('Actual inputs'!$E$68-'Actual inputs'!$E$69)/'Assumptions'!$E$157-(E8-'Actual inputs'!$E$68)/'Assumptions'!$E$156 -> (2,193) | F9: =-('Actual inputs'!$E$68-'Actual inputs'!$E$69)/'Assumptions'!$E$157-(F8-'Actual inputs'!$E$68)/'Assumptions'!$E$156 -> (2,277) | G9: =-('Actual inputs'!$E$68-'Actual inputs'!$E$69)/'Assumptions'!$E$157-(G8-'Actual inputs'!$E$68)/'Assumptions'!$E$156 -> (2,443) | H9: =-('Actual inputs'!$E$68-'Actual inputs'!$E$69)/'Assumptions'!$E$157-(H8-'Actual inputs'!$E$68)/'Assumptions'!$E$156 -> (2,568) | I9: =-('Actual inputs'!$E$68-'Actual inputs'!$E$69)/'Assumptions'!$E$157-(I8-'Actual inputs'!$E$68)/'Assumptions'!$E$156 -> (2,756) | J9: =-('Actual inputs'!$E$68-'Actual inputs'!$E$69)/'Assumptions'!$E$157-(J8-'Actual inputs'!$E$68)/'Assumptions'!$E$156 -> (2,860) | K9: =-('Actual inputs'!$E$68-'Actual inputs'!$E$69)/'Assumptions'!$E$157-(K8-'Actual inputs'!$E$68)/'Assumptions'!$E$156 -> (3,027) | L9: =-('Actual inputs'!$E$68-'Actual inputs'!$E$69)/'Assumptions'!$E$157-(L8-'Actual inputs'!$E$68)/'Assumptions'!$E$156 -> (3,152) | M9: =-('Actual inputs'!$E$68-'Actual inputs'!$E$69)/'Assumptions'!$E$157-(M8-'Actual inputs'!$E$68)/'Assumptions'!$E$156 -> (3,527) | N9: =-('Actual inputs'!$E$68-'Actual inputs'!$E$69)/'Assumptions'!$E$157-(N8-'Actual inputs'!$E$68)/'Assumptions'!$E$156 -> (3,652) | O9: =-('Actual inputs'!$E$68-'Actual inputs'!$E$69)/'Assumptions'!$E$157-(O8-'Actual inputs'!$E$68)/'Assumptions'!$E$156 -> (3,777) | P9: =-('Actual inputs'!$E$68-'Actual inputs'!$E$69)/'Assumptions'!$E$157-(P8-'Actual inputs'!$E$68)/'Assumptions'!$E$156 -> (3,902)
C10: Accumulated depreciation | E10: ='Actual inputs'!$E$69-E9 -> 41,193 | F10: =E10-F9 -> 43,470 | G10: =F10-G9 -> 45,913 | H10: =G10-H9 -> 48,481 | I10: =H10-I9 -> 51,237 | J10: =I10-J9 -> 54,097 | K10: =J10-K9 -> 57,123 | L10: =K10-L9 -> 60,275 | M10: =L10-M9 -> 63,801 | N10: =M10-N9 -> 67,453 | O10: =N10-O9 -> 71,229 | P10: =O10-P9 -> 75,131
C11: Net fixed assets | E11: =E8-E10 -> 94,807 | F11: =F8-F10 -> 96,530 | G11: =G8-G10 -> 102,087 | H11: =H8-H10 -> 105,519 | I11: =I8-I10 -> 111,763 | J11: =J8-J10 -> 113,903 | K11: =K8-K10 -> 118,877 | L11: =L8-L10 -> 121,725 | M11: =M8-M10 -> 136,199 | N11: =N8-N10 -> 138,547 | O11: =O8-O10 -> 140,771 | P11: =P8-P10 -> 142,869
C13: Opening debt | E13: ='Actual inputs'!$E$70 -> 155,000 | F13: =E15 -> 151,500 | G13: =F15 -> 148,000 | H13: =G15 -> 144,500 | I13: =H15 -> 141,000 | J13: =I15 -> 137,500 | K13: =J15 -> 134,000 | L13: =K15 -> 130,500 | M13: =L15 -> 127,000 | N13: =M15 -> 123,500 | O13: =N15 -> 120,000 | P13: =O15 -> 116,500
C14: Principal repayment | E14: =MIN(E13,'Assumptions'!$E$155) -> 3,500 | F14: =MIN(F13,'Assumptions'!$E$155) -> 3,500 | G14: =MIN(G13,'Assumptions'!$E$155) -> 3,500 | H14: =MIN(H13,'Assumptions'!$E$155) -> 3,500 | I14: =MIN(I13,'Assumptions'!$E$155) -> 3,500 | J14: =MIN(J13,'Assumptions'!$E$155) -> 3,500 | K14: =MIN(K13,'Assumptions'!$E$155) -> 3,500 | L14: =MIN(L13,'Assumptions'!$E$155) -> 3,500 | M14: =MIN(M13,'Assumptions'!$E$155) -> 3,500 | N14: =MIN(N13,'Assumptions'!$E$155) -> 3,500 | O14: =MIN(O13,'Assumptions'!$E$155) -> 3,500 | P14: =MIN(P13,'Assumptions'!$E$155) -> 3,500
C15: Closing debt | E15: =E13-E14 -> 151,500 | F15: =F13-F14 -> 148,000 | G15: =G13-G14 -> 144,500 | H15: =H13-H14 -> 141,000 | I15: =I13-I14 -> 137,500 | J15: =J13-J14 -> 134,000 | K15: =K13-K14 -> 130,500 | L15: =L13-L14 -> 127,000 | M15: =M13-M14 -> 123,500 | N15: =N13-N14 -> 120,000 | O15: =O13-O14 -> 116,500 | P15: =P13-P14 -> 113,000
C16: Interest expense | E16: =-E13*'Assumptions'!$E$153/12 -> (710) | F16: =-F13*'Assumptions'!$E$153/12 -> (694) | G16: =-G13*'Assumptions'!$E$153/12 -> (678) | H16: =-H13*'Assumptions'!$E$153/12 -> (662) | I16: =-I13*'Assumptions'!$E$153/12 -> (646) | J16: =-J13*'Assumptions'!$E$153/12 -> (630) | K16: =-K13*'Assumptions'!$E$153/12 -> (614) | L16: =-L13*'Assumptions'!$E$153/12 -> (598) | M16: =-M13*'Assumptions'!$E$153/12 -> (582) | N16: =-N13*'Assumptions'!$E$153/12 -> (566) | O16: =-O13*'Assumptions'!$E$153/12 -> (550) | P16: =-P13*'Assumptions'!$E$153/12 -> (534)
C18: Current tax expense | E18: ='P&L'!E27 -> (3,492) | F18: ='P&L'!F27 -> (6,187) | G18: ='P&L'!G27 -> (8,632) | H18: ='P&L'!H27 -> (10,441) | I18: ='P&L'!I27 -> (12,639) | J18: ='P&L'!J27 -> (15,811) | K18: ='P&L'!K27 -> (16,747) | L18: ='P&L'!L27 -> (19,143) | M18: ='P&L'!M27 -> (18,490) | N18: ='P&L'!N27 -> (18,414) | O18: ='P&L'!O27 -> (18,486) | P18: ='P&L'!P27 -> (17,623)
C19: Current tax cash paid | E19: ='Assumptions'!E29 -> 0 | F19: ='Assumptions'!F29 -> 0 | G19: ='Assumptions'!G29 -> 9,000 | H19: ='Assumptions'!H29 -> 0 | I19: ='Assumptions'!I29 -> 0 | J19: ='Assumptions'!J29 -> 12,000 | K19: ='Assumptions'!K29 -> 0 | L19: ='Assumptions'!L29 -> 0 | M19: ='Assumptions'!M29 -> 18,000 | N19: ='Assumptions'!N29 -> 0 | O19: ='Assumptions'!O29 -> 0 | P19: ='Assumptions'!P29 -> 16,000
C20: Net tax liability / (prepayment) | E20: ='Actual inputs'!$E$66-E18-E19 -> 17,492 | F20: =E20-F18-F19 -> 23,679 | G20: =F20-G18-G19 -> 23,311 | H20: =G20-H18-H19 -> 33,751 | I20: =H20-I18-I19 -> 46,390 | J20: =I20-J18-J19 -> 50,201 | K20: =J20-K18-K19 -> 66,948 | L20: =K20-L18-L19 -> 86,091 | M20: =L20-M18-M19 -> 86,581 | N20: =M20-N18-N19 -> 104,995 | O20: =N20-O18-O19 -> 123,481 | P20: =O20-P18-P19 -> 125,104
C21: Tax payable | E21: =MAX(0,E20) -> 17,492 | F21: =MAX(0,F20) -> 23,679 | G21: =MAX(0,G20) -> 23,311 | H21: =MAX(0,H20) -> 33,751 | I21: =MAX(0,I20) -> 46,390 | J21: =MAX(0,J20) -> 50,201 | K21: =MAX(0,K20) -> 66,948 | L21: =MAX(0,L20) -> 86,091 | M21: =MAX(0,M20) -> 86,581 | N21: =MAX(0,N20) -> 104,995 | O21: =MAX(0,O20) -> 123,481 | P21: =MAX(0,P20) -> 125,104
C22: Tax prepayment | E22: =MAX(0,-E20) -> 0 | F22: =MAX(0,-F20) -> 0 | G22: =MAX(0,-G20) -> 0 | H22: =MAX(0,-H20) -> 0 | I22: =MAX(0,-I20) -> 0 | J22: =MAX(0,-J20) -> 0 | K22: =MAX(0,-K20) -> 0 | L22: =MAX(0,-L20) -> 0 | M22: =MAX(0,-M20) -> 0 | N22: =MAX(0,-N20) -> 0 | O22: =MAX(0,-O20) -> 0 | P22: =MAX(0,-P20) -> 0

Sheet Budget
C2: Budget
C4: Selected case | E4: ='Assumptions'!$G$4 -> Base | H4: EUR. Entirely fictional.
E6: Original budget | F6: Original budget | G6: Original budget | H6: Original budget | I6: Original budget | J6: Original budget | K6: Original budget | L6: Original budget | M6: Original budget | N6: Original budget | O6: Original budget | P6: Original budget
E7: 2026-01-01 | F7: 2026-02-01 | G7: 2026-03-01 | H7: 2026-04-01 | I7: 2026-05-01 | J7: 2026-06-01 | K7: 2026-07-01 | L7: 2026-08-01 | M7: 2026-09-01 | N7: 2026-10-01 | O7: 2026-11-01 | P7: 2026-12-01
C8: Revenue | E8: €198,656 | F8: €213,303 | G8: €226,835 | H8: €236,777 | I8: €249,048 | J8: €266,168 | K8: €271,794 | L8: €284,889 | M8: €287,363 | N8: €287,605 | O8: €289,109 | P8: €279,700
C9: Direct payroll | E9: (101,000) | F9: (101,000) | G9: (101,000) | H9: (101,000) | I9: (101,000) | J9: (101,000) | K9: (101,000) | L9: (101,000) | M9: (103,525) | N9: (103,525) | O9: (103,525) | P9: (103,525)
C10: Materials | E10: 0 | F10: 0 | G10: 0 | H10: 0 | I10: 0 | J10: 0 | K10: 0 | L10: 0 | M10: 0 | N10: 0 | O10: 0 | P10: 0
C11: Subcontractors | E11: 0 | F11: 0 | G11: 0 | H11: 0 | I11: 0 | J11: 0 | K11: 0 | L11: 0 | M11: 0 | N11: 0 | O11: 0 | P11: 0
C12: Direct systems and software | E12: (7,000) | F12: (7,000) | G12: (7,000) | H12: (7,000) | I12: (7,000) | J12: (7,000) | K12: (7,000) | L12: (7,000) | M12: (7,800) | N12: (7,800) | O12: (7,800) | P12: (7,800)
C13: Unbilled recoverability charge / (release) | E13: (1,636) | F13: (1,807) | G13: (1,992) | H13: (2,068) | I13: (2,241) | J13: (2,428) | K13: (2,518) | L13: (2,657) | M13: (176) | N13: (180) | O13: (185) | P13: 5,702
C14: Direct costs | E14: (€109,636) | F14: (€109,807) | G14: (€109,992) | H14: (€110,068) | I14: (€110,241) | J14: (€110,428) | K14: (€110,518) | L14: (€110,657) | M14: (€111,501) | N14: (€111,505) | O14: (€111,510) | P14: (€105,623)
C15: Gross profit | E15: €89,020 | F15: €103,496 | G15: €116,842 | H15: €126,709 | I15: €138,807 | J15: €155,740 | K15: €161,276 | L15: €174,232 | M15: €175,861 | N15: €176,100 | O15: €177,599 | P15: €174,076
C16: Gross margin | E16: 44.8% | F16: 48.5% | G16: 51.5% | H16: 53.5% | I16: 55.7% | J16: 58.5% | K16: 59.3% | L16: 61.2% | M16: 61.2% | N16: 61.2% | O16: 61.4% | P16: 62.2%
C17: Management and administration payroll | E17: (42,750) | F17: (43,225) | G17: (43,700) | H17: (44,175) | I17: (44,650) | J17: (45,125) | K17: (45,600) | L17: (46,075) | M17: (48,450) | N17: (48,925) | O17: (49,875) | P17: (50,825)
C18: Business development | E18: (11,500) | F18: (11,500) | G18: (11,500) | H18: (11,500) | I18: (11,500) | J18: (11,500) | K18: (11,500) | L18: (11,500) | M18: (13,000) | N18: (13,000) | O18: (13,000) | P18: (13,000)
C19: Office, insurance and general costs | E19: (7,500) | F19: (7,500) | G19: (7,500) | H19: (7,500) | I19: (7,500) | J19: (7,500) | K19: (7,500) | L19: (7,500) | M19: (8,000) | N19: (8,000) | O19: (8,000) | P19: (8,000)
C20: Operating expenses | E20: (€61,750) | F20: (€62,225) | G20: (€62,700) | H20: (€63,175) | I20: (€63,650) | J20: (€64,125) | K20: (€64,600) | L20: (€65,075) | M20: (€69,450) | N20: (€69,925) | O20: (€70,875) | P20: (€71,825)
C21: EBITDA | E21: €27,270 | F21: €41,271 | G21: €54,142 | H21: €63,534 | I21: €75,157 | J21: €91,615 | K21: €96,676 | L21: €109,157 | M21: €106,411 | N21: €106,175 | O21: €106,724 | P21: €102,251
C22: EBITDA margin | E22: 13.7% | F22: 19.3% | G22: 23.9% | H22: 26.8% | I22: 30.2% | J22: 34.4% | K22: 35.6% | L22: 38.3% | M22: 37.0% | N22: 36.9% | O22: 36.9% | P22: 36.6%
C23: Depreciation | E23: (2,193) | F23: (2,277) | G23: (2,443) | H23: (2,568) | I23: (2,756) | J23: (2,860) | K23: (3,027) | L23: (3,152) | M23: (3,527) | N23: (3,652) | O23: (3,777) | P23: (3,902)
C24: EBIT | E24: €25,077 | F24: €38,995 | G24: €51,699 | H24: €60,965 | I24: €72,401 | J24: €88,755 | K24: €93,650 | L24: €106,005 | M24: €102,885 | N24: €102,523 | O24: €102,947 | P24: €98,350
C25: Interest | E25: (710) | F25: (694) | G25: (678) | H25: (662) | I25: (646) | J25: (630) | K25: (614) | L25: (598) | M25: (582) | N25: (566) | O25: (550) | P25: (534)
C26: Profit before tax | E26: €24,367 | F26: €38,300 | G26: €51,021 | H26: €60,303 | I26: €71,755 | J26: €88,125 | K26: €93,036 | L26: €105,407 | M26: €102,303 | N26: €101,957 | O26: €102,397 | P26: €97,816
C27: Illustrative current tax | E27: (4,873) | F27: (7,660) | G27: (10,204) | H27: (12,061) | I27: (14,351) | J27: (17,625) | K27: (18,607) | L27: (21,081) | M27: (20,461) | N27: (20,391) | O27: (20,479) | P27: (19,563)
C28: Net profit | E28: €19,493 | F28: €30,640 | G28: €40,817 | H28: €48,243 | I28: €57,404 | J28: €70,500 | K28: €74,428 | L28: €84,326 | M28: €81,842 | N28: €81,566 | O28: €81,918 | P28: €78,252
C32: Fixed original plan. It does not change with the forecast selector.
C34: Assumptions for the original plan are stated in the accompanying guide.

Sheet Actual inputs
C2: Actual inputs
C4: Selected case | E4: ='Assumptions'!$G$4 -> Base | H4: EUR. Entirely fictional.
E6: Actual | F6: Actual | G6: Actual | H6: Actual | I6: Actual | J6: Actual | K6: Actual | L6: Actual | M6: Forecast | N6: Forecast | O6: Forecast | P6: Forecast
E7: 2026-01-01 | F7: 2026-02-01 | G7: 2026-03-01 | H7: 2026-04-01 | I7: 2026-05-01 | J7: 2026-06-01 | K7: 2026-07-01 | L7: 2026-08-01 | M7: 2026-09-01 | N7: 2026-10-01 | O7: 2026-11-01 | P7: 2026-12-01
C8: Management and administration payroll | E8: 45,000 | F8: 45,500 | G8: 46,000 | H8: 46,500 | I8: 47,000 | J8: 47,500 | K8: 48,000 | L8: 48,500
C9: Business development | E9: 11,500 | F9: 11,500 | G9: 11,500 | H9: 11,500 | I9: 11,500 | J9: 11,500 | K9: 11,500 | L9: 11,500
C10: Office, insurance and general costs | E10: 7,500 | F10: 7,500 | G10: 7,500 | H10: 7,500 | I10: 7,500 | J10: 7,500 | K10: 7,500 | L10: 7,500
C11: Direct systems and software | E11: 7,000 | F11: 7,000 | G11: 7,000 | H11: 7,000 | I11: 7,000 | J11: 7,000 | K11: 7,000 | L11: 7,000
C12: Target closing trade receivable days | E12: 38 | F12: 38 | G12: 38 | H12: 38 | I12: 38 | J12: 38 | K12: 38 | L12: 38
C13: New supplier payable days | E13: 28 | F13: 28 | G13: 28 | H13: 28 | I13: 28 | J13: 28 | K13: 28 | L13: 28
C14: Cash capital expenditure | E14: 6,000 | F14: 4,000 | G14: 8,000 | H14: 6,000 | I14: 9,000 | J14: 5,000 | K14: 8,000 | L14: 6,000
C15: Illustrative tax payment | E15: 0 | F15: 0 | G15: 9,000 | H15: 0 | I15: 0 | J15: 12,000 | K15: 0 | L15: 0
C16: Opening invoice collection delay (days) | E16: 0 | F16: 0 | G16: 0 | H16: 0 | I16: 0 | J16: 0 | K16: 0 | L16: 0
C17: Partner Paid FTE | E17: 1 | F17: 1 | G17: 1 | H17: 1 | I17: 1 | J17: 1 | K17: 1 | L17: 1
C18: Partner Monthly loaded pay | E18: 12,000 | F18: 12,000 | G18: 12,000 | H18: 12,000 | I18: 12,000 | J18: 12,000 | K18: 12,000 | L18: 12,000
C19: Manager Paid FTE | E19: 3 | F19: 3 | G19: 3 | H19: 3 | I19: 3 | J19: 3 | K19: 3 | L19: 3
C20: Manager Monthly loaded pay | E20: 8,500 | F20: 8,500 | G20: 8,500 | H20: 8,500 | I20: 8,500 | J20: 8,500 | K20: 8,500 | L20: 8,500
C21: Consultant Paid FTE | E21: 7 | F21: 7 | G21: 7 | H21: 7 | I21: 7 | J21: 7 | K21: 7 | L21: 7
C22: Consultant Monthly loaded pay | E22: 6,500 | F22: 6,500 | G22: 6,500 | H22: 6,500 | I22: 6,500 | J22: 6,500 | K22: 6,500 | L22: 6,500
C23: Analyst Paid FTE | E23: 4 | F23: 4 | G23: 4 | H23: 4 | I23: 4 | J23: 4 | K23: 4 | L23: 4
C24: Analyst Monthly loaded pay | E24: 4,500 | F24: 4,500 | G24: 4,500 | H24: 4,500 | I24: 4,500 | J24: 4,500 | K24: 4,500 | L24: 4,500
C25: PS-01 Recorded chargeable hours | E25: 240 | F25: 250 | G25: 250 | H25: 260 | I25: 260 | J25: 270 | K25: 270 | L25: 280
C26: PS-01 Contract billing rate per hour | E26: 140 | F26: 140 | G26: 140 | H26: 140 | I26: 140 | J26: 140 | K26: 140 | L26: 140
C27: PS-01 Realisation of chargeable value | E27: 97.0% | F27: 97.0% | G27: 97.0% | H27: 97.0% | I27: 97.0% | J27: 97.0% | K27: 97.0% | L27: 97.0%
C28: PS-01 Invoices issued | E28: 29,333 | F28: 30,555 | G28: 30,555 | H28: 31,777 | I28: 31,777 | J28: 32,999 | K28: 32,999 | L28: 34,222
C29: PS-01 Unbilled recoverability allowance | E29: 2.0% | F29: 2.0% | G29: 2.0% | H29: 2.0% | I29: 2.0% | J29: 2.0% | K29: 2.0% | L29: 2.0%
C30: PS-02 Recorded chargeable hours | E30: 150 | F30: 190 | G30: 250 | H30: 300 | I30: 350 | J30: 400 | K30: 420 | L30: 460
C31: PS-02 Contract billing rate per hour | E31: 130 | F31: 130 | G31: 130 | H31: 130 | I31: 130 | J31: 130 | K31: 130 | L31: 130
C32: PS-02 Realisation of chargeable value | E32: 94.0% | F32: 94.0% | G32: 94.0% | H32: 94.0% | I32: 94.0% | J32: 94.0% | K32: 94.0% | L32: 94.0%
C33: PS-02 Invoices issued | E33: 16,497 | F33: 20,896 | G33: 27,495 | H33: 32,994 | I33: 38,493 | J33: 43,992 | K33: 46,192 | L33: 50,591
C34: PS-02 Unbilled recoverability allowance | E34: 8.0% | F34: 8.0% | G34: 8.0% | H34: 8.0% | I34: 8.0% | J34: 8.0% | K34: 8.0% | L34: 8.0%
C35: PS-03 Recorded chargeable hours | E35: 260 | F35: 270 | G35: 270 | H35: 280 | I35: 280 | J35: 300 | K35: 300 | L35: 310
C36: PS-03 Contract billing rate per hour | E36: 125 | F36: 125 | G36: 125 | H36: 125 | I36: 125 | J36: 125 | K36: 125 | L36: 125
C37: PS-03 Realisation of chargeable value | E37: 96.0% | F37: 96.0% | G37: 96.0% | H37: 96.0% | I37: 96.0% | J37: 96.0% | K37: 96.0% | L37: 96.0%
C38: PS-03 Invoices issued | E38: 28,080 | F38: 29,160 | G38: 29,160 | H38: 30,240 | I38: 30,240 | J38: 32,400 | K38: 32,400 | L38: 33,480
C39: PS-03 Unbilled recoverability allowance | E39: 2.5% | F39: 2.5% | G39: 2.5% | H39: 2.5% | I39: 2.5% | J39: 2.5% | K39: 2.5% | L39: 2.5%
C40: PS-04 Recorded chargeable hours | E40: 220 | F40: 250 | G40: 280 | H40: 280 | I40: 310 | J40: 340 | K40: 360 | L40: 380
C41: PS-04 Contract billing rate per hour | E41: 160 | F41: 160 | G41: 160 | H41: 160 | I41: 160 | J41: 160 | K41: 160 | L41: 160
C42: PS-04 Realisation of chargeable value | E42: 92.0% | F42: 92.0% | G42: 92.0% | H42: 92.0% | I42: 92.0% | J42: 92.0% | K42: 92.0% | L42: 92.0%
C43: PS-04 Invoices issued | E43: 29,146 | F43: 33,120 | G43: 37,094 | H43: 37,094 | I43: 41,069 | J43: 45,043 | K43: 47,693 | L43: 50,342
C44: PS-04 Unbilled recoverability allowance | E44: 14.0% | F44: 14.0% | G44: 14.0% | H44: 14.0% | I44: 14.0% | J44: 14.0% | K44: 14.0% | L44: 14.0%
C45: PS-05 Recorded chargeable hours | E45: 420 | F45: 430 | G45: 430 | H45: 440 | I45: 440 | J45: 450 | K45: 450 | L45: 460
C46: PS-05 Contract billing rate per hour | E46: 110 | F46: 110 | G46: 110 | H46: 110 | I46: 110 | J46: 110 | K46: 110 | L46: 110
C47: PS-05 Realisation of chargeable value | E47: 95.0% | F47: 95.0% | G47: 95.0% | H47: 95.0% | I47: 95.0% | J47: 95.0% | K47: 95.0% | L47: 95.0%
C48: PS-05 Invoices issued | E48: 39,501 | F48: 40,442 | G48: 40,442 | H48: 41,382 | I48: 41,382 | J48: 42,323 | K48: 42,323 | L48: 43,263
C49: PS-05 Unbilled recoverability allowance | E49: 4.5% | F49: 4.5% | G49: 4.5% | H49: 4.5% | I49: 4.5% | J49: 4.5% | K49: 4.5% | L49: 4.5%
C50: PS-06 Recorded chargeable hours | E50: 280 | F50: 290 | G50: 300 | H50: 300 | I50: 310 | J50: 320 | K50: 320 | L50: 330
C51: PS-06 Contract billing rate per hour | E51: 135 | F51: 135 | G51: 135 | H51: 135 | I51: 135 | J51: 135 | K51: 135 | L51: 135
C52: PS-06 Realisation of chargeable value | E52: 93.0% | F52: 93.0% | G52: 93.0% | H52: 93.0% | I52: 93.0% | J52: 93.0% | K52: 93.0% | L52: 93.0%
C53: PS-06 Invoices issued | E53: 31,639 | F53: 32,769 | G53: 33,899 | H53: 33,899 | I53: 35,028 | J53: 36,158 | K53: 36,158 | L53: 37,288
C54: PS-06 Unbilled recoverability allowance | E54: 7.0% | F54: 7.0% | G54: 7.0% | H54: 7.0% | I54: 7.0% | J54: 7.0% | K54: 7.0% | L54: 7.0%
C58: Opening balances at 31 December 2025
C59: Cash | E59: 285,000
C60: Trade receivables | E60: 0
C61: Trade payables | E61: 23,000
C62: Contract assets / unbilled work | E62: 0
C63: Retention receivables | E63: 0
C64: Customer advances | E64: 0
C65: Payroll accruals | E65: 15,000
C66: Net current tax liability | E66: 14,000
C67: Prepayments | E67: 14,000
C68: Fixed assets at cost | E68: 130,000
C69: Accumulated depreciation | E69: 39,000
C70: Debt principal | E70: 155,000
C71: Share capital | E71: 50,000
C72: Retained earnings | E72: 133,000
C75: Source: independently invented demonstration assumptions and records.

Sheet Forecast review
C2: Forecast review
C4: Selected case | E4: ='Assumptions'!$G$4 -> Base | H4: EUR. Entirely fictional.
E6: Actual | F6: Actual | G6: Actual | H6: Actual | I6: Actual | J6: Actual | K6: Actual | L6: Actual | M6: Forecast | N6: Forecast | O6: Forecast | P6: Forecast
E7: 2026-01-01 | F7: 2026-02-01 | G7: 2026-03-01 | H7: 2026-04-01 | I7: 2026-05-01 | J7: 2026-06-01 | K7: 2026-07-01 | L7: 2026-08-01 | M7: 2026-09-01 | N7: 2026-10-01 | O7: 2026-11-01 | P7: 2026-12-01
C8: Assets less liabilities and equity | E8: ='Balance sheet'!E18-'Balance sheet'!E29 -> 0.00 | F8: ='Balance sheet'!F18-'Balance sheet'!F29 -> 0.00 | G8: ='Balance sheet'!G18-'Balance sheet'!G29 -> 0.00 | H8: ='Balance sheet'!H18-'Balance sheet'!H29 -> 0.00 | I8: ='Balance sheet'!I18-'Balance sheet'!I29 -> 0.00 | J8: ='Balance sheet'!J18-'Balance sheet'!J29 -> 0.00 | K8: ='Balance sheet'!K18-'Balance sheet'!K29 -> 0.00 | L8: ='Balance sheet'!L18-'Balance sheet'!L29 -> 0.00 | M8: ='Balance sheet'!M18-'Balance sheet'!M29 -> 0.00 | N8: ='Balance sheet'!N18-'Balance sheet'!N29 -> (0.00) | O8: ='Balance sheet'!O18-'Balance sheet'!O29 -> 0.00 | P8: ='Balance sheet'!P18-'Balance sheet'!P29 -> 0.00
C9: Direct cash less indirect cash flow | E9: ='Working capital'!E29-'Cash flow'!E21 -> 0.00 | F9: ='Working capital'!F29-'Cash flow'!F21 -> 0.00 | G9: ='Working capital'!G29-'Cash flow'!G21 -> 0.00 | H9: ='Working capital'!H29-'Cash flow'!H21 -> 0.00 | I9: ='Working capital'!I29-'Cash flow'!I21 -> (0.00) | J9: ='Working capital'!J29-'Cash flow'!J21 -> (0.00) | K9: ='Working capital'!K29-'Cash flow'!K21 -> (0.00) | L9: ='Working capital'!L29-'Cash flow'!L21 -> (0.00) | M9: ='Working capital'!M29-'Cash flow'!M21 -> (0.00) | N9: ='Working capital'!N29-'Cash flow'!N21 -> 0.00 | O9: ='Working capital'!O29-'Cash flow'!O21 -> (0.00) | P9: ='Working capital'!P29-'Cash flow'!P21 -> 0.00
C10: Cash flow closing less balance sheet cash | E10: ='Cash flow'!E23-'Balance sheet'!E8 -> 0.00 | F10: ='Cash flow'!F23-'Balance sheet'!F8 -> 0.00 | G10: ='Cash flow'!G23-'Balance sheet'!G8 -> 0.00 | H10: ='Cash flow'!H23-'Balance sheet'!H8 -> 0.00 | I10: ='Cash flow'!I23-'Balance sheet'!I8 -> 0.00 | J10: ='Cash flow'!J23-'Balance sheet'!J8 -> 0.00 | K10: ='Cash flow'!K23-'Balance sheet'!K8 -> 0.00 | L10: ='Cash flow'!L23-'Balance sheet'!L8 -> 0.00 | M10: ='Cash flow'!M23-'Balance sheet'!M8 -> 0.00 | N10: ='Cash flow'!N23-'Balance sheet'!N8 -> 0.00 | O10: ='Cash flow'!O23-'Balance sheet'!O8 -> 0.00 | P10: ='Cash flow'!P23-'Balance sheet'!P8 -> 0.00
C11: Retained earnings roll-forward | E11: ='Balance sheet'!E27-'Actual inputs'!$E$72-'P&L'!E28 -> 0.00 | F11: ='Balance sheet'!F27-'Balance sheet'!E27-'P&L'!F28 -> (0.00) | G11: ='Balance sheet'!G27-'Balance sheet'!F27-'P&L'!G28 -> 0.00 | H11: ='Balance sheet'!H27-'Balance sheet'!G27-'P&L'!H28 -> 0.00 | I11: ='Balance sheet'!I27-'Balance sheet'!H27-'P&L'!I28 -> 0.00 | J11: ='Balance sheet'!J27-'Balance sheet'!I27-'P&L'!J28 -> 0.00 | K11: ='Balance sheet'!K27-'Balance sheet'!J27-'P&L'!K28 -> 0.00 | L11: ='Balance sheet'!L27-'Balance sheet'!K27-'P&L'!L28 -> (0.00) | M11: ='Balance sheet'!M27-'Balance sheet'!L27-'P&L'!M28 -> 0.00 | N11: ='Balance sheet'!N27-'Balance sheet'!M27-'P&L'!N28 -> (0.00) | O11: ='Balance sheet'!O27-'Balance sheet'!N27-'P&L'!O28 -> 0.00 | P11: ='Balance sheet'!P27-'Balance sheet'!O27-'P&L'!P28 -> 0.00
C12: Forecast dated events less monthly cash | E12: =0 -> 0.00 | F12: =0 -> 0.00 | G12: =0 -> 0.00 | H12: =0 -> 0.00 | I12: =0 -> 0.00 | J12: =0 -> 0.00 | K12: =0 -> 0.00 | L12: =0 -> 0.00 | M12: =SUMIFS('13 week cash'!$F$37:$F$92,'13 week cash'!$D$37:$D$92,">="&46266,'13 week cash'!$D$37:$D$92,"<="&46295)-'Cash flow'!M21 -> (0.00) | N12: =SUMIFS('13 week cash'!$F$37:$F$92,'13 week cash'!$D$37:$D$92,">="&46296,'13 week cash'!$D$37:$D$92,"<="&46326)-'Cash flow'!N21 -> (0.00) | O12: =SUMIFS('13 week cash'!$F$37:$F$92,'13 week cash'!$D$37:$D$92,">="&46327,'13 week cash'!$D$37:$D$92,"<="&46356)-'Cash flow'!O21 -> 0.00 | P12: =SUMIFS('13 week cash'!$F$37:$F$92,'13 week cash'!$D$37:$D$92,">="&46357,'13 week cash'!$D$37:$D$92,"<="&46387)-'Cash flow'!P21 -> (0.00)
C16: August receivable detail less ledger | E16: =SUM('Working capital'!G42:G49)-'Balance sheet'!L9 -> 0.00
C17: August payable detail less ledger | E17: =SUM('Working capital'!I56:I63)-'Balance sheet'!L19 -> 0.00
C18: Daily closing less final weekly closing | E18: ='13 week cash'!H201-'13 week cash'!Q18 -> 0.00
C19: Original AP less paid and outstanding | E19: =SUM('Working capital'!G56:G63)-SUM('Working capital'!H56:I63) -> 0.00
C23: Neutral zero is a passed reconciliation at EUR 0.01 tolerance.
C25: Historical event comparisons are not applicable. Dated events start in September.

Sheet Guide
C2: Guide
C4: Selected case | E4: ='Assumptions'!$G$4 -> Base | H4: EUR. Entirely fictional.
C7: Every business, project, engagement, invoice and result is independently fictional. This model demonstrates method, not client results.
C9: January–August 2026 are invented actuals. September–December use one Base/Downside selector. Original budget is a separate fixed plan.
C11: Amounts are EUR. Expenses and cash outflows are negative. Assets and liabilities are positive; accumulated depreciation is subtracted.
C13: Revenue is chargeable hours × contract rate × realisation. Invoice timing is separate. The gap between cumulative earned revenue and billings is unbilled work or a customer advance. Recoverability reserves reduce unbilled work and are expensed.
C15: Loaded payroll is paid FTE × monthly pay. Grade mix attributes cost to engagements. Unallocated payroll stays in direct cost. Hours above grade capacity require overtime or reallocation; no automatic overtime premium or added staffing is assumed.
C17: Realisation discounts reduce revenue. The separate recoverability allowance applies only to remaining unbilled assets, not invoiced receivables.
C19: Forecast receivables use target days, subject to a floor for unpaid opening invoices and a cap preventing negative new receipts. Implied days may differ from the target. AP includes new vendor expense × days plus unpaid opening invoices.
C21: Opening supplier invoices require approval, completed review and no hold before payment. Pending invoices remain liabilities but are not scheduled.
C23: Ledger and cash both exclude VAT and other indirect taxes. Tax is a fictional 20% of positive monthly profit before tax, without loss carry-forward or deferred tax. This is not jurisdiction-specific tax advice.
C25: Opening assets depreciate over a remaining 44 months. New additions depreciate over 48 months from the full purchase month. Principal is capped at debt outstanding. Annual interest is 5.5% on opening monthly debt.
C27: The 13-week period starts 1 September after the 31 August close and ends 29 November. Daily cash groups receipts and payments by date, not intraday execution order. Full monthly statements include all month-end activity.
C29: Residual new collections occur 35% on day 15 and 65% on day 28. Vendor payments split 45% on day 12 and 55% on day 26. Payroll is day 25 and overheads day 10. Dates are fictional schedule assumptions.
C31: Negative forecast cash is an unfunded requirement, not an authorised overdraft. No automatic borrowing, interest on cash, FX or dividends are modelled.
C33: Blue numbers in amber cells are editable. Missing selected forecast drivers produce unavailable results; zero remains valid. JSON is an evaluated case snapshot and needs regeneration after edits.
